Organisation Name,Organisation Code,Unique Ref No,Effective Date,Directorate  where expenditure incurred,Supplier name ,Payment Date,Net Amount,Procurement Classification (Higher Level),Purpose of Spend,Procurement Classification (Lower Level),Capital/Revenue
Walsall Council,http://opendatacommunities.org/id/metropolitan-district-council/walsall,WC75-1,31/12/2016,Economy & Environment,118 PHARMACY LIMITED,19/12/2016,300,71007-CONTRIBUTION TO PCT,PUBLIC HEALTH BUSINESS SUPPORT,Third Party Payments,Revenue
Walsall Council,http://opendatacommunities.org/id/metropolitan-district-council/walsall,WC75-2,31/12/2016,Adult Social Care,1ST CARE LIMITED T/A STUBBY LEAS NURSING HOME,01/12/2016,"1,921.43",73373-RESIDENTIAL & NURSING CARE PLACEMENTS,MH COMMISSIONING,Third Party Payments,Revenue
Walsall Council,http://opendatacommunities.org/id/metropolitan-district-council/walsall,WC75-3,31/12/2016,Change and Governance,3C TECHNOLOGY LTD,12/12/2016,"2,375.00",63820-RECHARGE FOR MAINTENANCE/APPLICATION COSTS-COMPUTER,SIT-INFRASTRUCTURE,Supplies & Services,Revenue
Walsall Council,http://opendatacommunities.org/id/metropolitan-district-council/walsall,WC75-4,31/12/2016,Childrens,5 CARE SERVICES LTD,15/12/2016,"1,079.00",63000-PROFESSIONAL FEES AND SERVICES,DIRECTLY COMMISSIONED NURSING SERVICES,Supplies & Services,Revenue
Walsall Council,http://opendatacommunities.org/id/metropolitan-district-council/walsall,WC75-5,31/12/2016,Childrens,5 CARE SERVICES LTD,15/12/2016,"1,254.50",63000-PROFESSIONAL FEES AND SERVICES,DIRECTLY COMMISSIONED NURSING SERVICES,Supplies & Services,Revenue
Walsall Council,http://opendatacommunities.org/id/metropolitan-district-council/walsall,WC75-6,31/12/2016,Childrens,5 CARE SERVICES LTD,15/12/2016,"1,618.50",63000-PROFESSIONAL FEES AND SERVICES,DIRECTLY COMMISSIONED NURSING SERVICES,Supplies & Services,Revenue
Walsall Council,http://opendatacommunities.org/id/metropolitan-district-council/walsall,WC75-7,31/12/2016,Adult Social Care,5 CARE SERVICES LTD,06/12/2016,"40,136.46",73372-DOMICILIARY CARE,OP COMMISSIONING,Third Party Payments,Revenue
Walsall Council,http://opendatacommunities.org/id/metropolitan-district-council/walsall,WC75-8,31/12/2016,Economy & Environment,A D T FIRE AND SECURITY PLC,15/12/2016,359.04,60008-MAINTENANCE-FURNITURE & EQUIPMENT,LIBRARY OPERATIONS CENTRAL,Supplies & Services,Revenue
Walsall Council,http://opendatacommunities.org/id/metropolitan-district-council/walsall,WC75-9,31/12/2016,Economy & Environment,A F BLAKEMORE & SON LTD,12/12/2016,-375.22,61009-BEVERAGES-PROVISIONS,DARLASTON LEISURE CENTRE,Supplies & Services,Revenue
Walsall Council,http://opendatacommunities.org/id/metropolitan-district-council/walsall,WC75-10,31/12/2016,Economy & Environment,A F BLAKEMORE & SON LTD,21/12/2016,259.44,61016-FOOD AND BEVERAGES-PROVISIONS,BLOXWICH LEISURE CENTRE,Supplies & Services,Revenue
Walsall Council,http://opendatacommunities.org/id/metropolitan-district-council/walsall,WC75-11,31/12/2016,Adult Social Care,A F BLAKEMORE & SON LTD,14/12/2016,337.18,61016-FOOD AND BEVERAGES-PROVISIONS,GOSCOTE,Supplies & Services,Revenue
Walsall Council,http://opendatacommunities.org/id/metropolitan-district-council/walsall,WC75-12,31/12/2016,Change and Governance,A F BLAKEMORE & SON LTD,01/12/2016,366.23,61016-FOOD AND BEVERAGES-PROVISIONS,WALSALL TOWN HALL,Supplies & Services,Revenue
Walsall Council,http://opendatacommunities.org/id/metropolitan-district-council/walsall,WC75-13,31/12/2016,Economy & Environment,A F BLAKEMORE & SON LTD,09/12/2016,373.76,61001-FROZEN FOODS-PROVISIONS,OAK PARK,Supplies & Services,Revenue
Walsall Council,http://opendatacommunities.org/id/metropolitan-district-council/walsall,WC75-14,31/12/2016,Economy & Environment,A F BLAKEMORE & SON LTD,12/12/2016,375.22,61009-BEVERAGES-PROVISIONS,DARLASTON LEISURE CENTRE,Supplies & Services,Revenue
Walsall Council,http://opendatacommunities.org/id/metropolitan-district-council/walsall,WC75-15,31/12/2016,Adult Social Care,A F BLAKEMORE & SON LTD,01/12/2016,480.25,61016-FOOD AND BEVERAGES-PROVISIONS,REABLEMENT TEAM - HOLLY BANK,Supplies & Services,Revenue
Walsall Council,http://opendatacommunities.org/id/metropolitan-district-council/walsall,WC75-16,31/12/2016,Childrens,REDACTED,19/12/2016,340.16,74006-HOLIDAY/CHRISTMAS ALLOWANCE-FOSTER CARERS-OTH AGENCY PROVISION,INTERNAL FOSTER CARE PROVISION,Third Party Payments,Revenue
Walsall Council,http://opendatacommunities.org/id/metropolitan-district-council/walsall,WC75-17,31/12/2016,Economy & Environment,A KARIMS CHUCKERY PHARMACY,07/12/2016,35.4,63000-PROFESSIONAL FEES AND SERVICES,SEXUAL HEALTH,Supplies & Services,Revenue
Walsall Council,http://opendatacommunities.org/id/metropolitan-district-council/walsall,WC75-18,31/12/2016,Economy & Environment,A KARIMS CHUCKERY PHARMACY,19/12/2016,300,71007-CONTRIBUTION TO PCT,PUBLIC HEALTH BUSINESS SUPPORT,Third Party Payments,Revenue
Walsall Council,http://opendatacommunities.org/id/metropolitan-district-council/walsall,WC75-19,31/12/2016,Economy & Environment,A KARIMS CHUCKERY PHARMACY,19/12/2016,"1,465.85",71007-CONTRIBUTION TO PCT,PUBLIC HEALTH BUSINESS SUPPORT,Third Party Payments,Revenue
Walsall Council,http://opendatacommunities.org/id/metropolitan-district-council/walsall,WC75-20,31/12/2016,Economy & Environment,A KARIMS CHUCKERY PHARMACY,07/12/2016,"1,780.23",71007-CONTRIBUTION TO PCT,PUBLIC HEALTH BUSINESS SUPPORT,Third Party Payments,Revenue
Walsall Council,http://opendatacommunities.org/id/metropolitan-district-council/walsall,WC75-21,31/12/2016,Childrens,AA GLOBAL LANGUAGE SERVICES LIMITED,20/12/2016,233.75,"62521-INTERPRETATION,TRANSLATION & HUMAN AIDS TO TRANSCRIPTION",LOOKED AFTER CHILDRENS SOCIAL WORK TEAM,Supplies & Services,Revenue
Walsall Council,http://opendatacommunities.org/id/metropolitan-district-council/walsall,WC75-229,31/12/2016,Childrens,REDACTED,12/12/2016,344.38,64002-OTHER EXPENSES-EXPENSES,ADOPTION TEAM,Supplies & Services,Revenue
Walsall Council,http://opendatacommunities.org/id/metropolitan-district-council/walsall,WC75-23,31/12/2016,Childrens,ABACUS FOSTERING LTD,07/12/2016,"2,442.86",74037-INDEPENDENT FOSTER CARE-OTH AGENCY PROVISION,EXTERNAL FOSTER CARE PROVISION,Third Party Payments,Revenue
Walsall Council,http://opendatacommunities.org/id/metropolitan-district-council/walsall,WC75-24,31/12/2016,Adult Social Care,ABBEY COURT NURSING & RESIDEN,13/12/2016,"1,786.40",73373-RESIDENTIAL & NURSING CARE PLACEMENTS,OP COMMISSIONING,Third Party Payments,Revenue
Walsall Council,http://opendatacommunities.org/id/metropolitan-district-council/walsall,WC75-25,31/12/2016,Adult Social Care,ABBEY COURT NURSING & RESIDEN,13/12/2016,"1,786.40",73373-RESIDENTIAL & NURSING CARE PLACEMENTS,OP COMMISSIONING,Third Party Payments,Revenue
Walsall Council,http://opendatacommunities.org/id/metropolitan-district-council/walsall,WC75-26,31/12/2016,Adult Social Care,ABBEY COURT NURSING & RESIDEN,13/12/2016,"1,878.91",73373-RESIDENTIAL & NURSING CARE PLACEMENTS,MH COMMISSIONING,Third Party Payments,Revenue
Walsall Council,http://opendatacommunities.org/id/metropolitan-district-council/walsall,WC75-27,31/12/2016,Adult Social Care,ABBEY HEALTHCARE HOMES LTD,13/12/2016,"1,699.16",73373-RESIDENTIAL & NURSING CARE PLACEMENTS,PD COMMISSIONING,Third Party Payments,Revenue
Walsall Council,http://opendatacommunities.org/id/metropolitan-district-council/walsall,WC75-28,31/12/2016,Adult Social Care,ABBEY HEALTHCARE HOMES LTD,13/12/2016,"1,699.16",73373-RESIDENTIAL & NURSING CARE PLACEMENTS,PD COMMISSIONING,Third Party Payments,Revenue
Walsall Council,http://opendatacommunities.org/id/metropolitan-district-council/walsall,WC75-29,31/12/2016,Childrens,ABC CHILDRENS HOME,07/12/2016,"15,000.00",74036-EXTERNAL RESIDENTIAL CARE-OTH AGENCY PROVISION,INDEPENDENT RESIDENTIAL HOMES,Third Party Payments,Revenue
Walsall Council,http://opendatacommunities.org/id/metropolitan-district-council/walsall,WC75-30,31/12/2016,Childrens,ABC DAY NURSERY (WILLENHALL) LIMITED,01/12/2016,"1,458.60",66505-OTHER-GRANTS TO OTHER ORGS,EARLY YEARS - 3 YR OLDS,Third Party Payments,Revenue
Walsall Council,http://opendatacommunities.org/id/metropolitan-district-council/walsall,WC75-31,31/12/2016,Childrens,ABC DAY NURSERY (WILLENHALL) LIMITED,01/12/2016,"1,716.39",66505-OTHER-GRANTS TO OTHER ORGS,EARLY YEARS - 2 YR OLDS,Third Party Payments,Revenue
Walsall Council,http://opendatacommunities.org/id/metropolitan-district-council/walsall,WC75-32,31/12/2016,Childrens,ABC FOSTERING,15/12/2016,"2,529.52",74037-INDEPENDENT FOSTER CARE-OTH AGENCY PROVISION,EXTERNAL FOSTER CARE PROVISION,Third Party Payments,Revenue
Walsall Council,http://opendatacommunities.org/id/metropolitan-district-council/walsall,WC75-33,31/12/2016,Childrens,ABC FOSTERING,15/12/2016,"2,639.52",74037-INDEPENDENT FOSTER CARE-OTH AGENCY PROVISION,EXTERNAL FOSTER CARE PROVISION,Third Party Payments,Revenue
Walsall Council,http://opendatacommunities.org/id/metropolitan-district-council/walsall,WC75-34,31/12/2016,Childrens,ABC FOSTERING,15/12/2016,"2,639.52",74037-INDEPENDENT FOSTER CARE-OTH AGENCY PROVISION,EXTERNAL FOSTER CARE PROVISION,Third Party Payments,Revenue
Walsall Council,http://opendatacommunities.org/id/metropolitan-district-council/walsall,WC75-35,31/12/2016,Childrens,ABC FOSTERING,15/12/2016,"2,823.42",74037-INDEPENDENT FOSTER CARE-OTH AGENCY PROVISION,EXTERNAL FOSTER CARE PROVISION,Third Party Payments,Revenue
Walsall Council,http://opendatacommunities.org/id/metropolitan-district-council/walsall,WC75-36,31/12/2016,Childrens,ABC FOSTERING,15/12/2016,"2,823.42",74037-INDEPENDENT FOSTER CARE-OTH AGENCY PROVISION,EXTERNAL FOSTER CARE PROVISION,Third Party Payments,Revenue
Walsall Council,http://opendatacommunities.org/id/metropolitan-district-council/walsall,WC75-37,31/12/2016,Childrens,ABC FOSTERING,15/12/2016,"3,008.57",74037-INDEPENDENT FOSTER CARE-OTH AGENCY PROVISION,EXTERNAL FOSTER CARE PROVISION,Third Party Payments,Revenue
Walsall Council,http://opendatacommunities.org/id/metropolitan-district-council/walsall,WC75-38,31/12/2016,Childrens,ABC FOSTERING,15/12/2016,"3,199.89",74037-INDEPENDENT FOSTER CARE-OTH AGENCY PROVISION,EXTERNAL FOSTER CARE PROVISION,Third Party Payments,Revenue
Walsall Council,http://opendatacommunities.org/id/metropolitan-district-council/walsall,WC75-39,31/12/2016,Childrens,ABC FOSTERING,15/12/2016,"3,199.89",74037-INDEPENDENT FOSTER CARE-OTH AGENCY PROVISION,EXTERNAL FOSTER CARE PROVISION,Third Party Payments,Revenue
Walsall Council,http://opendatacommunities.org/id/metropolitan-district-council/walsall,WC75-2920,31/12/2016,Childrens,REDACTED,23/12/2016,300.48,34305-AGENCY STAFF-EMPLOYEES,ADOPTION TEAM,Employees,Revenue
Walsall Council,http://opendatacommunities.org/id/metropolitan-district-council/walsall,WC75-2921,31/12/2016,Capital Financing,REDACTED,01/12/2016,668.15,86011-INTEREST - TEMP LOANS BONDS,CAPITAL FINANCING CONTROLLABLE,Central,Revenue
Walsall Council,http://opendatacommunities.org/id/metropolitan-district-council/walsall,WC75-42,31/12/2016,Childrens,ABU BAKR NURSERY,01/12/2016,"11,442.60",66505-OTHER-GRANTS TO OTHER ORGS,EARLY YEARS - 2 YR OLDS,Third Party Payments,Revenue
Walsall Council,http://opendatacommunities.org/id/metropolitan-district-council/walsall,WC75-43,31/12/2016,Childrens,AC EDUCATION,01/12/2016,"2,000.00",63114-OTHER FEES & LICENCES-SERVICES-FEES,VIRTUAL SCHOOL CENTRAL PUPIL PREMIUM,Supplies & Services,Revenue
Walsall Council,http://opendatacommunities.org/id/metropolitan-district-council/walsall,WC75-44,31/12/2016,Change and Governance,ACAS,05/12/2016,"1,355.00",63000-PROFESSIONAL FEES AND SERVICES,CORPORATE EXPENSES,Supplies & Services,Revenue
Walsall Council,http://opendatacommunities.org/id/metropolitan-district-council/walsall,WC75-45,31/12/2016,Adult Social Care,ACCORD HOUSING ASSOCIATION LTD#135,02/12/2016,578.25,73374-SUPPORTED & OTHER ACCOMMODATION,LD COMMISSIONING,Third Party Payments,Revenue
Walsall Council,http://opendatacommunities.org/id/metropolitan-district-council/walsall,WC75-46,31/12/2016,Adult Social Care,ACCORD HOUSING ASSOCIATION LTD#135,12/12/2016,578.25,73374-SUPPORTED & OTHER ACCOMMODATION,LD COMMISSIONING,Third Party Payments,Revenue
Walsall Council,http://opendatacommunities.org/id/metropolitan-district-council/walsall,WC75-47,31/12/2016,Adult Social Care,ACCORD HOUSING ASSOCIATION LTD#135,22/12/2016,"3,298.68",73374-SUPPORTED & OTHER ACCOMMODATION,OP COMMISSIONING,Third Party Payments,Revenue
Walsall Council,http://opendatacommunities.org/id/metropolitan-district-council/walsall,WC75-48,31/12/2016,Adult Social Care,ACCORD HOUSING ASSOCIATION LTD#135,13/12/2016,"4,591.84",73373-RESIDENTIAL & NURSING CARE PLACEMENTS,LD COMMISSIONING,Third Party Payments,Revenue
Walsall Council,http://opendatacommunities.org/id/metropolitan-district-council/walsall,WC75-49,31/12/2016,Adult Social Care,ACCORD HOUSING ASSOCIATION LTD#135,13/12/2016,"4,591.84",73373-RESIDENTIAL & NURSING CARE PLACEMENTS,LD COMMISSIONING,Third Party Payments,Revenue
Walsall Council,http://opendatacommunities.org/id/metropolitan-district-council/walsall,WC75-50,31/12/2016,Adult Social Care,ACCORD HOUSING ASSOCIATION LTD#135,13/12/2016,"4,591.84",73373-RESIDENTIAL & NURSING CARE PLACEMENTS,LD COMMISSIONING,Third Party Payments,Revenue
Walsall Council,http://opendatacommunities.org/id/metropolitan-district-council/walsall,WC75-51,31/12/2016,Adult Social Care,ACCORD HOUSING ASSOCIATION LTD#135,13/12/2016,"4,591.84",73373-RESIDENTIAL & NURSING CARE PLACEMENTS,LD COMMISSIONING,Third Party Payments,Revenue
Walsall Council,http://opendatacommunities.org/id/metropolitan-district-council/walsall,WC75-52,31/12/2016,Adult Social Care,ACCORD HOUSING ASSOCIATION LTD#135,06/12/2016,"4,610.42",73373-RESIDENTIAL & NURSING CARE PLACEMENTS,LD COMMISSIONING,Third Party Payments,Revenue
Walsall Council,http://opendatacommunities.org/id/metropolitan-district-council/walsall,WC75-53,31/12/2016,Adult Social Care,ACCORD HOUSING ASSOCIATION LTD#135,13/12/2016,"6,408.73",73373-RESIDENTIAL & NURSING CARE PLACEMENTS,LD COMMISSIONING,Third Party Payments,Revenue
Walsall Council,http://opendatacommunities.org/id/metropolitan-district-council/walsall,WC75-54,31/12/2016,Adult Social Care,ACCORD HOUSING ASSOCIATION LTD#135,13/12/2016,"6,408.73",73373-RESIDENTIAL & NURSING CARE PLACEMENTS,LD COMMISSIONING,Third Party Payments,Revenue
Walsall Council,http://opendatacommunities.org/id/metropolitan-district-council/walsall,WC75-55,31/12/2016,Adult Social Care,ACCORD HOUSING ASSOCIATION LTD#135,13/12/2016,"6,408.73",73373-RESIDENTIAL & NURSING CARE PLACEMENTS,LD COMMISSIONING,Third Party Payments,Revenue
Walsall Council,http://opendatacommunities.org/id/metropolitan-district-council/walsall,WC75-56,31/12/2016,Adult Social Care,ACCORD HOUSING ASSOCIATION LTD#135,06/12/2016,"6,809.14",73373-RESIDENTIAL & NURSING CARE PLACEMENTS,OP COMMISSIONING,Third Party Payments,Revenue
Walsall Council,http://opendatacommunities.org/id/metropolitan-district-council/walsall,WC75-57,31/12/2016,Adult Social Care,ACCORD HOUSING ASSOCIATION LTD#135,05/12/2016,"9,064.07",73372-DOMICILIARY CARE,OP COMMISSIONING,Third Party Payments,Revenue
Walsall Council,http://opendatacommunities.org/id/metropolitan-district-council/walsall,WC75-58,31/12/2016,Adult Social Care,ACCORD HOUSING ASSOCIATION LTD#135,05/12/2016,"31,127.99",73372-DOMICILIARY CARE,OP COMMISSIONING,Third Party Payments,Revenue
Walsall Council,http://opendatacommunities.org/id/metropolitan-district-council/walsall,WC75-59,31/12/2016,Economy & Environment,ACCORD HOUSING ASSOCIATION LTD#135,16/12/2016,"167,383.92",66500-GRANTS TO OTHER ORGS,CITY DEAL WELFARE PILOT,Third Party Payments,Revenue
Walsall Council,http://opendatacommunities.org/id/metropolitan-district-council/walsall,WC75-60,31/12/2016,Adult Social Care,ACE CARE AGENCY,21/12/2016,480.63,73372-DOMICILIARY CARE,OP COMMISSIONING,Third Party Payments,Revenue
Walsall Council,http://opendatacommunities.org/id/metropolitan-district-council/walsall,WC75-61,31/12/2016,Adult Social Care,ACE CARE AGENCY,16/12/2016,489.96,73372-DOMICILIARY CARE,OP COMMISSIONING,Third Party Payments,Revenue
Walsall Council,http://opendatacommunities.org/id/metropolitan-district-council/walsall,WC75-62,31/12/2016,Adult Social Care,ACE CARE AGENCY,21/12/2016,509.01,73372-DOMICILIARY CARE,OP COMMISSIONING,Third Party Payments,Revenue
Walsall Council,http://opendatacommunities.org/id/metropolitan-district-council/walsall,WC75-63,31/12/2016,Adult Social Care,ACE CARE AGENCY,21/12/2016,647.52,73372-DOMICILIARY CARE,MH COMMISSIONING,Third Party Payments,Revenue
Walsall Council,http://opendatacommunities.org/id/metropolitan-district-council/walsall,WC75-64,31/12/2016,Adult Social Care,ACE CARE AGENCY,21/12/2016,728,73372-DOMICILIARY CARE,OP COMMISSIONING,Third Party Payments,Revenue
Walsall Council,http://opendatacommunities.org/id/metropolitan-district-council/walsall,WC75-65,31/12/2016,Adult Social Care,ACE CARE AGENCY,21/12/2016,819,73372-DOMICILIARY CARE,OP COMMISSIONING,Third Party Payments,Revenue
Walsall Council,http://opendatacommunities.org/id/metropolitan-district-council/walsall,WC75-66,31/12/2016,Childrens,ACE RADIO CARS,07/12/2016,"1,269.06",52000-WITH DRIVER-HIRE OF VEHICLES,SCHOOL TRANSPORT,Transport,Revenue
Walsall Council,http://opendatacommunities.org/id/metropolitan-district-council/walsall,WC75-67,31/12/2016,Childrens,ACE RADIO CARS,09/12/2016,"2,050.00",52000-WITH DRIVER-HIRE OF VEHICLES,SCHOOL TRANSPORT,Transport,Revenue
Walsall Council,http://opendatacommunities.org/id/metropolitan-district-council/walsall,WC75-68,31/12/2016,Adult Social Care,ACEPAY LTD (COTTAGE NUR HOME),13/12/2016,"2,274.80",73373-RESIDENTIAL & NURSING CARE PLACEMENTS,OP COMMISSIONING,Third Party Payments,Revenue
Walsall Council,http://opendatacommunities.org/id/metropolitan-district-council/walsall,WC75-69,31/12/2016,Adult Social Care,ACEPAY LTD (COTTAGE NUR HOME),13/12/2016,"2,274.80",73373-RESIDENTIAL & NURSING CARE PLACEMENTS,OP COMMISSIONING,Third Party Payments,Revenue
Walsall Council,http://opendatacommunities.org/id/metropolitan-district-council/walsall,WC75-70,31/12/2016,Adult Social Care,ACEPAY LTD (COTTAGE NUR HOME),13/12/2016,"2,274.80",73373-RESIDENTIAL & NURSING CARE PLACEMENTS,OP COMMISSIONING,Third Party Payments,Revenue
Walsall Council,http://opendatacommunities.org/id/metropolitan-district-council/walsall,WC75-71,31/12/2016,Adult Social Care,ACEPAY LTD (COTTAGE NUR HOME),13/12/2016,"2,320.80",73373-RESIDENTIAL & NURSING CARE PLACEMENTS,OP COMMISSIONING,Third Party Payments,Revenue
Walsall Council,http://opendatacommunities.org/id/metropolitan-district-council/walsall,WC75-72,31/12/2016,Adult Social Care,ACEPAY LTD (COTTAGE NUR HOME),13/12/2016,"2,320.80",73373-RESIDENTIAL & NURSING CARE PLACEMENTS,OP COMMISSIONING,Third Party Payments,Revenue
Walsall Council,http://opendatacommunities.org/id/metropolitan-district-council/walsall,WC75-73,31/12/2016,Childrens,ACHIEVEMENT FOR ALL (3AS) LTD,01/12/2016,"14,000.00",30030-EXTERNAL TRAINING,HIGH NEEDS ADDITIONAL TARGETED FUNDING,Employees,Revenue
Walsall Council,http://opendatacommunities.org/id/metropolitan-district-council/walsall,WC75-74,31/12/2016,Adult Social Care,ACORN CARE LTD,20/12/2016,"15,174.19",73373-RESIDENTIAL & NURSING CARE PLACEMENTS,LD COMMISSIONING,Third Party Payments,Revenue
Walsall Council,http://opendatacommunities.org/id/metropolitan-district-council/walsall,WC75-75,31/12/2016,Childrens,ACORN FOSTERING SERVICES LTD,21/12/2016,442.44,76000-TRANSFER PAYMENTS - SOCIAL SERVICES CLIENTS,TRANSITION AND LEAVING CARE,Transfer Payments,Revenue
Walsall Council,http://opendatacommunities.org/id/metropolitan-district-council/walsall,WC75-76,31/12/2016,Adult Social Care,ACORN REST HOME,20/12/2016,"1,620.00",73373-RESIDENTIAL & NURSING CARE PLACEMENTS,OP COMMISSIONING,Third Party Payments,Revenue
Walsall Council,http://opendatacommunities.org/id/metropolitan-district-council/walsall,WC75-77,31/12/2016,Childrens,ACORNS CHILDRENS HOSPICE TRUST,01/12/2016,750,63000-PROFESSIONAL FEES AND SERVICES,DIRECTLY COMMISSIONED NURSING SERVICES,Supplies & Services,Revenue
Walsall Council,http://opendatacommunities.org/id/metropolitan-district-council/walsall,WC75-78,31/12/2016,Adult Social Care,ACTION ON HEARING LOSS,15/12/2016,232.87,60013-DISABLED-EQUIPMENT,SENSORY/DEAF SERVICES,Supplies & Services,Revenue
Walsall Council,http://opendatacommunities.org/id/metropolitan-district-council/walsall,WC75-79,31/12/2016,Adult Social Care,ACTON BANKS LTD,14/12/2016,"1,166.19",73025-PROFESSIONAL SERVICES-PRIV CONTRACTOR & OTHER AGENCIES,REABLEMENT TEAM - HOLLY BANK,Third Party Payments,Revenue
Walsall Council,http://opendatacommunities.org/id/metropolitan-district-council/walsall,WC75-242,31/12/2016,Adult Social Care,REDACTED,12/12/2016,300,76422-DIRECT PAYMENTS TO SOCIAL SERVICES CLIENTS,CARERS SERVICES,Transfer Payments,Revenue
Walsall Council,http://opendatacommunities.org/id/metropolitan-district-council/walsall,WC75-585,31/12/2016,Change and Governance,REDACTED,01/12/2016,300,"40000-REPAIRS,ALTERATIONS & MAINTENANCE-PREM",CENTRALISED MAINTENANCE,Premises,Revenue
Walsall Council,http://opendatacommunities.org/id/metropolitan-district-council/walsall,WC75-586,31/12/2016,Change and Governance,REDACTED,20/12/2016,300,"40000-REPAIRS,ALTERATIONS & MAINTENANCE-PREM",CENTRALISED MAINTENANCE,Premises,Revenue
Walsall Council,http://opendatacommunities.org/id/metropolitan-district-council/walsall,WC75-83,31/12/2016,Childrens,ADOPTION UK,05/12/2016,550,68001-PUBLICITY & ADVERTISING (NOT STAFF ADVERTISING),ADOPTION TEAM,Supplies & Services,Revenue
Walsall Council,http://opendatacommunities.org/id/metropolitan-district-council/walsall,WC75-84,31/12/2016,Childrens,REDACTED,19/12/2016,694.24,74006-HOLIDAY/CHRISTMAS ALLOWANCE-FOSTER CARERS-OTH AGENCY PROVISION,INTERNAL FOSTER CARE PROVISION,Third Party Payments,Revenue
Walsall Council,http://opendatacommunities.org/id/metropolitan-district-council/walsall,WC75-85,31/12/2016,Economy & Environment,ADS ELECTRICAL & HIGHWAY SERVICES LTD,12/12/2016,237.54,63000-PROFESSIONAL FEES AND SERVICES,FESTIVE DECORATIONS,Supplies & Services,Revenue
Walsall Council,http://opendatacommunities.org/id/metropolitan-district-council/walsall,WC75-86,31/12/2016,Economy & Environment,ADS ELECTRICAL & HIGHWAY SERVICES LTD,08/12/2016,258,60534-VEHICLE TESTING STATION-MATERIALS,GROUNDS,Supplies & Services,Revenue
Walsall Council,http://opendatacommunities.org/id/metropolitan-district-council/walsall,WC75-87,31/12/2016,Economy & Environment,ADS ELECTRICAL & HIGHWAY SERVICES LTD,12/12/2016,"1,280.00",63000-PROFESSIONAL FEES AND SERVICES,FESTIVE DECORATIONS,Supplies & Services,Revenue
Walsall Council,http://opendatacommunities.org/id/metropolitan-district-council/walsall,WC75-88,31/12/2016,Economy & Environment,ADS ELECTRICAL & HIGHWAY SERVICES LTD,08/12/2016,"3,460.00",60534-VEHICLE TESTING STATION-MATERIALS,GROUNDS,Supplies & Services,Revenue
Walsall Council,http://opendatacommunities.org/id/metropolitan-district-council/walsall,WC75-89,31/12/2016,Economy & Environment,ADS ELECTRICAL & HIGHWAY SERVICES LTD,12/12/2016,"8,525.00",63000-PROFESSIONAL FEES AND SERVICES,FESTIVE DECORATIONS,Supplies & Services,Revenue
Walsall Council,http://opendatacommunities.org/id/metropolitan-district-council/walsall,WC75-90,31/12/2016,Adult Social Care,ADVANCE HEALTH CARE (UK) LTD,12/12/2016,-412.65,73025-PROFESSIONAL SERVICES-PRIV CONTRACTOR & OTHER AGENCIES,COMMUNITY INTERMEDIATE CARE,Third Party Payments,Revenue
Walsall Council,http://opendatacommunities.org/id/metropolitan-district-council/walsall,WC75-91,31/12/2016,Adult Social Care,ADVANCE HEALTH CARE (UK) LTD,20/12/2016,"1,273.99",73025-PROFESSIONAL SERVICES-PRIV CONTRACTOR & OTHER AGENCIES,COMMUNITY INTERMEDIATE CARE,Third Party Payments,Revenue
Walsall Council,http://opendatacommunities.org/id/metropolitan-district-council/walsall,WC75-92,31/12/2016,Adult Social Care,ADVANCE HEALTH CARE (UK) LTD,20/12/2016,"1,329.66",73025-PROFESSIONAL SERVICES-PRIV CONTRACTOR & OTHER AGENCIES,COMMUNITY INTERMEDIATE CARE,Third Party Payments,Revenue
Walsall Council,http://opendatacommunities.org/id/metropolitan-district-council/walsall,WC75-93,31/12/2016,Adult Social Care,ADVANCE HEALTH CARE (UK) LTD,12/12/2016,"1,342.76",73025-PROFESSIONAL SERVICES-PRIV CONTRACTOR & OTHER AGENCIES,COMMUNITY INTERMEDIATE CARE,Third Party Payments,Revenue
Walsall Council,http://opendatacommunities.org/id/metropolitan-district-council/walsall,WC75-94,31/12/2016,Adult Social Care,ADVANCE HEALTH CARE (UK) LTD,20/12/2016,"1,355.86",73025-PROFESSIONAL SERVICES-PRIV CONTRACTOR & OTHER AGENCIES,COMMUNITY INTERMEDIATE CARE,Third Party Payments,Revenue
Walsall Council,http://opendatacommunities.org/id/metropolitan-district-council/walsall,WC75-95,31/12/2016,Adult Social Care,ADVANCE HEALTH CARE (UK) LTD,12/12/2016,"1,483.59",73025-PROFESSIONAL SERVICES-PRIV CONTRACTOR & OTHER AGENCIES,COMMUNITY INTERMEDIATE CARE,Third Party Payments,Revenue
Walsall Council,http://opendatacommunities.org/id/metropolitan-district-council/walsall,WC75-96,31/12/2016,Adult Social Care,ADVANCE HEALTH CARE (UK) LTD,12/12/2016,"2,983.55",73025-PROFESSIONAL SERVICES-PRIV CONTRACTOR & OTHER AGENCIES,COMMUNITY INTERMEDIATE CARE,Third Party Payments,Revenue
Walsall Council,http://opendatacommunities.org/id/metropolitan-district-council/walsall,WC75-97,31/12/2016,Adult Social Care,ADVANCE HEALTH CARE (UK) LTD,12/12/2016,"3,530.47",73025-PROFESSIONAL SERVICES-PRIV CONTRACTOR & OTHER AGENCIES,COMMUNITY INTERMEDIATE CARE,Third Party Payments,Revenue
Walsall Council,http://opendatacommunities.org/id/metropolitan-district-council/walsall,WC75-98,31/12/2016,Adult Social Care,ADVANCE HEALTH CARE (UK) LTD,12/12/2016,"5,240.00",73025-PROFESSIONAL SERVICES-PRIV CONTRACTOR & OTHER AGENCIES,COMMUNITY INTERMEDIATE CARE,Third Party Payments,Revenue
Walsall Council,http://opendatacommunities.org/id/metropolitan-district-council/walsall,WC75-99,31/12/2016,Adult Social Care,ADVANCE HEALTH CARE (UK) LTD,20/12/2016,"5,240.00",73025-PROFESSIONAL SERVICES-PRIV CONTRACTOR & OTHER AGENCIES,COMMUNITY INTERMEDIATE CARE,Third Party Payments,Revenue
Walsall Council,http://opendatacommunities.org/id/metropolitan-district-council/walsall,WC75-100,31/12/2016,Adult Social Care,ADVANCE HEALTH CARE (UK) LTD,20/12/2016,"5,911.38",73025-PROFESSIONAL SERVICES-PRIV CONTRACTOR & OTHER AGENCIES,COMMUNITY INTERMEDIATE CARE,Third Party Payments,Revenue
Walsall Council,http://opendatacommunities.org/id/metropolitan-district-council/walsall,WC75-101,31/12/2016,Adult Social Care,ADVANCE HEALTH CARE (UK) LTD,05/12/2016,"52,527.80",73372-DOMICILIARY CARE,OP COMMISSIONING,Third Party Payments,Revenue
Walsall Council,http://opendatacommunities.org/id/metropolitan-district-council/walsall,WC75-102,31/12/2016,Economy & Environment,ADVANCE PHARMA LTD T/A PLECK PHARMACY,07/12/2016,292.25,71007-CONTRIBUTION TO PCT,PUBLIC HEALTH BUSINESS SUPPORT,Third Party Payments,Revenue
Walsall Council,http://opendatacommunities.org/id/metropolitan-district-council/walsall,WC75-103,31/12/2016,Economy & Environment,ADVANCE PHARMA LTD T/A PLECK PHARMACY,19/12/2016,316.63,71007-CONTRIBUTION TO PCT,PUBLIC HEALTH BUSINESS SUPPORT,Third Party Payments,Revenue
Walsall Council,http://opendatacommunities.org/id/metropolitan-district-council/walsall,WC75-104,31/12/2016,Childrens,ADVENTURELAND DAY NURSERY,01/12/2016,"8,314.02",66505-OTHER-GRANTS TO OTHER ORGS,EARLY YEARS - 3 YR OLDS,Third Party Payments,Revenue
Walsall Council,http://opendatacommunities.org/id/metropolitan-district-council/walsall,WC75-105,31/12/2016,Adult Social Care,ADVOCACY MATTERS LIMITED,02/12/2016,"13,429.00",70000-SOCIAL SERVICES-FEES TO VOLUNTARY BODIES,COMPLEX NEEDS CONTRACTS/SLA's,Third Party Payments,Revenue
Walsall Council,http://opendatacommunities.org/id/metropolitan-district-council/walsall,WC75-106,31/12/2016,Adult Social Care,ADVOCACY MATTERS LIMITED,02/12/2016,"20,120.00",70000-SOCIAL SERVICES-FEES TO VOLUNTARY BODIES,COMPLEX NEEDS CONTRACTS/SLA's,Third Party Payments,Revenue
Walsall Council,http://opendatacommunities.org/id/metropolitan-district-council/walsall,WC75-107,31/12/2016,Economy & Environment,AECOM LIMITED,02/12/2016,"25,475.00",01002-PROJECT FEES,CFR 1072 M6 JUNCTION 10,Capital,Capital
Walsall Council,http://opendatacommunities.org/id/metropolitan-district-council/walsall,WC75-1388,31/12/2016,Change and Governance,REDACTED,07/12/2016,"15,461.30",01045-PRIVATE GRANTS,CFR 826 DISABLED FACILITIES GRANTS (SOCIAL SERVICES),Capital,Capital
Walsall Council,http://opendatacommunities.org/id/metropolitan-district-council/walsall,WC75-1364,31/12/2016,Childrens,REDACTED,02/12/2016,"1,095.00",63102-CONSULTANTS FEES - CORPORATE,CHILDRENS FUND,Supplies & Services,Revenue
Walsall Council,http://opendatacommunities.org/id/metropolitan-district-council/walsall,WC75-110,31/12/2016,Childrens,AJK TRAVEL,02/12/2016,"19,882.28",52000-WITH DRIVER-HIRE OF VEHICLES,SCHOOL TRANSPORT,Transport,Revenue
Walsall Council,http://opendatacommunities.org/id/metropolitan-district-council/walsall,WC75-111,31/12/2016,Childrens,ALAN CRITCHLEY ASSOCIATES,02/12/2016,"4,800.00",63102-CONSULTANTS FEES - CORPORATE,SAFEGUARDING BOARD,Supplies & Services,Revenue
Walsall Council,http://opendatacommunities.org/id/metropolitan-district-council/walsall,WC75-112,31/12/2016,Economy & Environment,ALBEMARLE,09/12/2016,"1,800.00",63000-PROFESSIONAL FEES AND SERVICES,FOREST ARTS CENTRE,Supplies & Services,Revenue
Walsall Council,http://opendatacommunities.org/id/metropolitan-district-council/walsall,WC75-113,31/12/2016,Childrens,ALBRIGHTON CARE LTD,20/12/2016,"11,049.29",74036-EXTERNAL RESIDENTIAL CARE-OTH AGENCY PROVISION,INDEPENDENT RESIDENTIAL HOMES,Third Party Payments,Revenue
Walsall Council,http://opendatacommunities.org/id/metropolitan-district-council/walsall,WC75-114,31/12/2016,Adult Social Care,ALDERGROVE MANOR LTD,20/12/2016,"-1,220.70",73373-RESIDENTIAL & NURSING CARE PLACEMENTS,MH COMMISSIONING,Third Party Payments,Revenue
Walsall Council,http://opendatacommunities.org/id/metropolitan-district-council/walsall,WC75-115,31/12/2016,Adult Social Care,ALDERGROVE MANOR LTD,20/12/2016,660.38,73373-RESIDENTIAL & NURSING CARE PLACEMENTS,MH COMMISSIONING,Third Party Payments,Revenue
Walsall Council,http://opendatacommunities.org/id/metropolitan-district-council/walsall,WC75-116,31/12/2016,Adult Social Care,ALDERGROVE MANOR LTD,20/12/2016,"1,839.68",73373-RESIDENTIAL & NURSING CARE PLACEMENTS,MH COMMISSIONING,Third Party Payments,Revenue
Walsall Council,http://opendatacommunities.org/id/metropolitan-district-council/walsall,WC75-117,31/12/2016,Adult Social Care,ALDERGROVE MANOR LTD,20/12/2016,"1,839.68",73373-RESIDENTIAL & NURSING CARE PLACEMENTS,MH COMMISSIONING,Third Party Payments,Revenue
Walsall Council,http://opendatacommunities.org/id/metropolitan-district-council/walsall,WC75-118,31/12/2016,Adult Social Care,ALDERGROVE MANOR LTD,20/12/2016,"1,839.68",73373-RESIDENTIAL & NURSING CARE PLACEMENTS,MH COMMISSIONING,Third Party Payments,Revenue
Walsall Council,http://opendatacommunities.org/id/metropolitan-district-council/walsall,WC75-119,31/12/2016,Adult Social Care,ALDERGROVE MANOR LTD,20/12/2016,"2,400.00",73373-RESIDENTIAL & NURSING CARE PLACEMENTS,MH COMMISSIONING,Third Party Payments,Revenue
Walsall Council,http://opendatacommunities.org/id/metropolitan-district-council/walsall,WC75-120,31/12/2016,Change and Governance,ALDRIDGE SHED,14/12/2016,"1,057.17",62515-MISCELLANEOUS SUPPLIES,AREA 2 - ALDRIDGE/STREETLY/PHEASEY,Supplies & Services,Revenue
Walsall Council,http://opendatacommunities.org/id/metropolitan-district-council/walsall,WC75-1096,31/12/2016,Economy & Environment,REDACTED,19/12/2016,589.4,63000-PROFESSIONAL FEES AND SERVICES,CORONERS SERVICE,Supplies & Services,Revenue
Walsall Council,http://opendatacommunities.org/id/metropolitan-district-council/walsall,WC75-1099,31/12/2016,Economy & Environment,REDACTED,06/12/2016,664.1,63000-PROFESSIONAL FEES AND SERVICES,CORONERS SERVICE,Supplies & Services,Revenue
Walsall Council,http://opendatacommunities.org/id/metropolitan-district-council/walsall,WC75-1100,31/12/2016,Economy & Environment,REDACTED,14/12/2016,"1,267.00",63000-PROFESSIONAL FEES AND SERVICES,CORONERS SERVICE,Supplies & Services,Revenue
Walsall Council,http://opendatacommunities.org/id/metropolitan-district-council/walsall,WC75-1101,31/12/2016,Economy & Environment,REDACTED,12/12/2016,595.9,63000-PROFESSIONAL FEES AND SERVICES,CORONERS SERVICE,Supplies & Services,Revenue
Walsall Council,http://opendatacommunities.org/id/metropolitan-district-council/walsall,WC75-1110,31/12/2016,Economy & Environment,REDACTED,02/12/2016,595.9,63000-PROFESSIONAL FEES AND SERVICES,CORONERS SERVICE,Supplies & Services,Revenue
Walsall Council,http://opendatacommunities.org/id/metropolitan-district-council/walsall,WC75-126,31/12/2016,Childrens,REDACTED,19/12/2016,571.44,74006-HOLIDAY/CHRISTMAS ALLOWANCE-FOSTER CARERS-OTH AGENCY PROVISION,INTERNAL FOSTER CARE PROVISION,Third Party Payments,Revenue
Walsall Council,http://opendatacommunities.org/id/metropolitan-district-council/walsall,WC75-127,31/12/2016,Childrens,REDACTED,19/12/2016,552.96,74006-HOLIDAY/CHRISTMAS ALLOWANCE-FOSTER CARERS-OTH AGENCY PROVISION,INTERNAL FOSTER CARE PROVISION,Third Party Payments,Revenue
Walsall Council,http://opendatacommunities.org/id/metropolitan-district-council/walsall,WC75-128,31/12/2016,Childrens,ALL SAINTS NATIONAL ACADEMY #1,22/12/2016,"2,871.55",66502-TOP UP FUNDING -GRANTS TO SCHOOLS,BLOXWICH C.E. JMI PRIMARY SCHOOL,Third Party Payments,Revenue
Walsall Council,http://opendatacommunities.org/id/metropolitan-district-council/walsall,WC75-129,31/12/2016,Adult Social Care,ALLSORTS OFFICE SUPPLIES LTD,02/12/2016,"1,192.00",60000-FURNITURE & EQUIPMENT,SENIOR MANAGEMENT TEAM,Supplies & Services,Revenue
Walsall Council,http://opendatacommunities.org/id/metropolitan-district-council/walsall,WC75-130,31/12/2016,Economy & Environment,ALLSORTS OFFICE SUPPLIES LTD,21/12/2016,"4,275.00","40000-REPAIRS,ALTERATIONS & MAINTENANCE-PREM",SMARTER WORKPLACES WORKPLACE SOLUTIONS,Premises,Revenue
Walsall Council,http://opendatacommunities.org/id/metropolitan-district-council/walsall,WC75-131,31/12/2016,Economy & Environment,ALLSORTS OFFICE SUPPLIES LTD,21/12/2016,"5,104.00","40000-REPAIRS,ALTERATIONS & MAINTENANCE-PREM",SMARTER WORKPLACES WORKPLACE SOLUTIONS,Premises,Revenue
Walsall Council,http://opendatacommunities.org/id/metropolitan-district-council/walsall,WC75-132,31/12/2016,Adult Social Care,ALMA COURT,13/12/2016,"6,316.87",73373-RESIDENTIAL & NURSING CARE PLACEMENTS,MH COMMISSIONING,Third Party Payments,Revenue
Walsall Council,http://opendatacommunities.org/id/metropolitan-district-council/walsall,WC75-133,31/12/2016,Childrens,ALMOZENE NURSERY & CHILDRENS CENTRE,01/12/2016,572.13,66505-OTHER-GRANTS TO OTHER ORGS,EARLY YEARS - 2 YR OLDS,Third Party Payments,Revenue
Walsall Council,http://opendatacommunities.org/id/metropolitan-district-council/walsall,WC75-134,31/12/2016,Childrens,ALMOZENE NURSERY & CHILDRENS CENTRE,01/12/2016,"2,771.34",66505-OTHER-GRANTS TO OTHER ORGS,EARLY YEARS - 3 YR OLDS,Third Party Payments,Revenue
Walsall Council,http://opendatacommunities.org/id/metropolitan-district-council/walsall,WC75-135,31/12/2016,Childrens,ALPHA HAIR DESIGN ACADEMY,20/12/2016,"1,750.00",60500-GENERAL MATERIALS,PUPIL REFERAL UNIT EXCLUSIONS,Supplies & Services,Revenue
Walsall Council,http://opendatacommunities.org/id/metropolitan-district-council/walsall,WC75-136,31/12/2016,Childrens,ALPHA HAIR DESIGN ACADEMY,20/12/2016,"1,850.00",60500-GENERAL MATERIALS,PUPIL REFERAL UNIT EXCLUSIONS,Supplies & Services,Revenue
Walsall Council,http://opendatacommunities.org/id/metropolitan-district-council/walsall,WC75-137,31/12/2016,Childrens,ALPHA HAIR DESIGN ACADEMY,20/12/2016,"2,200.00",60500-GENERAL MATERIALS,PUPIL REFERAL UNIT EXCLUSIONS,Supplies & Services,Revenue
Walsall Council,http://opendatacommunities.org/id/metropolitan-district-council/walsall,WC75-138,31/12/2016,Childrens,ALPHA HAIR DESIGN ACADEMY,20/12/2016,"2,206.00",66502-TOP UP FUNDING -GRANTS TO SCHOOLS,INDEPENDENT PROVIDERS - POST SCHOOL,Third Party Payments,Revenue
Walsall Council,http://opendatacommunities.org/id/metropolitan-district-council/walsall,WC75-139,31/12/2016,Childrens,ALPHA HAIR DESIGN ACADEMY,20/12/2016,"2,206.00",66502-TOP UP FUNDING -GRANTS TO SCHOOLS,INDEPENDENT PROVIDERS - POST SCHOOL,Third Party Payments,Revenue
Walsall Council,http://opendatacommunities.org/id/metropolitan-district-council/walsall,WC75-140,31/12/2016,Childrens,ALPHA HAIR DESIGN ACADEMY,20/12/2016,"2,206.00",66502-TOP UP FUNDING -GRANTS TO SCHOOLS,INDEPENDENT PROVIDERS - POST SCHOOL,Third Party Payments,Revenue
Walsall Council,http://opendatacommunities.org/id/metropolitan-district-council/walsall,WC75-141,31/12/2016,Adult Social Care,ALPHA HEALTH CARE LTD,20/12/2016,"1,620.00",73373-RESIDENTIAL & NURSING CARE PLACEMENTS,OP COMMISSIONING,Third Party Payments,Revenue
Walsall Council,http://opendatacommunities.org/id/metropolitan-district-council/walsall,WC75-142,31/12/2016,Adult Social Care,ALPHA HEALTH CARE LTD,20/12/2016,"1,620.00",73373-RESIDENTIAL & NURSING CARE PLACEMENTS,OP COMMISSIONING,Third Party Payments,Revenue
Walsall Council,http://opendatacommunities.org/id/metropolitan-district-council/walsall,WC75-143,31/12/2016,Adult Social Care,ALPHA HEALTH CARE LTD,20/12/2016,"1,620.00",73373-RESIDENTIAL & NURSING CARE PLACEMENTS,OP COMMISSIONING,Third Party Payments,Revenue
Walsall Council,http://opendatacommunities.org/id/metropolitan-district-council/walsall,WC75-144,31/12/2016,Adult Social Care,ALPHA HEALTH CARE LTD,20/12/2016,"1,620.00",73373-RESIDENTIAL & NURSING CARE PLACEMENTS,OP COMMISSIONING,Third Party Payments,Revenue
Walsall Council,http://opendatacommunities.org/id/metropolitan-district-council/walsall,WC75-145,31/12/2016,Adult Social Care,ALPHA HEALTH CARE LTD,20/12/2016,"1,620.00",73373-RESIDENTIAL & NURSING CARE PLACEMENTS,OP COMMISSIONING,Third Party Payments,Revenue
Walsall Council,http://opendatacommunities.org/id/metropolitan-district-council/walsall,WC75-146,31/12/2016,Adult Social Care,ALPHA HEALTH CARE LTD,13/12/2016,"1,649.80",73373-RESIDENTIAL & NURSING CARE PLACEMENTS,OP COMMISSIONING,Third Party Payments,Revenue
Walsall Council,http://opendatacommunities.org/id/metropolitan-district-council/walsall,WC75-147,31/12/2016,Adult Social Care,ALPHA HEALTH CARE LTD,20/12/2016,"1,649.80",73373-RESIDENTIAL & NURSING CARE PLACEMENTS,OP COMMISSIONING,Third Party Payments,Revenue
Walsall Council,http://opendatacommunities.org/id/metropolitan-district-council/walsall,WC75-148,31/12/2016,Adult Social Care,ALPHA HEALTH CARE LTD,20/12/2016,"1,649.80",73373-RESIDENTIAL & NURSING CARE PLACEMENTS,OP COMMISSIONING,Third Party Payments,Revenue
Walsall Council,http://opendatacommunities.org/id/metropolitan-district-council/walsall,WC75-149,31/12/2016,Adult Social Care,ALPHA HEALTH CARE LTD,20/12/2016,"1,649.80",73373-RESIDENTIAL & NURSING CARE PLACEMENTS,OP COMMISSIONING,Third Party Payments,Revenue
Walsall Council,http://opendatacommunities.org/id/metropolitan-district-council/walsall,WC75-150,31/12/2016,Adult Social Care,ALPHA HEALTH CARE LTD,20/12/2016,"1,649.80",73373-RESIDENTIAL & NURSING CARE PLACEMENTS,OP COMMISSIONING,Third Party Payments,Revenue
Walsall Council,http://opendatacommunities.org/id/metropolitan-district-council/walsall,WC75-151,31/12/2016,Adult Social Care,ALPHA HEALTH CARE LTD,20/12/2016,"1,649.80",73373-RESIDENTIAL & NURSING CARE PLACEMENTS,OP COMMISSIONING,Third Party Payments,Revenue
Walsall Council,http://opendatacommunities.org/id/metropolitan-district-council/walsall,WC75-152,31/12/2016,Adult Social Care,ALPHA HEALTH CARE LTD,20/12/2016,"1,649.80",73373-RESIDENTIAL & NURSING CARE PLACEMENTS,OP COMMISSIONING,Third Party Payments,Revenue
Walsall Council,http://opendatacommunities.org/id/metropolitan-district-council/walsall,WC75-153,31/12/2016,Adult Social Care,ALPHA HEALTH CARE LTD,20/12/2016,"1,649.80",73373-RESIDENTIAL & NURSING CARE PLACEMENTS,MH COMMISSIONING,Third Party Payments,Revenue
Walsall Council,http://opendatacommunities.org/id/metropolitan-district-council/walsall,WC75-154,31/12/2016,Adult Social Care,ALPHA HEALTH CARE LTD,20/12/2016,"1,649.80",73373-RESIDENTIAL & NURSING CARE PLACEMENTS,OP COMMISSIONING,Third Party Payments,Revenue
Walsall Council,http://opendatacommunities.org/id/metropolitan-district-council/walsall,WC75-155,31/12/2016,Adult Social Care,ALPHA HEALTH CARE LTD,20/12/2016,"1,649.80",73373-RESIDENTIAL & NURSING CARE PLACEMENTS,OP COMMISSIONING,Third Party Payments,Revenue
Walsall Council,http://opendatacommunities.org/id/metropolitan-district-council/walsall,WC75-156,31/12/2016,Adult Social Care,ALPHA HEALTH CARE LTD,20/12/2016,"1,649.80",73373-RESIDENTIAL & NURSING CARE PLACEMENTS,OP COMMISSIONING,Third Party Payments,Revenue
Walsall Council,http://opendatacommunities.org/id/metropolitan-district-council/walsall,WC75-157,31/12/2016,Adult Social Care,ALPHA HEALTH CARE LTD,20/12/2016,"1,649.80",73373-RESIDENTIAL & NURSING CARE PLACEMENTS,OP COMMISSIONING,Third Party Payments,Revenue
Walsall Council,http://opendatacommunities.org/id/metropolitan-district-council/walsall,WC75-158,31/12/2016,Adult Social Care,ALPHA HEALTH CARE LTD,20/12/2016,"1,649.80",73373-RESIDENTIAL & NURSING CARE PLACEMENTS,MH COMMISSIONING,Third Party Payments,Revenue
Walsall Council,http://opendatacommunities.org/id/metropolitan-district-council/walsall,WC75-159,31/12/2016,Adult Social Care,ALPHA HEALTH CARE LTD,13/12/2016,"1,767.64",73373-RESIDENTIAL & NURSING CARE PLACEMENTS,OP COMMISSIONING,Third Party Payments,Revenue
Walsall Council,http://opendatacommunities.org/id/metropolitan-district-council/walsall,WC75-160,31/12/2016,Adult Social Care,ALPHA HEALTH CARE LTD,20/12/2016,"1,800.00",73373-RESIDENTIAL & NURSING CARE PLACEMENTS,OP COMMISSIONING,Third Party Payments,Revenue
Walsall Council,http://opendatacommunities.org/id/metropolitan-district-council/walsall,WC75-161,31/12/2016,Adult Social Care,ALPHA HEALTH CARE LTD,20/12/2016,"1,800.00",73373-RESIDENTIAL & NURSING CARE PLACEMENTS,OP COMMISSIONING,Third Party Payments,Revenue
Walsall Council,http://opendatacommunities.org/id/metropolitan-district-council/walsall,WC75-162,31/12/2016,Adult Social Care,ALPHA HEALTH CARE LTD,20/12/2016,"1,800.00",73373-RESIDENTIAL & NURSING CARE PLACEMENTS,OP COMMISSIONING,Third Party Payments,Revenue
Walsall Council,http://opendatacommunities.org/id/metropolitan-district-council/walsall,WC75-163,31/12/2016,Adult Social Care,ALPHA HEALTH CARE LTD,20/12/2016,"2,095.00",73373-RESIDENTIAL & NURSING CARE PLACEMENTS,OP COMMISSIONING,Third Party Payments,Revenue
Walsall Council,http://opendatacommunities.org/id/metropolitan-district-council/walsall,WC75-164,31/12/2016,Adult Social Care,ALPHA HEALTH CARE LTD,20/12/2016,"2,326.00",73373-RESIDENTIAL & NURSING CARE PLACEMENTS,MH COMMISSIONING,Third Party Payments,Revenue
Walsall Council,http://opendatacommunities.org/id/metropolitan-district-council/walsall,WC75-165,31/12/2016,Adult Social Care,ALPHA HEALTH CARE LTD,06/12/2016,"2,764.29",73373-RESIDENTIAL & NURSING CARE PLACEMENTS,OP COMMISSIONING,Third Party Payments,Revenue
Walsall Council,http://opendatacommunities.org/id/metropolitan-district-council/walsall,WC75-166,31/12/2016,Adult Social Care,ALPHA HEALTH CARE LTD,20/12/2016,"2,864.28",73373-RESIDENTIAL & NURSING CARE PLACEMENTS,MH COMMISSIONING,Third Party Payments,Revenue
Walsall Council,http://opendatacommunities.org/id/metropolitan-district-council/walsall,WC75-167,31/12/2016,Adult Social Care,ALPHA HEALTH CARE LTD,13/12/2016,"3,166.43",73373-RESIDENTIAL & NURSING CARE PLACEMENTS,MH COMMISSIONING,Third Party Payments,Revenue
Walsall Council,http://opendatacommunities.org/id/metropolitan-district-council/walsall,WC75-168,31/12/2016,Adult Social Care,ALPHA HEALTH CARE LTD,20/12/2016,"5,800.00",73373-RESIDENTIAL & NURSING CARE PLACEMENTS,MH COMMISSIONING,Third Party Payments,Revenue
Walsall Council,http://opendatacommunities.org/id/metropolitan-district-council/walsall,WC75-169,31/12/2016,Childrens,ALUMWELLIES NURSERY,15/12/2016,800,63120-CRECHE FACILITIES-SERVICES-FEES,BUDDY COSTS 0-5,Supplies & Services,Revenue
Walsall Council,http://opendatacommunities.org/id/metropolitan-district-council/walsall,WC75-170,31/12/2016,Childrens,ALUMWELLIES NURSERY,15/12/2016,"2,289.60",63120-CRECHE FACILITIES-SERVICES-FEES,BUDDY COSTS 0-5,Supplies & Services,Revenue
Walsall Council,http://opendatacommunities.org/id/metropolitan-district-council/walsall,WC75-171,31/12/2016,Childrens,AMAH NURSERIES LIMITED T/A BANANA MOON WALSALL,01/12/2016,"2,187.90",66505-OTHER-GRANTS TO OTHER ORGS,EARLY YEARS - 3 YR OLDS,Third Party Payments,Revenue
Walsall Council,http://opendatacommunities.org/id/metropolitan-district-council/walsall,WC75-172,31/12/2016,Childrens,AMAH NURSERIES LIMITED T/A BANANA MOON WALSALL,01/12/2016,"4,767.75",66505-OTHER-GRANTS TO OTHER ORGS,EARLY YEARS - 2 YR OLDS,Third Party Payments,Revenue
Walsall Council,http://opendatacommunities.org/id/metropolitan-district-council/walsall,WC75-173,31/12/2016,Childrens,REDACTED,19/12/2016,808.04,74006-HOLIDAY/CHRISTMAS ALLOWANCE-FOSTER CARERS-OTH AGENCY PROVISION,INTERNAL FOSTER CARE PROVISION,Third Party Payments,Revenue
Walsall Council,http://opendatacommunities.org/id/metropolitan-district-council/walsall,WC75-174,31/12/2016,Childrens,REDACTED,05/12/2016,540.2,62515-MISCELLANEOUS SUPPLIES,INTERNAL FOSTER CARE PROVISION,Supplies & Services,Revenue
Walsall Council,http://opendatacommunities.org/id/metropolitan-district-council/walsall,WC75-175,31/12/2016,Childrens,REDACTED,05/12/2016,813.65,74006-HOLIDAY/CHRISTMAS ALLOWANCE-FOSTER CARERS-OTH AGENCY PROVISION,INTERNAL FOSTER CARE PROVISION,Third Party Payments,Revenue
Walsall Council,http://opendatacommunities.org/id/metropolitan-district-council/walsall,WC75-1113,31/12/2016,Economy & Environment,REDACTED,02/12/2016,"1,579.50",63000-PROFESSIONAL FEES AND SERVICES,CORONERS SERVICE,Supplies & Services,Revenue
Walsall Council,http://opendatacommunities.org/id/metropolitan-district-council/walsall,WC75-177,31/12/2016,Economy & Environment,AMEY LG LIMITED,07/12/2016,245.55,01006-SITE WORKS MAIN CONTRACTORS,CFR 1072 TRANSPORTATION GROWTH DEAL ACCESSING GROWTH,Capital,Capital
Walsall Council,http://opendatacommunities.org/id/metropolitan-district-council/walsall,WC75-178,31/12/2016,Economy & Environment,AMEY LG LIMITED,02/12/2016,517.75,73025-PROFESSIONAL SERVICES-PRIV CONTRACTOR & OTHER AGENCIES,SECTION 38 OF HIGHWAYS ACT - SUPERVISION,Third Party Payments,Revenue
Walsall Council,http://opendatacommunities.org/id/metropolitan-district-council/walsall,WC75-179,31/12/2016,Economy & Environment,AMEY LG LIMITED,02/12/2016,616.57,73002-SECURITY-PRIV CONTRACTOR FEES,TRAFFIC CONTROL,Third Party Payments,Revenue
Walsall Council,http://opendatacommunities.org/id/metropolitan-district-council/walsall,WC75-180,31/12/2016,Economy & Environment,AMEY LG LIMITED,08/12/2016,"6,113.70",73025-PROFESSIONAL SERVICES-PRIV CONTRACTOR & OTHER AGENCIES,TRAFFIC MANAGEMENT,Third Party Payments,Revenue
Walsall Council,http://opendatacommunities.org/id/metropolitan-district-council/walsall,WC75-181,31/12/2016,Economy & Environment,AMEY LG LIMITED,09/12/2016,"9,289.68",01009-SITE WORKS - OTHER CONTRACTORS,CFR 1072 TRANSPORTATION GROWTH DEAL MANAGING SHORT TRIPS,Capital,Capital
Walsall Council,http://opendatacommunities.org/id/metropolitan-district-council/walsall,WC75-182,31/12/2016,Economy & Environment,AMEY LG LIMITED,02/12/2016,"18,285.93",01028-OTHER PURCHASE COSTS,CFR 1037 ACTIVE LIVING OAK PARK (PRUDENTIAL),Capital,Capital
Walsall Council,http://opendatacommunities.org/id/metropolitan-district-council/walsall,WC75-183,31/12/2016,Economy & Environment,AMEY LG LIMITED,07/12/2016,"23,163.39",01009-SITE WORKS - OTHER CONTRACTORS,CFR 1121 MANAGING SHORT TRIPS,Capital,Capital
Walsall Council,http://opendatacommunities.org/id/metropolitan-district-council/walsall,WC75-184,31/12/2016,Adult Social Care,AMG NURSING CARE SERVICES,01/12/2016,"-3,908.58",73374-SUPPORTED & OTHER ACCOMMODATION,LD COMMISSIONING,Third Party Payments,Revenue
Walsall Council,http://opendatacommunities.org/id/metropolitan-district-council/walsall,WC75-185,31/12/2016,Childrens,AMG NURSING CARE SERVICES,12/12/2016,"1,110.72",63000-PROFESSIONAL FEES AND SERVICES,DIRECTLY COMMISSIONED NURSING SERVICES,Supplies & Services,Revenue
Walsall Council,http://opendatacommunities.org/id/metropolitan-district-council/walsall,WC75-186,31/12/2016,Childrens,AMG NURSING CARE SERVICES,21/12/2016,"1,904.24",63000-PROFESSIONAL FEES AND SERVICES,DIRECTLY COMMISSIONED NURSING SERVICES,Supplies & Services,Revenue
Walsall Council,http://opendatacommunities.org/id/metropolitan-district-council/walsall,WC75-187,31/12/2016,Childrens,AMG NURSING CARE SERVICES,07/12/2016,"2,274.48",63000-PROFESSIONAL FEES AND SERVICES,DIRECTLY COMMISSIONED NURSING SERVICES,Supplies & Services,Revenue
Walsall Council,http://opendatacommunities.org/id/metropolitan-district-council/walsall,WC75-188,31/12/2016,Childrens,AMG NURSING CARE SERVICES,15/12/2016,"2,274.48",63000-PROFESSIONAL FEES AND SERVICES,DIRECTLY COMMISSIONED NURSING SERVICES,Supplies & Services,Revenue
Walsall Council,http://opendatacommunities.org/id/metropolitan-district-council/walsall,WC75-189,31/12/2016,Childrens,AMG NURSING CARE SERVICES,21/12/2016,"3,014.96",63000-PROFESSIONAL FEES AND SERVICES,DIRECTLY COMMISSIONED NURSING SERVICES,Supplies & Services,Revenue
Walsall Council,http://opendatacommunities.org/id/metropolitan-district-council/walsall,WC75-190,31/12/2016,Adult Social Care,AMG NURSING CARE SERVICES,12/12/2016,"3,640.00",73374-SUPPORTED & OTHER ACCOMMODATION,PD COMMISSIONING,Third Party Payments,Revenue
Walsall Council,http://opendatacommunities.org/id/metropolitan-district-council/walsall,WC75-191,31/12/2016,Adult Social Care,AMG NURSING CARE SERVICES,01/12/2016,"3,859.20",73374-SUPPORTED & OTHER ACCOMMODATION,PD COMMISSIONING,Third Party Payments,Revenue
Walsall Council,http://opendatacommunities.org/id/metropolitan-district-council/walsall,WC75-192,31/12/2016,Adult Social Care,AMG NURSING CARE SERVICES,01/12/2016,"3,926.40",73374-SUPPORTED & OTHER ACCOMMODATION,PD COMMISSIONING,Third Party Payments,Revenue
Walsall Council,http://opendatacommunities.org/id/metropolitan-district-council/walsall,WC75-193,31/12/2016,Adult Social Care,AMG NURSING CARE SERVICES,01/12/2016,"3,981.32",73374-SUPPORTED & OTHER ACCOMMODATION,LD COMMISSIONING,Third Party Payments,Revenue
Walsall Council,http://opendatacommunities.org/id/metropolitan-district-council/walsall,WC75-194,31/12/2016,Adult Social Care,AMG NURSING CARE SERVICES,01/12/2016,"3,981.82",73374-SUPPORTED & OTHER ACCOMMODATION,LD COMMISSIONING,Third Party Payments,Revenue
Walsall Council,http://opendatacommunities.org/id/metropolitan-district-council/walsall,WC75-195,31/12/2016,Adult Social Care,AMG NURSING CARE SERVICES,01/12/2016,"3,988.80",73374-SUPPORTED & OTHER ACCOMMODATION,PD COMMISSIONING,Third Party Payments,Revenue
Walsall Council,http://opendatacommunities.org/id/metropolitan-district-council/walsall,WC75-196,31/12/2016,Adult Social Care,AMG NURSING CARE SERVICES,01/12/2016,"3,988.80",73374-SUPPORTED & OTHER ACCOMMODATION,LD COMMISSIONING,Third Party Payments,Revenue
Walsall Council,http://opendatacommunities.org/id/metropolitan-district-council/walsall,WC75-197,31/12/2016,Adult Social Care,AMG NURSING CARE SERVICES,01/12/2016,"3,988.80",73374-SUPPORTED & OTHER ACCOMMODATION,LD COMMISSIONING,Third Party Payments,Revenue
Walsall Council,http://opendatacommunities.org/id/metropolitan-district-council/walsall,WC75-198,31/12/2016,Adult Social Care,AMG NURSING CARE SERVICES,01/12/2016,"4,040.32",73374-SUPPORTED & OTHER ACCOMMODATION,LD COMMISSIONING,Third Party Payments,Revenue
Walsall Council,http://opendatacommunities.org/id/metropolitan-district-council/walsall,WC75-199,31/12/2016,Adult Social Care,AMG NURSING CARE SERVICES,01/12/2016,"4,066.36",73374-SUPPORTED & OTHER ACCOMMODATION,LD COMMISSIONING,Third Party Payments,Revenue
Walsall Council,http://opendatacommunities.org/id/metropolitan-district-council/walsall,WC75-200,31/12/2016,Adult Social Care,AMG NURSING CARE SERVICES,01/12/2016,"4,101.76",73374-SUPPORTED & OTHER ACCOMMODATION,LD COMMISSIONING,Third Party Payments,Revenue
Walsall Council,http://opendatacommunities.org/id/metropolitan-district-council/walsall,WC75-201,31/12/2016,Adult Social Care,AMG NURSING CARE SERVICES,12/12/2016,"10,695.74",73374-SUPPORTED & OTHER ACCOMMODATION,OP COMMISSIONING,Third Party Payments,Revenue
Walsall Council,http://opendatacommunities.org/id/metropolitan-district-council/walsall,WC75-202,31/12/2016,Adult Social Care,AMG NURSING CARE SERVICES,12/12/2016,"10,711.68",73374-SUPPORTED & OTHER ACCOMMODATION,OP COMMISSIONING,Third Party Payments,Revenue
Walsall Council,http://opendatacommunities.org/id/metropolitan-district-council/walsall,WC75-1114,31/12/2016,Economy & Environment,REDACTED,14/12/2016,"2,216.60",63000-PROFESSIONAL FEES AND SERVICES,CORONERS SERVICE,Supplies & Services,Revenue
Walsall Council,http://opendatacommunities.org/id/metropolitan-district-council/walsall,WC75-204,31/12/2016,Childrens,REDACTED,19/12/2016,925.92,74006-HOLIDAY/CHRISTMAS ALLOWANCE-FOSTER CARERS-OTH AGENCY PROVISION,INTERNAL FOSTER CARE PROVISION,Third Party Payments,Revenue
Walsall Council,http://opendatacommunities.org/id/metropolitan-district-council/walsall,WC75-205,31/12/2016,Childrens,REDACTED,19/12/2016,425.08,74006-HOLIDAY/CHRISTMAS ALLOWANCE-FOSTER CARERS-OTH AGENCY PROVISION,INTERNAL FOSTER CARE PROVISION,Third Party Payments,Revenue
Walsall Council,http://opendatacommunities.org/id/metropolitan-district-council/walsall,WC75-794,31/12/2016,Childrens,REDACTED,01/12/2016,953.55,66505-OTHER-GRANTS TO OTHER ORGS,EARLY YEARS - 2 YR OLDS,Third Party Payments,Revenue
Walsall Council,http://opendatacommunities.org/id/metropolitan-district-council/walsall,WC75-840,31/12/2016,Childrens,REDACTED,01/12/2016,381.42,66505-OTHER-GRANTS TO OTHER ORGS,EARLY YEARS - 2 YR OLDS,Third Party Payments,Revenue
Walsall Council,http://opendatacommunities.org/id/metropolitan-district-council/walsall,WC75-208,31/12/2016,Adult Social Care,ANCHOR,20/12/2016,"1,620.00",73373-RESIDENTIAL & NURSING CARE PLACEMENTS,OP COMMISSIONING,Third Party Payments,Revenue
Walsall Council,http://opendatacommunities.org/id/metropolitan-district-council/walsall,WC75-209,31/12/2016,Adult Social Care,ANCHOR,20/12/2016,"1,620.00",73373-RESIDENTIAL & NURSING CARE PLACEMENTS,OP COMMISSIONING,Third Party Payments,Revenue
Walsall Council,http://opendatacommunities.org/id/metropolitan-district-council/walsall,WC75-210,31/12/2016,Adult Social Care,ANCHOR,06/12/2016,"1,800.00",73373-RESIDENTIAL & NURSING CARE PLACEMENTS,OP COMMISSIONING,Third Party Payments,Revenue
Walsall Council,http://opendatacommunities.org/id/metropolitan-district-council/walsall,WC75-211,31/12/2016,Adult Social Care,ANCHOR,06/12/2016,"1,800.00",73373-RESIDENTIAL & NURSING CARE PLACEMENTS,OP COMMISSIONING,Third Party Payments,Revenue
Walsall Council,http://opendatacommunities.org/id/metropolitan-district-council/walsall,WC75-212,31/12/2016,Adult Social Care,ANCHOR,06/12/2016,"1,800.00",73373-RESIDENTIAL & NURSING CARE PLACEMENTS,OP COMMISSIONING,Third Party Payments,Revenue
Walsall Council,http://opendatacommunities.org/id/metropolitan-district-council/walsall,WC75-213,31/12/2016,Adult Social Care,ANCHOR,06/12/2016,"1,800.00",73373-RESIDENTIAL & NURSING CARE PLACEMENTS,OP COMMISSIONING,Third Party Payments,Revenue
Walsall Council,http://opendatacommunities.org/id/metropolitan-district-council/walsall,WC75-214,31/12/2016,Adult Social Care,ANCHOR,20/12/2016,"1,800.00",73373-RESIDENTIAL & NURSING CARE PLACEMENTS,OP COMMISSIONING,Third Party Payments,Revenue
Walsall Council,http://opendatacommunities.org/id/metropolitan-district-council/walsall,WC75-215,31/12/2016,Adult Social Care,ANCHOR,20/12/2016,"1,800.00",73373-RESIDENTIAL & NURSING CARE PLACEMENTS,MH COMMISSIONING,Third Party Payments,Revenue
Walsall Council,http://opendatacommunities.org/id/metropolitan-district-council/walsall,WC75-216,31/12/2016,Adult Social Care,ANCHOR,20/12/2016,"1,800.00",73373-RESIDENTIAL & NURSING CARE PLACEMENTS,OP COMMISSIONING,Third Party Payments,Revenue
Walsall Council,http://opendatacommunities.org/id/metropolitan-district-council/walsall,WC75-217,31/12/2016,Adult Social Care,ANCHOR,20/12/2016,"1,800.00",73373-RESIDENTIAL & NURSING CARE PLACEMENTS,OP COMMISSIONING,Third Party Payments,Revenue
Walsall Council,http://opendatacommunities.org/id/metropolitan-district-council/walsall,WC75-218,31/12/2016,Adult Social Care,ANCHOR,20/12/2016,"1,800.00",73373-RESIDENTIAL & NURSING CARE PLACEMENTS,OP COMMISSIONING,Third Party Payments,Revenue
Walsall Council,http://opendatacommunities.org/id/metropolitan-district-council/walsall,WC75-219,31/12/2016,Adult Social Care,ANCHOR,20/12/2016,"1,800.00",73373-RESIDENTIAL & NURSING CARE PLACEMENTS,OP COMMISSIONING,Third Party Payments,Revenue
Walsall Council,http://opendatacommunities.org/id/metropolitan-district-council/walsall,WC75-220,31/12/2016,Adult Social Care,ANCHOR,20/12/2016,"1,800.00",73373-RESIDENTIAL & NURSING CARE PLACEMENTS,OP COMMISSIONING,Third Party Payments,Revenue
Walsall Council,http://opendatacommunities.org/id/metropolitan-district-council/walsall,WC75-221,31/12/2016,Adult Social Care,ANCHOR,20/12/2016,"1,800.00",73373-RESIDENTIAL & NURSING CARE PLACEMENTS,OP COMMISSIONING,Third Party Payments,Revenue
Walsall Council,http://opendatacommunities.org/id/metropolitan-district-council/walsall,WC75-222,31/12/2016,Adult Social Care,ANCHOR,20/12/2016,"1,800.00",73373-RESIDENTIAL & NURSING CARE PLACEMENTS,OP COMMISSIONING,Third Party Payments,Revenue
Walsall Council,http://opendatacommunities.org/id/metropolitan-district-council/walsall,WC75-223,31/12/2016,Adult Social Care,ANCHOR,20/12/2016,"1,800.00",73373-RESIDENTIAL & NURSING CARE PLACEMENTS,OP COMMISSIONING,Third Party Payments,Revenue
Walsall Council,http://opendatacommunities.org/id/metropolitan-district-council/walsall,WC75-224,31/12/2016,Adult Social Care,ANCHOR,20/12/2016,"1,800.00",73373-RESIDENTIAL & NURSING CARE PLACEMENTS,OP COMMISSIONING,Third Party Payments,Revenue
Walsall Council,http://opendatacommunities.org/id/metropolitan-district-council/walsall,WC75-225,31/12/2016,Adult Social Care,ANCHOR,20/12/2016,"1,800.00",73373-RESIDENTIAL & NURSING CARE PLACEMENTS,OP COMMISSIONING,Third Party Payments,Revenue
Walsall Council,http://opendatacommunities.org/id/metropolitan-district-council/walsall,WC75-226,31/12/2016,Adult Social Care,ANCHOR,20/12/2016,"1,800.00",73373-RESIDENTIAL & NURSING CARE PLACEMENTS,MH COMMISSIONING,Third Party Payments,Revenue
Walsall Council,http://opendatacommunities.org/id/metropolitan-district-council/walsall,WC75-227,31/12/2016,Adult Social Care,ANCHOR,20/12/2016,"1,800.00",73373-RESIDENTIAL & NURSING CARE PLACEMENTS,OP COMMISSIONING,Third Party Payments,Revenue
Walsall Council,http://opendatacommunities.org/id/metropolitan-district-council/walsall,WC75-228,31/12/2016,Adult Social Care,ANCHOR,20/12/2016,"1,800.00",73373-RESIDENTIAL & NURSING CARE PLACEMENTS,OP COMMISSIONING,Third Party Payments,Revenue
Walsall Council,http://opendatacommunities.org/id/metropolitan-district-council/walsall,WC75-2180,31/12/2016,Childrens,REDACTED,01/12/2016,"2,479.23",66505-OTHER-GRANTS TO OTHER ORGS,EARLY YEARS - 2 YR OLDS,Third Party Payments,Revenue
Walsall Council,http://opendatacommunities.org/id/metropolitan-district-council/walsall,WC75-230,31/12/2016,Childrens,REDACTED,05/12/2016,906.76,62515-MISCELLANEOUS SUPPLIES,INTERNAL FOSTER CARE PROVISION,Supplies & Services,Revenue
Walsall Council,http://opendatacommunities.org/id/metropolitan-district-council/walsall,WC75-231,31/12/2016,Childrens,REDACTED,05/12/2016,954.79,74006-HOLIDAY/CHRISTMAS ALLOWANCE-FOSTER CARERS-OTH AGENCY PROVISION,INTERNAL FOSTER CARE PROVISION,Third Party Payments,Revenue
Walsall Council,http://opendatacommunities.org/id/metropolitan-district-council/walsall,WC75-2325,31/12/2016,Childrens,REDACTED,01/12/2016,953.55,66505-OTHER-GRANTS TO OTHER ORGS,EARLY YEARS - 2 YR OLDS,Third Party Payments,Revenue
Walsall Council,http://opendatacommunities.org/id/metropolitan-district-council/walsall,WC75-233,31/12/2016,Adult Social Care,ANGEL COURT RESIDENTIAL CARE HOME,13/12/2016,"1,882.14",73373-RESIDENTIAL & NURSING CARE PLACEMENTS,OP COMMISSIONING,Third Party Payments,Revenue
Walsall Council,http://opendatacommunities.org/id/metropolitan-district-council/walsall,WC75-234,31/12/2016,Adult Social Care,ANGEL COURT RESIDENTIAL CARE HOME,13/12/2016,"1,992.85",73373-RESIDENTIAL & NURSING CARE PLACEMENTS,OP COMMISSIONING,Third Party Payments,Revenue
Walsall Council,http://opendatacommunities.org/id/metropolitan-district-council/walsall,WC75-235,31/12/2016,Adult Social Care,ANGEL COURT RESIDENTIAL CARE HOME,13/12/2016,"2,073.85",73373-RESIDENTIAL & NURSING CARE PLACEMENTS,OP COMMISSIONING,Third Party Payments,Revenue
Walsall Council,http://opendatacommunities.org/id/metropolitan-district-council/walsall,WC75-236,31/12/2016,Adult Social Care,ANGEL COURT RESIDENTIAL CARE HOME,13/12/2016,"2,150.07",73373-RESIDENTIAL & NURSING CARE PLACEMENTS,OP COMMISSIONING,Third Party Payments,Revenue
Walsall Council,http://opendatacommunities.org/id/metropolitan-district-council/walsall,WC75-237,31/12/2016,Childrens,REDACTED,19/12/2016,"1,919.76",74006-HOLIDAY/CHRISTMAS ALLOWANCE-FOSTER CARERS-OTH AGENCY PROVISION,INTERNAL FOSTER CARE PROVISION,Third Party Payments,Revenue
Walsall Council,http://opendatacommunities.org/id/metropolitan-district-council/walsall,WC75-238,31/12/2016,Childrens,REDACTED,19/12/2016,349.16,74006-HOLIDAY/CHRISTMAS ALLOWANCE-FOSTER CARERS-OTH AGENCY PROVISION,INTERNAL FOSTER CARE PROVISION,Third Party Payments,Revenue
Walsall Council,http://opendatacommunities.org/id/metropolitan-district-council/walsall,WC75-239,31/12/2016,Childrens,ANGLIA DNA SERVICES LIMITED,15/12/2016,509,63000-PROFESSIONAL FEES AND SERVICES,SAFEGUARDING & FAMILY SUPPORT,Supplies & Services,Revenue
Walsall Council,http://opendatacommunities.org/id/metropolitan-district-council/walsall,WC75-2330,31/12/2016,Childrens,REDACTED,01/12/2016,953.55,66505-OTHER-GRANTS TO OTHER ORGS,EARLY YEARS - 2 YR OLDS,Third Party Payments,Revenue
Walsall Council,http://opendatacommunities.org/id/metropolitan-district-council/walsall,WC75-241,31/12/2016,Childrens,REDACTED,05/12/2016,925,62515-MISCELLANEOUS SUPPLIES,INTERNAL FOSTER CARE PROVISION,Supplies & Services,Revenue
Walsall Council,http://opendatacommunities.org/id/metropolitan-district-council/walsall,WC75-2726,31/12/2016,Childrens,REDACTED,01/12/2016,953.55,66505-OTHER-GRANTS TO OTHER ORGS,EARLY YEARS - 2 YR OLDS,Third Party Payments,Revenue
Walsall Council,http://opendatacommunities.org/id/metropolitan-district-council/walsall,WC75-5141,31/12/2016,Childrens,REDACTED,01/12/2016,381.42,66505-OTHER-GRANTS TO OTHER ORGS,EARLY YEARS - 2 YR OLDS,Third Party Payments,Revenue
Walsall Council,http://opendatacommunities.org/id/metropolitan-district-council/walsall,WC75-813,31/12/2016,Childrens,REDACTED,01/12/2016,776.1,66505-OTHER-GRANTS TO OTHER ORGS,EARLY YEARS - 3 YR OLDS,Third Party Payments,Revenue
Walsall Council,http://opendatacommunities.org/id/metropolitan-district-council/walsall,WC75-841,31/12/2016,Childrens,REDACTED,01/12/2016,776.1,66505-OTHER-GRANTS TO OTHER ORGS,EARLY YEARS - 3 YR OLDS,Third Party Payments,Revenue
Walsall Council,http://opendatacommunities.org/id/metropolitan-district-council/walsall,WC75-246,31/12/2016,Adult Social Care,ANSON COURT RESIDENTIAL HOME,20/12/2016,"1,800.00",73373-RESIDENTIAL & NURSING CARE PLACEMENTS,OP COMMISSIONING,Third Party Payments,Revenue
Walsall Council,http://opendatacommunities.org/id/metropolitan-district-council/walsall,WC75-247,31/12/2016,Adult Social Care,ANSON COURT RESIDENTIAL HOME,20/12/2016,"1,800.00",73373-RESIDENTIAL & NURSING CARE PLACEMENTS,OP COMMISSIONING,Third Party Payments,Revenue
Walsall Council,http://opendatacommunities.org/id/metropolitan-district-council/walsall,WC75-248,31/12/2016,Adult Social Care,ANSON COURT RESIDENTIAL HOME,20/12/2016,"1,800.00",73373-RESIDENTIAL & NURSING CARE PLACEMENTS,MH COMMISSIONING,Third Party Payments,Revenue
Walsall Council,http://opendatacommunities.org/id/metropolitan-district-council/walsall,WC75-249,31/12/2016,Adult Social Care,ANSON COURT RESIDENTIAL HOME,20/12/2016,"1,800.00",73373-RESIDENTIAL & NURSING CARE PLACEMENTS,OP COMMISSIONING,Third Party Payments,Revenue
Walsall Council,http://opendatacommunities.org/id/metropolitan-district-council/walsall,WC75-250,31/12/2016,Adult Social Care,ANSON COURT RESIDENTIAL HOME,20/12/2016,"1,800.00",73373-RESIDENTIAL & NURSING CARE PLACEMENTS,OP COMMISSIONING,Third Party Payments,Revenue
Walsall Council,http://opendatacommunities.org/id/metropolitan-district-council/walsall,WC75-251,31/12/2016,Adult Social Care,ANSON COURT RESIDENTIAL HOME,20/12/2016,"1,800.00",73373-RESIDENTIAL & NURSING CARE PLACEMENTS,OP COMMISSIONING,Third Party Payments,Revenue
Walsall Council,http://opendatacommunities.org/id/metropolitan-district-council/walsall,WC75-252,31/12/2016,Adult Social Care,ANSON COURT RESIDENTIAL HOME,20/12/2016,"1,800.00",73373-RESIDENTIAL & NURSING CARE PLACEMENTS,MH COMMISSIONING,Third Party Payments,Revenue
Walsall Council,http://opendatacommunities.org/id/metropolitan-district-council/walsall,WC75-253,31/12/2016,Adult Social Care,ANSON COURT RESIDENTIAL HOME,20/12/2016,"1,800.00",73373-RESIDENTIAL & NURSING CARE PLACEMENTS,OP COMMISSIONING,Third Party Payments,Revenue
Walsall Council,http://opendatacommunities.org/id/metropolitan-district-council/walsall,WC75-254,31/12/2016,Adult Social Care,ANSON COURT RESIDENTIAL HOME,20/12/2016,"1,800.00",73373-RESIDENTIAL & NURSING CARE PLACEMENTS,MH COMMISSIONING,Third Party Payments,Revenue
Walsall Council,http://opendatacommunities.org/id/metropolitan-district-council/walsall,WC75-255,31/12/2016,Adult Social Care,ANSON COURT RESIDENTIAL HOME,20/12/2016,"1,800.00",73373-RESIDENTIAL & NURSING CARE PLACEMENTS,OP COMMISSIONING,Third Party Payments,Revenue
Walsall Council,http://opendatacommunities.org/id/metropolitan-district-council/walsall,WC75-256,31/12/2016,Adult Social Care,ANSON COURT RESIDENTIAL HOME,20/12/2016,"1,800.00",73373-RESIDENTIAL & NURSING CARE PLACEMENTS,MH COMMISSIONING,Third Party Payments,Revenue
Walsall Council,http://opendatacommunities.org/id/metropolitan-district-council/walsall,WC75-257,31/12/2016,Adult Social Care,ANSON COURT RESIDENTIAL HOME,20/12/2016,"1,800.00",73373-RESIDENTIAL & NURSING CARE PLACEMENTS,OP COMMISSIONING,Third Party Payments,Revenue
Walsall Council,http://opendatacommunities.org/id/metropolitan-district-council/walsall,WC75-258,31/12/2016,Adult Social Care,ANSON COURT RESIDENTIAL HOME,20/12/2016,"1,800.00",73373-RESIDENTIAL & NURSING CARE PLACEMENTS,OP COMMISSIONING,Third Party Payments,Revenue
Walsall Council,http://opendatacommunities.org/id/metropolitan-district-council/walsall,WC75-259,31/12/2016,Adult Social Care,ANSON COURT RESIDENTIAL HOME,20/12/2016,"1,800.00",73373-RESIDENTIAL & NURSING CARE PLACEMENTS,OP COMMISSIONING,Third Party Payments,Revenue
Walsall Council,http://opendatacommunities.org/id/metropolitan-district-council/walsall,WC75-260,31/12/2016,Adult Social Care,ANSON COURT RESIDENTIAL HOME,20/12/2016,"1,800.00",73373-RESIDENTIAL & NURSING CARE PLACEMENTS,OP COMMISSIONING,Third Party Payments,Revenue
Walsall Council,http://opendatacommunities.org/id/metropolitan-district-council/walsall,WC75-261,31/12/2016,Adult Social Care,ANSON COURT RESIDENTIAL HOME,20/12/2016,"1,800.00",73373-RESIDENTIAL & NURSING CARE PLACEMENTS,OP COMMISSIONING,Third Party Payments,Revenue
Walsall Council,http://opendatacommunities.org/id/metropolitan-district-council/walsall,WC75-262,31/12/2016,Adult Social Care,ANSON COURT RESIDENTIAL HOME,20/12/2016,"1,800.00",73373-RESIDENTIAL & NURSING CARE PLACEMENTS,OP COMMISSIONING,Third Party Payments,Revenue
Walsall Council,http://opendatacommunities.org/id/metropolitan-district-council/walsall,WC75-263,31/12/2016,Adult Social Care,ANSON COURT RESIDENTIAL HOME,20/12/2016,"1,800.00",73373-RESIDENTIAL & NURSING CARE PLACEMENTS,OP COMMISSIONING,Third Party Payments,Revenue
Walsall Council,http://opendatacommunities.org/id/metropolitan-district-council/walsall,WC75-264,31/12/2016,Adult Social Care,ANSON COURT RESIDENTIAL HOME,20/12/2016,"1,800.00",73373-RESIDENTIAL & NURSING CARE PLACEMENTS,OP COMMISSIONING,Third Party Payments,Revenue
Walsall Council,http://opendatacommunities.org/id/metropolitan-district-council/walsall,WC75-265,31/12/2016,Adult Social Care,ANSON COURT RESIDENTIAL HOME,20/12/2016,"1,800.00",73373-RESIDENTIAL & NURSING CARE PLACEMENTS,OP COMMISSIONING,Third Party Payments,Revenue
Walsall Council,http://opendatacommunities.org/id/metropolitan-district-council/walsall,WC75-266,31/12/2016,Adult Social Care,ANSON COURT RESIDENTIAL HOME,13/12/2016,"1,880.00",73373-RESIDENTIAL & NURSING CARE PLACEMENTS,OP COMMISSIONING,Third Party Payments,Revenue
Walsall Council,http://opendatacommunities.org/id/metropolitan-district-council/walsall,WC75-267,31/12/2016,Adult Social Care,ANSON COURT RESIDENTIAL HOME,20/12/2016,"1,880.00",73373-RESIDENTIAL & NURSING CARE PLACEMENTS,OP COMMISSIONING,Third Party Payments,Revenue
Walsall Council,http://opendatacommunities.org/id/metropolitan-district-council/walsall,WC75-268,31/12/2016,Adult Social Care,ANSON COURT RESIDENTIAL HOME,13/12/2016,"2,417.14",73373-RESIDENTIAL & NURSING CARE PLACEMENTS,OP COMMISSIONING,Third Party Payments,Revenue
Walsall Council,http://opendatacommunities.org/id/metropolitan-district-council/walsall,WC75-269,31/12/2016,Adult Social Care,ANSON COURT RESIDENTIAL HOME,20/12/2016,"4,880.00",73373-RESIDENTIAL & NURSING CARE PLACEMENTS,MH COMMISSIONING,Third Party Payments,Revenue
Walsall Council,http://opendatacommunities.org/id/metropolitan-district-council/walsall,WC75-270,31/12/2016,Childrens,REDACTED,19/12/2016,669.32,74006-HOLIDAY/CHRISTMAS ALLOWANCE-FOSTER CARERS-OTH AGENCY PROVISION,INTERNAL FOSTER CARE PROVISION,Third Party Payments,Revenue
Walsall Council,http://opendatacommunities.org/id/metropolitan-district-council/walsall,WC75-271,31/12/2016,Childrens,REDACTED,19/12/2016,312.76,74006-HOLIDAY/CHRISTMAS ALLOWANCE-FOSTER CARERS-OTH AGENCY PROVISION,INTERNAL FOSTER CARE PROVISION,Third Party Payments,Revenue
Walsall Council,http://opendatacommunities.org/id/metropolitan-district-council/walsall,WC75-272,31/12/2016,Economy & Environment,APCOA PARKING SERVICES (UK) LTD,19/12/2016,"46,761.59",73025-PROFESSIONAL SERVICES-PRIV CONTRACTOR & OTHER AGENCIES,PARKING SERVICES,Third Party Payments,Revenue
Walsall Council,http://opendatacommunities.org/id/metropolitan-district-council/walsall,WC75-273,31/12/2016,Childrens,APT TRAINING AND CONSULTANCY LTD,02/12/2016,"2,985.00",63000-PROFESSIONAL FEES AND SERVICES,GENERAL MANAGEMENT SUPPORT (INC LEGAL),Supplies & Services,Revenue
Walsall Council,http://opendatacommunities.org/id/metropolitan-district-council/walsall,WC75-274,31/12/2016,Economy & Environment,AQUALYMPIC,08/12/2016,440,34305-AGENCY STAFF-EMPLOYEES,OAK PARK,Employees,Revenue
Walsall Council,http://opendatacommunities.org/id/metropolitan-district-council/walsall,WC75-275,31/12/2016,Economy & Environment,AQUALYMPIC,08/12/2016,737.5,32000-MISC FEES AND EXPENSES,WALSALL GALA CENTRE,Employees,Revenue
Walsall Council,http://opendatacommunities.org/id/metropolitan-district-council/walsall,WC75-276,31/12/2016,Economy & Environment,AQUALYMPIC,20/12/2016,765,34305-AGENCY STAFF-EMPLOYEES,OAK PARK,Employees,Revenue
Walsall Council,http://opendatacommunities.org/id/metropolitan-district-council/walsall,WC75-277,31/12/2016,Economy & Environment,AQUALYMPIC,08/12/2016,"1,242.50",34305-AGENCY STAFF-EMPLOYEES,OAK PARK,Employees,Revenue
Walsall Council,http://opendatacommunities.org/id/metropolitan-district-council/walsall,WC75-278,31/12/2016,Economy & Environment,AQUALYMPIC,15/12/2016,"1,787.50",34305-AGENCY STAFF-EMPLOYEES,OAK PARK,Employees,Revenue
Walsall Council,http://opendatacommunities.org/id/metropolitan-district-council/walsall,WC75-279,31/12/2016,Adult Social Care,ARBORETUM NURSING HOME.,13/12/2016,"2,274.80",73373-RESIDENTIAL & NURSING CARE PLACEMENTS,OP COMMISSIONING,Third Party Payments,Revenue
Walsall Council,http://opendatacommunities.org/id/metropolitan-district-council/walsall,WC75-280,31/12/2016,Adult Social Care,ARBORETUM NURSING HOME.,13/12/2016,"2,274.80",73373-RESIDENTIAL & NURSING CARE PLACEMENTS,OP COMMISSIONING,Third Party Payments,Revenue
Walsall Council,http://opendatacommunities.org/id/metropolitan-district-council/walsall,WC75-281,31/12/2016,Adult Social Care,ARBORETUM NURSING HOME.,13/12/2016,"2,274.80",73373-RESIDENTIAL & NURSING CARE PLACEMENTS,OP COMMISSIONING,Third Party Payments,Revenue
Walsall Council,http://opendatacommunities.org/id/metropolitan-district-council/walsall,WC75-282,31/12/2016,Adult Social Care,ARBORETUM NURSING HOME.,13/12/2016,"2,274.80",73373-RESIDENTIAL & NURSING CARE PLACEMENTS,OP COMMISSIONING,Third Party Payments,Revenue
Walsall Council,http://opendatacommunities.org/id/metropolitan-district-council/walsall,WC75-283,31/12/2016,Adult Social Care,ARBORETUM NURSING HOME.,13/12/2016,"2,319.88",73373-RESIDENTIAL & NURSING CARE PLACEMENTS,OP COMMISSIONING,Third Party Payments,Revenue
Walsall Council,http://opendatacommunities.org/id/metropolitan-district-council/walsall,WC75-284,31/12/2016,Adult Social Care,ARBORETUM NURSING HOME.,13/12/2016,"2,319.88",73373-RESIDENTIAL & NURSING CARE PLACEMENTS,OP COMMISSIONING,Third Party Payments,Revenue
Walsall Council,http://opendatacommunities.org/id/metropolitan-district-council/walsall,WC75-285,31/12/2016,Adult Social Care,ARBORETUM NURSING HOME.,13/12/2016,"2,333.56",73373-RESIDENTIAL & NURSING CARE PLACEMENTS,OP COMMISSIONING,Third Party Payments,Revenue
Walsall Council,http://opendatacommunities.org/id/metropolitan-district-council/walsall,WC75-286,31/12/2016,Adult Social Care,ARBORETUM NURSING HOME.,13/12/2016,"2,843.50",73373-RESIDENTIAL & NURSING CARE PLACEMENTS,OP COMMISSIONING,Third Party Payments,Revenue
Walsall Council,http://opendatacommunities.org/id/metropolitan-district-council/walsall,WC75-287,31/12/2016,Adult Social Care,ARBORETUM NURSING HOME.,13/12/2016,"2,843.50",73373-RESIDENTIAL & NURSING CARE PLACEMENTS,OP COMMISSIONING,Third Party Payments,Revenue
Walsall Council,http://opendatacommunities.org/id/metropolitan-district-council/walsall,WC75-288,31/12/2016,Adult Social Care,ARBORETUM NURSING HOME.,02/12/2016,"14,900.00",73019-PSE'S-PRIV CONTRACTOR FEES,TRANSITIONAL CARE SUPPORT TEAM,Third Party Payments,Revenue
Walsall Council,http://opendatacommunities.org/id/metropolitan-district-council/walsall,WC75-289,31/12/2016,Economy & Environment,ARBURY WALSALL,01/12/2016,444,60500-GENERAL MATERIALS,FLEET,Supplies & Services,Revenue
Walsall Council,http://opendatacommunities.org/id/metropolitan-district-council/walsall,WC75-290,31/12/2016,Economy & Environment,ARCHWAY TCS LTD,01/12/2016,707.5,60537-VEHICLE WASH PLANT-MATERIALS,DEPOT,Supplies & Services,Revenue
Walsall Council,http://opendatacommunities.org/id/metropolitan-district-council/walsall,WC75-291,31/12/2016,Childrens,ARNFIELD CARE LIMITED,14/12/2016,"17,289.01",74036-EXTERNAL RESIDENTIAL CARE-OTH AGENCY PROVISION,INDEPENDENT RESIDENTIAL HOMES,Third Party Payments,Revenue
Walsall Council,http://opendatacommunities.org/id/metropolitan-district-council/walsall,WC75-292,31/12/2016,Economy & Environment,ART REVIEW,12/12/2016,550,68001-PUBLICITY & ADVERTISING (NOT STAFF ADVERTISING),NAG - ART GALLERY MARKETING,Supplies & Services,Revenue
Walsall Council,http://opendatacommunities.org/id/metropolitan-district-council/walsall,WC75-293,31/12/2016,Childrens,ARTHUR M GRIFFITHS & SON LTD,14/12/2016,"250,101.87",01006-SITE WORKS MAIN CONTRACTORS,CFR 929 KING CHARLES PRIMARY SIGNIFICANT ENLARGEMENT,Capital,Capital
Walsall Council,http://opendatacommunities.org/id/metropolitan-district-council/walsall,WC75-294,31/12/2016,Economy & Environment,ASA AWARDS,19/12/2016,291.06,60006-NEW-FURNITURE & EQUIPMENT,OAK PARK,Supplies & Services,Revenue
Walsall Council,http://opendatacommunities.org/id/metropolitan-district-council/walsall,WC75-295,31/12/2016,Economy & Environment,ASA AWARDS,21/12/2016,374.3,60006-NEW-FURNITURE & EQUIPMENT,BLOXWICH LEISURE CENTRE,Supplies & Services,Revenue
Walsall Council,http://opendatacommunities.org/id/metropolitan-district-council/walsall,WC75-296,31/12/2016,Economy & Environment,ASDA PHARMACY,07/12/2016,179.99,71007-CONTRIBUTION TO PCT,PUBLIC HEALTH BUSINESS SUPPORT,Third Party Payments,Revenue
Walsall Council,http://opendatacommunities.org/id/metropolitan-district-council/walsall,WC75-297,31/12/2016,Economy & Environment,ASDA PHARMACY,19/12/2016,189.05,71007-CONTRIBUTION TO PCT,PUBLIC HEALTH BUSINESS SUPPORT,Third Party Payments,Revenue
Walsall Council,http://opendatacommunities.org/id/metropolitan-district-council/walsall,WC75-298,31/12/2016,Economy & Environment,ASDA PHARMACY,07/12/2016,212.4,63000-PROFESSIONAL FEES AND SERVICES,SEXUAL HEALTH,Supplies & Services,Revenue
Walsall Council,http://opendatacommunities.org/id/metropolitan-district-council/walsall,WC75-299,31/12/2016,Economy & Environment,ASDA PHARMACY,07/12/2016,282.05,71007-CONTRIBUTION TO PCT,PUBLIC HEALTH BUSINESS SUPPORT,Third Party Payments,Revenue
Walsall Council,http://opendatacommunities.org/id/metropolitan-district-council/walsall,WC75-300,31/12/2016,Economy & Environment,ASDA PHARMACY,19/12/2016,362.85,63000-PROFESSIONAL FEES AND SERVICES,SEXUAL HEALTH,Supplies & Services,Revenue
Walsall Council,http://opendatacommunities.org/id/metropolitan-district-council/walsall,WC75-301,31/12/2016,Adult Social Care,ASH GRANGE CARE HOME,06/12/2016,799.84,73373-RESIDENTIAL & NURSING CARE PLACEMENTS,OP COMMISSIONING,Third Party Payments,Revenue
Walsall Council,http://opendatacommunities.org/id/metropolitan-district-council/walsall,WC75-302,31/12/2016,Adult Social Care,ASH GRANGE CARE HOME,06/12/2016,"1,620.00",73373-RESIDENTIAL & NURSING CARE PLACEMENTS,OP COMMISSIONING,Third Party Payments,Revenue
Walsall Council,http://opendatacommunities.org/id/metropolitan-district-council/walsall,WC75-303,31/12/2016,Adult Social Care,ASH GRANGE CARE HOME,13/12/2016,"1,620.00",73373-RESIDENTIAL & NURSING CARE PLACEMENTS,OP COMMISSIONING,Third Party Payments,Revenue
Walsall Council,http://opendatacommunities.org/id/metropolitan-district-council/walsall,WC75-304,31/12/2016,Adult Social Care,ASH GRANGE CARE HOME,06/12/2016,"1,688.56",73373-RESIDENTIAL & NURSING CARE PLACEMENTS,OP COMMISSIONING,Third Party Payments,Revenue
Walsall Council,http://opendatacommunities.org/id/metropolitan-district-council/walsall,WC75-305,31/12/2016,Adult Social Care,ASH GRANGE CARE HOME,06/12/2016,"1,863.40",73373-RESIDENTIAL & NURSING CARE PLACEMENTS,OP COMMISSIONING,Third Party Payments,Revenue
Walsall Council,http://opendatacommunities.org/id/metropolitan-district-council/walsall,WC75-306,31/12/2016,Adult Social Care,ASH GRANGE CARE HOME,06/12/2016,"2,288.40",73373-RESIDENTIAL & NURSING CARE PLACEMENTS,OP COMMISSIONING,Third Party Payments,Revenue
Walsall Council,http://opendatacommunities.org/id/metropolitan-district-council/walsall,WC75-307,31/12/2016,Adult Social Care,ASH GRANGE CARE HOME,06/12/2016,"2,288.40",73373-RESIDENTIAL & NURSING CARE PLACEMENTS,OP COMMISSIONING,Third Party Payments,Revenue
Walsall Council,http://opendatacommunities.org/id/metropolitan-district-council/walsall,WC75-308,31/12/2016,Adult Social Care,ASH GRANGE CARE HOME,06/12/2016,"2,288.40",73373-RESIDENTIAL & NURSING CARE PLACEMENTS,OP COMMISSIONING,Third Party Payments,Revenue
Walsall Council,http://opendatacommunities.org/id/metropolitan-district-council/walsall,WC75-309,31/12/2016,Adult Social Care,ASH GRANGE CARE HOME,06/12/2016,"2,288.40",73373-RESIDENTIAL & NURSING CARE PLACEMENTS,OP COMMISSIONING,Third Party Payments,Revenue
Walsall Council,http://opendatacommunities.org/id/metropolitan-district-council/walsall,WC75-310,31/12/2016,Adult Social Care,ASH GRANGE CARE HOME,06/12/2016,"2,288.40",73373-RESIDENTIAL & NURSING CARE PLACEMENTS,OP COMMISSIONING,Third Party Payments,Revenue
Walsall Council,http://opendatacommunities.org/id/metropolitan-district-council/walsall,WC75-311,31/12/2016,Adult Social Care,ASH GRANGE CARE HOME,06/12/2016,"2,288.40",73373-RESIDENTIAL & NURSING CARE PLACEMENTS,OP COMMISSIONING,Third Party Payments,Revenue
Walsall Council,http://opendatacommunities.org/id/metropolitan-district-council/walsall,WC75-312,31/12/2016,Adult Social Care,ASH GRANGE CARE HOME,06/12/2016,"2,288.40",73373-RESIDENTIAL & NURSING CARE PLACEMENTS,MH COMMISSIONING,Third Party Payments,Revenue
Walsall Council,http://opendatacommunities.org/id/metropolitan-district-council/walsall,WC75-313,31/12/2016,Adult Social Care,ASH GRANGE CARE HOME,06/12/2016,"2,288.40",73373-RESIDENTIAL & NURSING CARE PLACEMENTS,OP COMMISSIONING,Third Party Payments,Revenue
Walsall Council,http://opendatacommunities.org/id/metropolitan-district-council/walsall,WC75-314,31/12/2016,Adult Social Care,ASH GRANGE CARE HOME,06/12/2016,"2,288.40",73373-RESIDENTIAL & NURSING CARE PLACEMENTS,OP COMMISSIONING,Third Party Payments,Revenue
Walsall Council,http://opendatacommunities.org/id/metropolitan-district-council/walsall,WC75-315,31/12/2016,Adult Social Care,ASH GRANGE CARE HOME,06/12/2016,"2,288.40",73373-RESIDENTIAL & NURSING CARE PLACEMENTS,OP COMMISSIONING,Third Party Payments,Revenue
Walsall Council,http://opendatacommunities.org/id/metropolitan-district-council/walsall,WC75-316,31/12/2016,Adult Social Care,ASH GRANGE CARE HOME,06/12/2016,"2,288.40",73373-RESIDENTIAL & NURSING CARE PLACEMENTS,OP COMMISSIONING,Third Party Payments,Revenue
Walsall Council,http://opendatacommunities.org/id/metropolitan-district-council/walsall,WC75-317,31/12/2016,Adult Social Care,ASH GRANGE CARE HOME,13/12/2016,"2,372.04",73373-RESIDENTIAL & NURSING CARE PLACEMENTS,OP COMMISSIONING,Third Party Payments,Revenue
Walsall Council,http://opendatacommunities.org/id/metropolitan-district-council/walsall,WC75-318,31/12/2016,Adult Social Care,ASH GRANGE CARE HOME,06/12/2016,"2,488.40",73373-RESIDENTIAL & NURSING CARE PLACEMENTS,OP COMMISSIONING,Third Party Payments,Revenue
Walsall Council,http://opendatacommunities.org/id/metropolitan-district-council/walsall,WC75-319,31/12/2016,Adult Social Care,ASH GRANGE CARE HOME,13/12/2016,"2,488.40",73373-RESIDENTIAL & NURSING CARE PLACEMENTS,OP COMMISSIONING,Third Party Payments,Revenue
Walsall Council,http://opendatacommunities.org/id/metropolitan-district-council/walsall,WC75-320,31/12/2016,Adult Social Care,ASH GRANGE CARE HOME,06/12/2016,"2,504.40",73373-RESIDENTIAL & NURSING CARE PLACEMENTS,MH COMMISSIONING,Third Party Payments,Revenue
Walsall Council,http://opendatacommunities.org/id/metropolitan-district-council/walsall,WC75-321,31/12/2016,Adult Social Care,ASH GRANGE CARE HOME,06/12/2016,"2,504.40",73373-RESIDENTIAL & NURSING CARE PLACEMENTS,MH COMMISSIONING,Third Party Payments,Revenue
Walsall Council,http://opendatacommunities.org/id/metropolitan-district-council/walsall,WC75-322,31/12/2016,Adult Social Care,ASH GRANGE CARE HOME,06/12/2016,"2,504.40",73373-RESIDENTIAL & NURSING CARE PLACEMENTS,MH COMMISSIONING,Third Party Payments,Revenue
Walsall Council,http://opendatacommunities.org/id/metropolitan-district-council/walsall,WC75-323,31/12/2016,Adult Social Care,ASH GRANGE CARE HOME,06/12/2016,"3,120.72",73373-RESIDENTIAL & NURSING CARE PLACEMENTS,OP COMMISSIONING,Third Party Payments,Revenue
Walsall Council,http://opendatacommunities.org/id/metropolitan-district-council/walsall,WC75-324,31/12/2016,Adult Social Care,ASH GRANGE CARE HOME,13/12/2016,"14,487.17",73373-RESIDENTIAL & NURSING CARE PLACEMENTS,OP COMMISSIONING,Third Party Payments,Revenue
Walsall Council,http://opendatacommunities.org/id/metropolitan-district-council/walsall,WC75-325,31/12/2016,Adult Social Care,ASHBOURNE LODGE,13/12/2016,"2,173.99",73373-RESIDENTIAL & NURSING CARE PLACEMENTS,OP COMMISSIONING,Third Party Payments,Revenue
Walsall Council,http://opendatacommunities.org/id/metropolitan-district-council/walsall,WC75-326,31/12/2016,Economy & Environment,ASKEWS AND HOLTS LIBRARY SERVICES LTD,05/12/2016,265.32,60501-LIBRARY BOOKS,LIBRARY STOCK AND PERFORMANCE,Supplies & Services,Revenue
Walsall Council,http://opendatacommunities.org/id/metropolitan-district-council/walsall,WC75-327,31/12/2016,Economy & Environment,ASKEWS AND HOLTS LIBRARY SERVICES LTD,21/12/2016,345.43,60501-LIBRARY BOOKS,LIBRARY STOCK AND PERFORMANCE,Supplies & Services,Revenue
Walsall Council,http://opendatacommunities.org/id/metropolitan-district-council/walsall,WC75-328,31/12/2016,Economy & Environment,ASKEWS AND HOLTS LIBRARY SERVICES LTD,08/12/2016,535.46,60501-LIBRARY BOOKS,LIBRARY STOCK AND PERFORMANCE,Supplies & Services,Revenue
Walsall Council,http://opendatacommunities.org/id/metropolitan-district-council/walsall,WC75-329,31/12/2016,Economy & Environment,ASKEWS AND HOLTS LIBRARY SERVICES LTD,21/12/2016,550.48,60501-LIBRARY BOOKS,LIBRARY STOCK AND PERFORMANCE,Supplies & Services,Revenue
Walsall Council,http://opendatacommunities.org/id/metropolitan-district-council/walsall,WC75-330,31/12/2016,Economy & Environment,ASKEWS AND HOLTS LIBRARY SERVICES LTD,13/12/2016,713.58,60501-LIBRARY BOOKS,LIBRARY STOCK AND PERFORMANCE,Supplies & Services,Revenue
Walsall Council,http://opendatacommunities.org/id/metropolitan-district-council/walsall,WC75-331,31/12/2016,Economy & Environment,ASKEWS AND HOLTS LIBRARY SERVICES LTD,21/12/2016,777.2,60501-LIBRARY BOOKS,LIBRARY STOCK AND PERFORMANCE,Supplies & Services,Revenue
Walsall Council,http://opendatacommunities.org/id/metropolitan-district-council/walsall,WC75-1799,31/12/2016,Childrens,REDACTED,01/12/2016,776.1,66505-OTHER-GRANTS TO OTHER ORGS,EARLY YEARS - 3 YR OLDS,Third Party Payments,Revenue
Walsall Council,http://opendatacommunities.org/id/metropolitan-district-council/walsall,WC75-333,31/12/2016,Childrens,ASTON CHILDRENS CARE,05/12/2016,"10,714.20",74036-EXTERNAL RESIDENTIAL CARE-OTH AGENCY PROVISION,INDEPENDENT RESIDENTIAL HOMES,Third Party Payments,Revenue
Walsall Council,http://opendatacommunities.org/id/metropolitan-district-council/walsall,WC75-334,31/12/2016,Economy & Environment,ATHWAL NEWS LTD,16/12/2016,667.03,60501-LIBRARY BOOKS,LIBRARY STOCK AND PERFORMANCE,Supplies & Services,Revenue
Walsall Council,http://opendatacommunities.org/id/metropolitan-district-council/walsall,WC75-335,31/12/2016,Change and Governance,AUDITEL RENTAL & SERVICE LTD,22/12/2016,925,"40000-REPAIRS,ALTERATIONS & MAINTENANCE-PREM",WALSALL TOWN HALL,Premises,Revenue
Walsall Council,http://opendatacommunities.org/id/metropolitan-district-council/walsall,WC75-336,31/12/2016,Change and Governance,AURORA GRAPHICS & DISPLAYS LTD,16/12/2016,326.34,62008-OUTWORK-PRINT ROOM,PRINTING SERVICES,Supplies & Services,Revenue
Walsall Council,http://opendatacommunities.org/id/metropolitan-district-council/walsall,WC75-337,31/12/2016,Adult Social Care,AUTISM WEST MIDLANDS,06/12/2016,"7,237.75",73373-RESIDENTIAL & NURSING CARE PLACEMENTS,LD COMMISSIONING,Third Party Payments,Revenue
Walsall Council,http://opendatacommunities.org/id/metropolitan-district-council/walsall,WC75-338,31/12/2016,Adult Social Care,AUTISM WEST MIDLANDS,02/12/2016,"21,666.50",70000-SOCIAL SERVICES-FEES TO VOLUNTARY BODIES,COMPLEX NEEDS CONTRACTS/SLA's,Third Party Payments,Revenue
Walsall Council,http://opendatacommunities.org/id/metropolitan-district-council/walsall,WC75-339,31/12/2016,Adult Social Care,AUTISM WEST MIDLANDS 001,06/12/2016,"4,838.06",73373-RESIDENTIAL & NURSING CARE PLACEMENTS,LD COMMISSIONING,Third Party Payments,Revenue
Walsall Council,http://opendatacommunities.org/id/metropolitan-district-council/walsall,WC75-340,31/12/2016,Economy & Environment,AVANTGARDE PHARMA LTD T/A AL-SHAFA PHARMACY,07/12/2016,287.92,71007-CONTRIBUTION TO PCT,PUBLIC HEALTH BUSINESS SUPPORT,Third Party Payments,Revenue
Walsall Council,http://opendatacommunities.org/id/metropolitan-district-council/walsall,WC75-341,31/12/2016,Economy & Environment,AVANTGARDE PHARMA LTD T/A AL-SHAFA PHARMACY,19/12/2016,696.08,71007-CONTRIBUTION TO PCT,PUBLIC HEALTH BUSINESS SUPPORT,Third Party Payments,Revenue
Walsall Council,http://opendatacommunities.org/id/metropolitan-district-council/walsall,WC75-2179,31/12/2016,Childrens,REDACTED,01/12/2016,776.1,66505-OTHER-GRANTS TO OTHER ORGS,EARLY YEARS - 3 YR OLDS,Third Party Payments,Revenue
Walsall Council,http://opendatacommunities.org/id/metropolitan-district-council/walsall,WC75-343,31/12/2016,Economy & Environment,AXIELL LIMITED,02/12/2016,557.2,63000-PROFESSIONAL FEES AND SERVICES,LIBRARY DEVELOPMENT 1,Supplies & Services,Revenue
Walsall Council,http://opendatacommunities.org/id/metropolitan-district-council/walsall,WC75-344,31/12/2016,Economy & Environment,AXIELL LIMITED,07/12/2016,567,63000-PROFESSIONAL FEES AND SERVICES,LIBRARY DEVELOPMENT 1,Supplies & Services,Revenue
Walsall Council,http://opendatacommunities.org/id/metropolitan-district-council/walsall,WC75-2238,31/12/2016,Childrens,REDACTED,01/12/2016,620.88,66505-OTHER-GRANTS TO OTHER ORGS,EARLY YEARS - 3 YR OLDS,Third Party Payments,Revenue
Walsall Council,http://opendatacommunities.org/id/metropolitan-district-council/walsall,WC75-2699,31/12/2016,Childrens,REDACTED,01/12/2016,"3,104.40",66505-OTHER-GRANTS TO OTHER ORGS,EARLY YEARS - 3 YR OLDS,Third Party Payments,Revenue
Walsall Council,http://opendatacommunities.org/id/metropolitan-district-council/walsall,WC75-347,31/12/2016,Childrens,REDACTED,19/12/2016,"1,687.68",74006-HOLIDAY/CHRISTMAS ALLOWANCE-FOSTER CARERS-OTH AGENCY PROVISION,INTERNAL FOSTER CARE PROVISION,Third Party Payments,Revenue
Walsall Council,http://opendatacommunities.org/id/metropolitan-district-council/walsall,WC75-348,31/12/2016,Childrens,REDACTED,05/12/2016,906.76,62515-MISCELLANEOUS SUPPLIES,INTERNAL FOSTER CARE PROVISION,Supplies & Services,Revenue
Walsall Council,http://opendatacommunities.org/id/metropolitan-district-council/walsall,WC75-349,31/12/2016,Childrens,REDACTED,05/12/2016,"1,267.41",74006-HOLIDAY/CHRISTMAS ALLOWANCE-FOSTER CARERS-OTH AGENCY PROVISION,INTERNAL FOSTER CARE PROVISION,Third Party Payments,Revenue
Walsall Council,http://opendatacommunities.org/id/metropolitan-district-council/walsall,WC75-350,31/12/2016,Childrens,REDACTED,09/12/2016,-961.63,74508-INTERNAL FOSTER CARERS-CARER FEES,INTERNAL FOSTER CARE PROVISION,Transfer Payments,Revenue
Walsall Council,http://opendatacommunities.org/id/metropolitan-district-council/walsall,WC75-351,31/12/2016,Childrens,REDACTED,09/12/2016,-9.9,60006-NEW-FURNITURE & EQUIPMENT,INTERNAL FOSTER CARE PROVISION,Supplies & Services,Revenue
Walsall Council,http://opendatacommunities.org/id/metropolitan-district-council/walsall,WC75-2727,31/12/2016,Childrens,REDACTED,01/12/2016,776.1,66505-OTHER-GRANTS TO OTHER ORGS,EARLY YEARS - 3 YR OLDS,Third Party Payments,Revenue
Walsall Council,http://opendatacommunities.org/id/metropolitan-district-council/walsall,WC75-5143,31/12/2016,Childrens,REDACTED,01/12/2016,776.1,66505-OTHER-GRANTS TO OTHER ORGS,EARLY YEARS - 3 YR OLDS,Third Party Payments,Revenue
Walsall Council,http://opendatacommunities.org/id/metropolitan-district-council/walsall,WC75-354,31/12/2016,Childrens,REDACTED,05/12/2016,906.76,62515-MISCELLANEOUS SUPPLIES,INTERNAL FOSTER CARE PROVISION,Supplies & Services,Revenue
Walsall Council,http://opendatacommunities.org/id/metropolitan-district-council/walsall,WC75-1771,31/12/2016,Economy & Environment,REDACTED,02/12/2016,250,63000-PROFESSIONAL FEES AND SERVICES,EXTL FUNDED CREATIVE PROJECT MANAGEMENT,Supplies & Services,Revenue
Walsall Council,http://opendatacommunities.org/id/metropolitan-district-council/walsall,WC75-356,31/12/2016,Change and Governance,BAART HARRIES NEWALL,08/12/2016,560,63239-EXTERNAL WORKS-PAYMENT TO CONTRACTOR,REDUNDANT BUILDINGS,Third Party Payments,Revenue
Walsall Council,http://opendatacommunities.org/id/metropolitan-district-council/walsall,WC75-357,31/12/2016,Economy & Environment,BAART HARRIES NEWALL,14/12/2016,"5,824.24",01005-ARCHITECTS INSTRUCTION,CFR 671 PELSALL HEALTH CENTRE LIBRARY AND CHILDRENS CENTRE,Capital,Capital
Walsall Council,http://opendatacommunities.org/id/metropolitan-district-council/walsall,WC75-358,31/12/2016,Childrens,BABY SIENNA LIMITED T/A BANANA MOON ASHMORE DAY NURSERY,07/12/2016,712,63000-PROFESSIONAL FEES AND SERVICES,SAFEGUARDING & FAMILY SUPPORT,Supplies & Services,Revenue
Walsall Council,http://opendatacommunities.org/id/metropolitan-district-council/walsall,WC75-359,31/12/2016,Economy & Environment,BAKER HALL PARTNERSHIP,14/12/2016,865.5,63000-PROFESSIONAL FEES AND SERVICES,BUILDING CONTROL REVENUE FUNDED,Supplies & Services,Revenue
Walsall Council,http://opendatacommunities.org/id/metropolitan-district-council/walsall,WC75-3549,31/12/2016,Economy & Environment,REDACTED,01/12/2016,"1,625.00",63000-PROFESSIONAL FEES AND SERVICES,EXTL FUNDED CREATIVE PROJECT MANAGEMENT,Supplies & Services,Revenue
Walsall Council,http://opendatacommunities.org/id/metropolitan-district-council/walsall,WC75-22,31/12/2016,Childrens,REDACTED,12/12/2016,472.5,76422-DIRECT PAYMENTS TO SOCIAL SERVICES CLIENTS,FAMILY SUPPORT - DIRECT PAYMENTS,Transfer Payments,Revenue
Walsall Council,http://opendatacommunities.org/id/metropolitan-district-council/walsall,WC75-122,31/12/2016,Childrens,REDACTED,12/12/2016,728.33,76422-DIRECT PAYMENTS TO SOCIAL SERVICES CLIENTS,FAMILY SUPPORT - DIRECT PAYMENTS,Transfer Payments,Revenue
Walsall Council,http://opendatacommunities.org/id/metropolitan-district-council/walsall,WC75-176,31/12/2016,Childrens,REDACTED,12/12/2016,421.15,76422-DIRECT PAYMENTS TO SOCIAL SERVICES CLIENTS,FAMILY SUPPORT - DIRECT PAYMENTS,Transfer Payments,Revenue
Walsall Council,http://opendatacommunities.org/id/metropolitan-district-council/walsall,WC75-364,31/12/2016,Childrens,REDACTED,19/12/2016,571.44,74006-HOLIDAY/CHRISTMAS ALLOWANCE-FOSTER CARERS-OTH AGENCY PROVISION,INTERNAL FOSTER CARE PROVISION,Third Party Payments,Revenue
Walsall Council,http://opendatacommunities.org/id/metropolitan-district-council/walsall,WC75-345,31/12/2016,Childrens,REDACTED,12/12/2016,"1,605.00",76422-DIRECT PAYMENTS TO SOCIAL SERVICES CLIENTS,FAMILY SUPPORT - DIRECT PAYMENTS,Transfer Payments,Revenue
Walsall Council,http://opendatacommunities.org/id/metropolitan-district-council/walsall,WC75-366,31/12/2016,Economy & Environment,BARCHAM TREES PLC,01/12/2016,"3,778.00",01006-SITE WORKS MAIN CONTRACTORS,CFR 632 WALSALL ARBORETUM RESTORATION PROGRAMME,Capital,Capital
Walsall Council,http://opendatacommunities.org/id/metropolitan-district-council/walsall,WC75-367,31/12/2016,Childrens,BARNARDOS SERVICES LTD,22/12/2016,"1,084.50",63000-PROFESSIONAL FEES AND SERVICES,GENERAL MANAGEMENT SUPPORT (INC LEGAL),Supplies & Services,Revenue
Walsall Council,http://opendatacommunities.org/id/metropolitan-district-council/walsall,WC75-368,31/12/2016,Childrens,BARNARDOS SERVICES LTD,22/12/2016,"1,959.00",63000-PROFESSIONAL FEES AND SERVICES,GENERAL MANAGEMENT SUPPORT (INC LEGAL),Supplies & Services,Revenue
Walsall Council,http://opendatacommunities.org/id/metropolitan-district-council/walsall,WC75-369,31/12/2016,Childrens,BARNARDOS SERVICES LTD,22/12/2016,"2,169.00",63000-PROFESSIONAL FEES AND SERVICES,GENERAL MANAGEMENT SUPPORT (INC LEGAL),Supplies & Services,Revenue
Walsall Council,http://opendatacommunities.org/id/metropolitan-district-council/walsall,WC75-370,31/12/2016,Childrens,BARR BEACON SCHOOL TRUST,21/12/2016,"6,154.61",66502-TOP UP FUNDING -GRANTS TO SCHOOLS,WILLENHALL SCHOOL SPORTS COLLEGE,Third Party Payments,Revenue
Walsall Council,http://opendatacommunities.org/id/metropolitan-district-council/walsall,WC75-371,31/12/2016,Childrens,BARR BEACON SCHOOL TRUST,21/12/2016,"9,950.77",66502-TOP UP FUNDING -GRANTS TO SCHOOLS,BARR BEACON SCHOOL TRUST (ACADEMY),Third Party Payments,Revenue
Walsall Council,http://opendatacommunities.org/id/metropolitan-district-council/walsall,WC75-372,31/12/2016,Economy & Environment,BASEMAP LTD,07/12/2016,780,63809-LICENCES-COMPUTER,PUBLIC HEALTH BUSINESS SUPPORT,Supplies & Services,Revenue
Walsall Council,http://opendatacommunities.org/id/metropolitan-district-council/walsall,WC75-373,31/12/2016,Economy & Environment,BASEMAP LTD,07/12/2016,"1,522.50",63809-LICENCES-COMPUTER,MS-ECONOMIC INTELLIGENCE TEAM,Supplies & Services,Revenue
Walsall Council,http://opendatacommunities.org/id/metropolitan-district-council/walsall,WC75-374,31/12/2016,Economy & Environment,BASEMAP LTD,16/12/2016,"1,522.50",63800-COMPUTER EQUIPMENT AND SUPPLIES,STRATEGIC TRANSPORTATION,Supplies & Services,Revenue
Walsall Council,http://opendatacommunities.org/id/metropolitan-district-council/walsall,WC75-462,31/12/2016,Childrens,REDACTED,12/12/2016,609.65,76422-DIRECT PAYMENTS TO SOCIAL SERVICES CLIENTS,FAMILY SUPPORT - DIRECT PAYMENTS,Transfer Payments,Revenue
Walsall Council,http://opendatacommunities.org/id/metropolitan-district-council/walsall,WC75-376,31/12/2016,Economy & Environment,BAT FABRICATIONS LTD,09/12/2016,950,60006-NEW-FURNITURE & EQUIPMENT,INFRASTRUCTURE MAINTENANCE,Supplies & Services,Revenue
Walsall Council,http://opendatacommunities.org/id/metropolitan-district-council/walsall,WC75-377,31/12/2016,Economy & Environment,BAT FABRICATIONS LTD,09/12/2016,"3,750.00",60500-GENERAL MATERIALS,GREEN SPACE MANAGEMENT,Supplies & Services,Revenue
Walsall Council,http://opendatacommunities.org/id/metropolitan-district-council/walsall,WC75-378,31/12/2016,Economy & Environment,BEADEN POWERLEC LIMITED,01/12/2016,146,01006-SITE WORKS MAIN CONTRACTORS,CFR 1037 ACTIVE LIVING BLOXWICH (PRUDENTIAL),Capital,Capital
Walsall Council,http://opendatacommunities.org/id/metropolitan-district-council/walsall,WC75-379,31/12/2016,Economy & Environment,BEADEN POWERLEC LIMITED,01/12/2016,716,60006-NEW-FURNITURE & EQUIPMENT,DARLASTON LEISURE CENTRE,Supplies & Services,Revenue
Walsall Council,http://opendatacommunities.org/id/metropolitan-district-council/walsall,WC75-380,31/12/2016,Economy & Environment,BEADEN POWERLEC LIMITED,12/12/2016,"1,320.00",73025-PROFESSIONAL SERVICES-PRIV CONTRACTOR & OTHER AGENCIES,DEPOT,Third Party Payments,Revenue
Walsall Council,http://opendatacommunities.org/id/metropolitan-district-council/walsall,WC75-381,31/12/2016,Childrens,REDACTED,05/12/2016,813.65,74006-HOLIDAY/CHRISTMAS ALLOWANCE-FOSTER CARERS-OTH AGENCY PROVISION,INTERNAL FOSTER CARE PROVISION,Third Party Payments,Revenue
Walsall Council,http://opendatacommunities.org/id/metropolitan-district-council/walsall,WC75-382,31/12/2016,Childrens,REDACTED,05/12/2016,925,62515-MISCELLANEOUS SUPPLIES,INTERNAL FOSTER CARE PROVISION,Supplies & Services,Revenue
Walsall Council,http://opendatacommunities.org/id/metropolitan-district-council/walsall,WC75-383,31/12/2016,Adult Social Care,BEARWOOD NURSING HOME LTD,06/12/2016,"1,649.80",73373-RESIDENTIAL & NURSING CARE PLACEMENTS,OP COMMISSIONING,Third Party Payments,Revenue
Walsall Council,http://opendatacommunities.org/id/metropolitan-district-council/walsall,WC75-384,31/12/2016,Adult Social Care,BEARWOOD NURSING HOME LTD,13/12/2016,"1,649.80",73373-RESIDENTIAL & NURSING CARE PLACEMENTS,OP COMMISSIONING,Third Party Payments,Revenue
Walsall Council,http://opendatacommunities.org/id/metropolitan-district-council/walsall,WC75-385,31/12/2016,Childrens,BECKYS CHILDMINDING SERVICE,01/12/2016,381.42,66505-OTHER-GRANTS TO OTHER ORGS,EARLY YEARS - 2 YR OLDS,Third Party Payments,Revenue
Walsall Council,http://opendatacommunities.org/id/metropolitan-district-council/walsall,WC75-386,31/12/2016,Childrens,REDACTED,05/12/2016,540.2,62515-MISCELLANEOUS SUPPLIES,INTERNAL FOSTER CARE PROVISION,Supplies & Services,Revenue
Walsall Council,http://opendatacommunities.org/id/metropolitan-district-council/walsall,WC75-387,31/12/2016,Childrens,REDACTED,05/12/2016,714.3,74006-HOLIDAY/CHRISTMAS ALLOWANCE-FOSTER CARERS-OTH AGENCY PROVISION,INTERNAL FOSTER CARE PROVISION,Third Party Payments,Revenue
Walsall Council,http://opendatacommunities.org/id/metropolitan-district-council/walsall,WC75-388,31/12/2016,Holding Accounts,BELL LAX SOLICITORS,21/12/2016,360,67001-MISC INSURANCES - PAYMENT OF CLAIMS,PUBLIC LIABILITY,Supplies & Services,Revenue
Walsall Council,http://opendatacommunities.org/id/metropolitan-district-council/walsall,WC75-389,31/12/2016,Economy & Environment,BELVEDERE SAFETY,19/12/2016,"2,210.00",30030-EXTERNAL TRAINING,LEISURE - MANAGEMENT AND ADMIN,Employees,Revenue
Walsall Council,http://opendatacommunities.org/id/metropolitan-district-council/walsall,WC75-390,31/12/2016,Adult Social Care,BELVIDERE COURT,05/12/2016,"1,684.51",73373-RESIDENTIAL & NURSING CARE PLACEMENTS,MH COMMISSIONING,Third Party Payments,Revenue
Walsall Council,http://opendatacommunities.org/id/metropolitan-district-council/walsall,WC75-391,31/12/2016,Adult Social Care,BELVIDERE COURT,13/12/2016,"1,886.26",73373-RESIDENTIAL & NURSING CARE PLACEMENTS,MH COMMISSIONING,Third Party Payments,Revenue
Walsall Council,http://opendatacommunities.org/id/metropolitan-district-council/walsall,WC75-392,31/12/2016,Adult Social Care,BELVIDERE COURT,13/12/2016,"3,764.29",73373-RESIDENTIAL & NURSING CARE PLACEMENTS,MH COMMISSIONING,Third Party Payments,Revenue
Walsall Council,http://opendatacommunities.org/id/metropolitan-district-council/walsall,WC75-393,31/12/2016,Adult Social Care,BELVIDERE COURT,05/12/2016,"13,690.61",73373-RESIDENTIAL & NURSING CARE PLACEMENTS,MH COMMISSIONING,Third Party Payments,Revenue
Walsall Council,http://opendatacommunities.org/id/metropolitan-district-council/walsall,WC75-394,31/12/2016,Adult Social Care,BELVIDERE COURT,05/12/2016,"26,228.57",73373-RESIDENTIAL & NURSING CARE PLACEMENTS,MH COMMISSIONING,Third Party Payments,Revenue
Walsall Council,http://opendatacommunities.org/id/metropolitan-district-council/walsall,WC75-463,31/12/2016,Childrens,REDACTED,12/12/2016,715,76422-DIRECT PAYMENTS TO SOCIAL SERVICES CLIENTS,FAMILY SUPPORT - DIRECT PAYMENTS,Transfer Payments,Revenue
Walsall Council,http://opendatacommunities.org/id/metropolitan-district-council/walsall,WC75-396,31/12/2016,Holding Accounts,BERRYMANS LACE MAWER LLP,21/12/2016,"1,598.50",67001-MISC INSURANCES - PAYMENT OF CLAIMS,PUBLIC LIABILITY,Supplies & Services,Revenue
Walsall Council,http://opendatacommunities.org/id/metropolitan-district-council/walsall,WC75-739,31/12/2016,Childrens,REDACTED,12/12/2016,393.75,76422-DIRECT PAYMENTS TO SOCIAL SERVICES CLIENTS,FAMILY SUPPORT - DIRECT PAYMENTS,Transfer Payments,Revenue
Walsall Council,http://opendatacommunities.org/id/metropolitan-district-council/walsall,WC75-398,31/12/2016,Childrens,REDACTED,05/12/2016,"1,445.32",62515-MISCELLANEOUS SUPPLIES,INTERNAL FOSTER CARE PROVISION,Supplies & Services,Revenue
Walsall Council,http://opendatacommunities.org/id/metropolitan-district-council/walsall,WC75-399,31/12/2016,Childrens,REDACTED,05/12/2016,"1,775.55",74006-HOLIDAY/CHRISTMAS ALLOWANCE-FOSTER CARERS-OTH AGENCY PROVISION,INTERNAL FOSTER CARE PROVISION,Third Party Payments,Revenue
Walsall Council,http://opendatacommunities.org/id/metropolitan-district-council/walsall,WC75-792,31/12/2016,Childrens,REDACTED,12/12/2016,"1,267.83",76422-DIRECT PAYMENTS TO SOCIAL SERVICES CLIENTS,FAMILY SUPPORT - DIRECT PAYMENTS,Transfer Payments,Revenue
Walsall Council,http://opendatacommunities.org/id/metropolitan-district-council/walsall,WC75-401,31/12/2016,Adult Social Care,BESCOT LODGE RESIDENTIAL CARE HOME,20/12/2016,514.28,73373-RESIDENTIAL & NURSING CARE PLACEMENTS,OP COMMISSIONING,Third Party Payments,Revenue
Walsall Council,http://opendatacommunities.org/id/metropolitan-district-council/walsall,WC75-402,31/12/2016,Adult Social Care,BESCOT LODGE RESIDENTIAL CARE HOME,20/12/2016,"1,350.00",73373-RESIDENTIAL & NURSING CARE PLACEMENTS,OP COMMISSIONING,Third Party Payments,Revenue
Walsall Council,http://opendatacommunities.org/id/metropolitan-district-council/walsall,WC75-403,31/12/2016,Adult Social Care,BESCOT LODGE RESIDENTIAL CARE HOME,20/12/2016,"1,735.71",73373-RESIDENTIAL & NURSING CARE PLACEMENTS,OP COMMISSIONING,Third Party Payments,Revenue
Walsall Council,http://opendatacommunities.org/id/metropolitan-district-council/walsall,WC75-404,31/12/2016,Adult Social Care,BESCOT LODGE RESIDENTIAL CARE HOME,20/12/2016,"1,735.71",73373-RESIDENTIAL & NURSING CARE PLACEMENTS,OP COMMISSIONING,Third Party Payments,Revenue
Walsall Council,http://opendatacommunities.org/id/metropolitan-district-council/walsall,WC75-405,31/12/2016,Adult Social Care,BESCOT LODGE RESIDENTIAL CARE HOME,20/12/2016,"1,735.71",73373-RESIDENTIAL & NURSING CARE PLACEMENTS,OP COMMISSIONING,Third Party Payments,Revenue
Walsall Council,http://opendatacommunities.org/id/metropolitan-district-council/walsall,WC75-406,31/12/2016,Adult Social Care,BESCOT LODGE RESIDENTIAL CARE HOME,20/12/2016,"1,735.72",73373-RESIDENTIAL & NURSING CARE PLACEMENTS,OP COMMISSIONING,Third Party Payments,Revenue
Walsall Council,http://opendatacommunities.org/id/metropolitan-district-council/walsall,WC75-407,31/12/2016,Adult Social Care,BESCOT LODGE RESIDENTIAL CARE HOME,20/12/2016,"1,735.72",73373-RESIDENTIAL & NURSING CARE PLACEMENTS,OP COMMISSIONING,Third Party Payments,Revenue
Walsall Council,http://opendatacommunities.org/id/metropolitan-district-council/walsall,WC75-408,31/12/2016,Adult Social Care,BESCOT LODGE RESIDENTIAL CARE HOME,20/12/2016,"1,735.72",73373-RESIDENTIAL & NURSING CARE PLACEMENTS,OP COMMISSIONING,Third Party Payments,Revenue
Walsall Council,http://opendatacommunities.org/id/metropolitan-district-council/walsall,WC75-409,31/12/2016,Adult Social Care,BESCOT LODGE RESIDENTIAL CARE HOME,20/12/2016,"1,735.72",73373-RESIDENTIAL & NURSING CARE PLACEMENTS,OP COMMISSIONING,Third Party Payments,Revenue
Walsall Council,http://opendatacommunities.org/id/metropolitan-district-council/walsall,WC75-410,31/12/2016,Adult Social Care,BESCOT LODGE RESIDENTIAL CARE HOME,20/12/2016,"1,735.72",73373-RESIDENTIAL & NURSING CARE PLACEMENTS,OP COMMISSIONING,Third Party Payments,Revenue
Walsall Council,http://opendatacommunities.org/id/metropolitan-district-council/walsall,WC75-411,31/12/2016,Adult Social Care,BESCOT LODGE RESIDENTIAL CARE HOME,20/12/2016,"1,793.57",73373-RESIDENTIAL & NURSING CARE PLACEMENTS,OP COMMISSIONING,Third Party Payments,Revenue
Walsall Council,http://opendatacommunities.org/id/metropolitan-district-council/walsall,WC75-412,31/12/2016,Adult Social Care,BESCOT LODGE RESIDENTIAL CARE HOME,20/12/2016,"1,793.57",73373-RESIDENTIAL & NURSING CARE PLACEMENTS,OP COMMISSIONING,Third Party Payments,Revenue
Walsall Council,http://opendatacommunities.org/id/metropolitan-district-council/walsall,WC75-413,31/12/2016,Adult Social Care,BESCOT LODGE RESIDENTIAL CARE HOME,20/12/2016,"1,793.57",73373-RESIDENTIAL & NURSING CARE PLACEMENTS,OP COMMISSIONING,Third Party Payments,Revenue
Walsall Council,http://opendatacommunities.org/id/metropolitan-district-council/walsall,WC75-414,31/12/2016,Adult Social Care,BESCOT LODGE RESIDENTIAL CARE HOME,20/12/2016,"1,793.57",73373-RESIDENTIAL & NURSING CARE PLACEMENTS,OP COMMISSIONING,Third Party Payments,Revenue
Walsall Council,http://opendatacommunities.org/id/metropolitan-district-council/walsall,WC75-415,31/12/2016,Adult Social Care,BESCOT LODGE RESIDENTIAL CARE HOME,20/12/2016,"1,793.57",73373-RESIDENTIAL & NURSING CARE PLACEMENTS,OP COMMISSIONING,Third Party Payments,Revenue
Walsall Council,http://opendatacommunities.org/id/metropolitan-district-council/walsall,WC75-416,31/12/2016,Adult Social Care,BESCOT LODGE RESIDENTIAL CARE HOME,20/12/2016,"1,793.57",73373-RESIDENTIAL & NURSING CARE PLACEMENTS,OP COMMISSIONING,Third Party Payments,Revenue
Walsall Council,http://opendatacommunities.org/id/metropolitan-district-council/walsall,WC75-417,31/12/2016,Adult Social Care,BESCOT LODGE RESIDENTIAL CARE HOME,20/12/2016,"1,793.57",73373-RESIDENTIAL & NURSING CARE PLACEMENTS,OP COMMISSIONING,Third Party Payments,Revenue
Walsall Council,http://opendatacommunities.org/id/metropolitan-district-council/walsall,WC75-418,31/12/2016,Adult Social Care,BESCOT LODGE RESIDENTIAL CARE HOME,20/12/2016,"1,793.57",73373-RESIDENTIAL & NURSING CARE PLACEMENTS,OP COMMISSIONING,Third Party Payments,Revenue
Walsall Council,http://opendatacommunities.org/id/metropolitan-district-council/walsall,WC75-419,31/12/2016,Adult Social Care,BESCOT LODGE RESIDENTIAL CARE HOME,20/12/2016,"1,793.57",73373-RESIDENTIAL & NURSING CARE PLACEMENTS,OP COMMISSIONING,Third Party Payments,Revenue
Walsall Council,http://opendatacommunities.org/id/metropolitan-district-council/walsall,WC75-420,31/12/2016,Adult Social Care,BESCOT LODGE RESIDENTIAL CARE HOME,20/12/2016,"1,793.58",73373-RESIDENTIAL & NURSING CARE PLACEMENTS,OP COMMISSIONING,Third Party Payments,Revenue
Walsall Council,http://opendatacommunities.org/id/metropolitan-district-council/walsall,WC75-421,31/12/2016,Adult Social Care,BESCOT LODGE RESIDENTIAL CARE HOME,20/12/2016,"1,793.58",73373-RESIDENTIAL & NURSING CARE PLACEMENTS,OP COMMISSIONING,Third Party Payments,Revenue
Walsall Council,http://opendatacommunities.org/id/metropolitan-district-council/walsall,WC75-422,31/12/2016,Adult Social Care,BESCOT LODGE RESIDENTIAL CARE HOME,20/12/2016,"1,793.58",73373-RESIDENTIAL & NURSING CARE PLACEMENTS,OP COMMISSIONING,Third Party Payments,Revenue
Walsall Council,http://opendatacommunities.org/id/metropolitan-district-council/walsall,WC75-423,31/12/2016,Adult Social Care,BESCOT LODGE RESIDENTIAL CARE HOME,20/12/2016,"1,793.58",73373-RESIDENTIAL & NURSING CARE PLACEMENTS,OP COMMISSIONING,Third Party Payments,Revenue
Walsall Council,http://opendatacommunities.org/id/metropolitan-district-council/walsall,WC75-424,31/12/2016,Adult Social Care,BESCOT LODGE RESIDENTIAL CARE HOME,20/12/2016,"1,928.57",73373-RESIDENTIAL & NURSING CARE PLACEMENTS,OP COMMISSIONING,Third Party Payments,Revenue
Walsall Council,http://opendatacommunities.org/id/metropolitan-district-council/walsall,WC75-425,31/12/2016,Adult Social Care,BESCOT LODGE RESIDENTIAL CARE HOME,20/12/2016,"1,928.57",73373-RESIDENTIAL & NURSING CARE PLACEMENTS,OP COMMISSIONING,Third Party Payments,Revenue
Walsall Council,http://opendatacommunities.org/id/metropolitan-district-council/walsall,WC75-426,31/12/2016,Adult Social Care,BESCOT LODGE RESIDENTIAL CARE HOME,20/12/2016,"1,928.57",73373-RESIDENTIAL & NURSING CARE PLACEMENTS,MH COMMISSIONING,Third Party Payments,Revenue
Walsall Council,http://opendatacommunities.org/id/metropolitan-district-council/walsall,WC75-427,31/12/2016,Adult Social Care,BESCOT LODGE RESIDENTIAL CARE HOME,20/12/2016,"1,928.57",73373-RESIDENTIAL & NURSING CARE PLACEMENTS,MH COMMISSIONING,Third Party Payments,Revenue
Walsall Council,http://opendatacommunities.org/id/metropolitan-district-council/walsall,WC75-428,31/12/2016,Adult Social Care,BESCOT LODGE RESIDENTIAL CARE HOME,20/12/2016,"1,928.57",73373-RESIDENTIAL & NURSING CARE PLACEMENTS,MH COMMISSIONING,Third Party Payments,Revenue
Walsall Council,http://opendatacommunities.org/id/metropolitan-district-council/walsall,WC75-429,31/12/2016,Adult Social Care,BESCOT LODGE RESIDENTIAL CARE HOME,20/12/2016,"1,928.57",73373-RESIDENTIAL & NURSING CARE PLACEMENTS,MH COMMISSIONING,Third Party Payments,Revenue
Walsall Council,http://opendatacommunities.org/id/metropolitan-district-council/walsall,WC75-430,31/12/2016,Adult Social Care,BESCOT LODGE RESIDENTIAL CARE HOME,20/12/2016,"1,928.58",73373-RESIDENTIAL & NURSING CARE PLACEMENTS,OP COMMISSIONING,Third Party Payments,Revenue
Walsall Council,http://opendatacommunities.org/id/metropolitan-district-council/walsall,WC75-431,31/12/2016,Adult Social Care,BESCOT LODGE RESIDENTIAL CARE HOME,20/12/2016,"1,992.86",73373-RESIDENTIAL & NURSING CARE PLACEMENTS,OP COMMISSIONING,Third Party Payments,Revenue
Walsall Council,http://opendatacommunities.org/id/metropolitan-district-council/walsall,WC75-432,31/12/2016,Adult Social Care,BESCOT LODGE RESIDENTIAL CARE HOME,20/12/2016,"1,992.86",73373-RESIDENTIAL & NURSING CARE PLACEMENTS,OP COMMISSIONING,Third Party Payments,Revenue
Walsall Council,http://opendatacommunities.org/id/metropolitan-district-council/walsall,WC75-433,31/12/2016,Adult Social Care,BESCOT LODGE RESIDENTIAL CARE HOME,20/12/2016,"1,992.86",73373-RESIDENTIAL & NURSING CARE PLACEMENTS,OP COMMISSIONING,Third Party Payments,Revenue
Walsall Council,http://opendatacommunities.org/id/metropolitan-district-council/walsall,WC75-434,31/12/2016,Adult Social Care,BESCOT LODGE RESIDENTIAL CARE HOME,20/12/2016,"1,992.86",73373-RESIDENTIAL & NURSING CARE PLACEMENTS,OP COMMISSIONING,Third Party Payments,Revenue
Walsall Council,http://opendatacommunities.org/id/metropolitan-district-council/walsall,WC75-435,31/12/2016,Adult Social Care,BESCOT LODGE RESIDENTIAL CARE HOME,20/12/2016,"1,992.86",73373-RESIDENTIAL & NURSING CARE PLACEMENTS,OP COMMISSIONING,Third Party Payments,Revenue
Walsall Council,http://opendatacommunities.org/id/metropolitan-district-council/walsall,WC75-436,31/12/2016,Adult Social Care,BESCOT LODGE RESIDENTIAL CARE HOME,20/12/2016,"1,992.86",73373-RESIDENTIAL & NURSING CARE PLACEMENTS,OP COMMISSIONING,Third Party Payments,Revenue
Walsall Council,http://opendatacommunities.org/id/metropolitan-district-council/walsall,WC75-437,31/12/2016,Adult Social Care,BESCOT LODGE RESIDENTIAL CARE HOME,20/12/2016,"1,992.86",73373-RESIDENTIAL & NURSING CARE PLACEMENTS,OP COMMISSIONING,Third Party Payments,Revenue
Walsall Council,http://opendatacommunities.org/id/metropolitan-district-council/walsall,WC75-438,31/12/2016,Adult Social Care,BESCOT LODGE RESIDENTIAL CARE HOME,20/12/2016,"1,992.86",73373-RESIDENTIAL & NURSING CARE PLACEMENTS,OP COMMISSIONING,Third Party Payments,Revenue
Walsall Council,http://opendatacommunities.org/id/metropolitan-district-council/walsall,WC75-439,31/12/2016,Adult Social Care,BESCOT LODGE RESIDENTIAL CARE HOME,20/12/2016,"1,992.86",73373-RESIDENTIAL & NURSING CARE PLACEMENTS,MH COMMISSIONING,Third Party Payments,Revenue
Walsall Council,http://opendatacommunities.org/id/metropolitan-district-council/walsall,WC75-440,31/12/2016,Adult Social Care,BESCOT LODGE RESIDENTIAL CARE HOME,20/12/2016,"1,992.86",73373-RESIDENTIAL & NURSING CARE PLACEMENTS,MH COMMISSIONING,Third Party Payments,Revenue
Walsall Council,http://opendatacommunities.org/id/metropolitan-district-council/walsall,WC75-441,31/12/2016,Adult Social Care,BESCOT LODGE RESIDENTIAL CARE HOME,20/12/2016,"1,992.86",73373-RESIDENTIAL & NURSING CARE PLACEMENTS,MH COMMISSIONING,Third Party Payments,Revenue
Walsall Council,http://opendatacommunities.org/id/metropolitan-district-council/walsall,WC75-442,31/12/2016,Adult Social Care,BESCOT LODGE RESIDENTIAL CARE HOME,20/12/2016,"1,992.86",73373-RESIDENTIAL & NURSING CARE PLACEMENTS,MH COMMISSIONING,Third Party Payments,Revenue
Walsall Council,http://opendatacommunities.org/id/metropolitan-district-council/walsall,WC75-443,31/12/2016,Adult Social Care,BESCOT LODGE RESIDENTIAL CARE HOME,20/12/2016,"1,992.86",73373-RESIDENTIAL & NURSING CARE PLACEMENTS,MH COMMISSIONING,Third Party Payments,Revenue
Walsall Council,http://opendatacommunities.org/id/metropolitan-district-council/walsall,WC75-444,31/12/2016,Economy & Environment,BESCOT STADIUM SUNDAY MARKET LTD,07/12/2016,"2,800.00",73025-PROFESSIONAL SERVICES-PRIV CONTRACTOR & OTHER AGENCIES,WILLENHALL MARKET,Third Party Payments,Revenue
Walsall Council,http://opendatacommunities.org/id/metropolitan-district-council/walsall,WC75-445,31/12/2016,Adult Social Care,BESS CARE LIMITED,21/12/2016,543.75,73372-DOMICILIARY CARE,OP COMMISSIONING,Third Party Payments,Revenue
Walsall Council,http://opendatacommunities.org/id/metropolitan-district-council/walsall,WC75-446,31/12/2016,Adult Social Care,BESS CARE LIMITED,02/12/2016,612.5,73372-DOMICILIARY CARE,OP COMMISSIONING,Third Party Payments,Revenue
Walsall Council,http://opendatacommunities.org/id/metropolitan-district-council/walsall,WC75-447,31/12/2016,Adult Social Care,BESS CARE LIMITED,02/12/2016,612.5,73372-DOMICILIARY CARE,OP COMMISSIONING,Third Party Payments,Revenue
Walsall Council,http://opendatacommunities.org/id/metropolitan-district-council/walsall,WC75-448,31/12/2016,Adult Social Care,BESS CARE LIMITED,08/12/2016,612.5,73372-DOMICILIARY CARE,OP COMMISSIONING,Third Party Payments,Revenue
Walsall Council,http://opendatacommunities.org/id/metropolitan-district-council/walsall,WC75-449,31/12/2016,Adult Social Care,BESS CARE LIMITED,21/12/2016,612.5,73372-DOMICILIARY CARE,OP COMMISSIONING,Third Party Payments,Revenue
Walsall Council,http://opendatacommunities.org/id/metropolitan-district-council/walsall,WC75-450,31/12/2016,Childrens,BEST PRACTICE NETWORK LTD,01/12/2016,"1,330.00",63000-PROFESSIONAL FEES AND SERVICES,TRADED WORKFORCE DEVELOPMENT,Supplies & Services,Revenue
Walsall Council,http://opendatacommunities.org/id/metropolitan-district-council/walsall,WC75-451,31/12/2016,Adult Social Care,BETHPHAGE.,21/12/2016,650,73374-SUPPORTED & OTHER ACCOMMODATION,LD COMMISSIONING,Third Party Payments,Revenue
Walsall Council,http://opendatacommunities.org/id/metropolitan-district-council/walsall,WC75-452,31/12/2016,Adult Social Care,BETHPHAGE.,01/12/2016,812.5,73374-SUPPORTED & OTHER ACCOMMODATION,LD COMMISSIONING,Third Party Payments,Revenue
Walsall Council,http://opendatacommunities.org/id/metropolitan-district-council/walsall,WC75-453,31/12/2016,Adult Social Care,BETHPHAGE.,21/12/2016,"1,022.99",73374-SUPPORTED & OTHER ACCOMMODATION,LD COMMISSIONING,Third Party Payments,Revenue
Walsall Council,http://opendatacommunities.org/id/metropolitan-district-council/walsall,WC75-454,31/12/2016,Adult Social Care,BETHPHAGE.,01/12/2016,"1,389.84",73374-SUPPORTED & OTHER ACCOMMODATION,LD COMMISSIONING,Third Party Payments,Revenue
Walsall Council,http://opendatacommunities.org/id/metropolitan-district-council/walsall,WC75-455,31/12/2016,Adult Social Care,BETHPHAGE.,21/12/2016,"1,439.24",73374-SUPPORTED & OTHER ACCOMMODATION,LD COMMISSIONING,Third Party Payments,Revenue
Walsall Council,http://opendatacommunities.org/id/metropolitan-district-council/walsall,WC75-456,31/12/2016,Adult Social Care,BETHPHAGE.,01/12/2016,"1,799.05",73374-SUPPORTED & OTHER ACCOMMODATION,LD COMMISSIONING,Third Party Payments,Revenue
Walsall Council,http://opendatacommunities.org/id/metropolitan-district-council/walsall,WC75-808,31/12/2016,Childrens,REDACTED,12/12/2016,323.7,76422-DIRECT PAYMENTS TO SOCIAL SERVICES CLIENTS,FAMILY SUPPORT - DIRECT PAYMENTS,Transfer Payments,Revenue
Walsall Council,http://opendatacommunities.org/id/metropolitan-district-council/walsall,WC75-922,31/12/2016,Childrens,REDACTED,12/12/2016,"1,132.95",76422-DIRECT PAYMENTS TO SOCIAL SERVICES CLIENTS,FAMILY SUPPORT - DIRECT PAYMENTS,Transfer Payments,Revenue
Walsall Council,http://opendatacommunities.org/id/metropolitan-district-council/walsall,WC75-459,31/12/2016,Change and Governance,BFA SAFETY TRAINING,05/12/2016,495,30030-EXTERNAL TRAINING,HEALTH & SAFETY (TRADED),Employees,Revenue
Walsall Council,http://opendatacommunities.org/id/metropolitan-district-council/walsall,WC75-1251,31/12/2016,Childrens,REDACTED,12/12/2016,647.4,76422-DIRECT PAYMENTS TO SOCIAL SERVICES CLIENTS,FAMILY SUPPORT - DIRECT PAYMENTS,Transfer Payments,Revenue
Walsall Council,http://opendatacommunities.org/id/metropolitan-district-council/walsall,WC75-461,31/12/2016,Adult Social Care,BID CENTRE FOR DEAF PEOPLE,20/12/2016,"1,210.00",73025-PROFESSIONAL SERVICES-PRIV CONTRACTOR & OTHER AGENCIES,COMMUNITY INTERMEDIATE CARE,Third Party Payments,Revenue
Walsall Council,http://opendatacommunities.org/id/metropolitan-district-council/walsall,WC75-1366,31/12/2016,Childrens,REDACTED,12/12/2016,450,76422-DIRECT PAYMENTS TO SOCIAL SERVICES CLIENTS,FAMILY SUPPORT - DIRECT PAYMENTS,Transfer Payments,Revenue
Walsall Council,http://opendatacommunities.org/id/metropolitan-district-council/walsall,WC75-1387,31/12/2016,Childrens,REDACTED,12/12/2016,741.81,76422-DIRECT PAYMENTS TO SOCIAL SERVICES CLIENTS,FAMILY SUPPORT - DIRECT PAYMENTS,Transfer Payments,Revenue
Walsall Council,http://opendatacommunities.org/id/metropolitan-district-council/walsall,WC75-464,31/12/2016,Childrens,BIRCHILLS C OF E COMMUNITY ACADEMY,22/12/2016,"10,729.26",66502-TOP UP FUNDING -GRANTS TO SCHOOLS,BIRCHILLS CE COMMUNITY ACADEMY,Third Party Payments,Revenue
Walsall Council,http://opendatacommunities.org/id/metropolitan-district-council/walsall,WC75-465,31/12/2016,Childrens,BIRMINGHAM CITY COUNCIL,14/12/2016,"5,636.35",66502-TOP UP FUNDING -GRANTS TO SCHOOLS,MAINTAINED PROVIDERS,Third Party Payments,Revenue
Walsall Council,http://opendatacommunities.org/id/metropolitan-district-council/walsall,WC75-466,31/12/2016,Childrens,BIRMINGHAM CITY COUNCIL,14/12/2016,"8,100.17",66502-TOP UP FUNDING -GRANTS TO SCHOOLS,MAINTAINED PROVIDERS,Third Party Payments,Revenue
Walsall Council,http://opendatacommunities.org/id/metropolitan-district-council/walsall,WC75-467,31/12/2016,Economy & Environment,BIRMINGHAM WOMENS NHS FOUNDATION TRUST,12/12/2016,900,74000-OTHER AGENCY FEES,CORONERS SERVICE,Third Party Payments,Revenue
Walsall Council,http://opendatacommunities.org/id/metropolitan-district-council/walsall,WC75-468,31/12/2016,Economy & Environment,BIRMINGHAM WOMENS NHS FOUNDATION TRUST,12/12/2016,900,74000-OTHER AGENCY FEES,CORONERS SERVICE,Third Party Payments,Revenue
Walsall Council,http://opendatacommunities.org/id/metropolitan-district-council/walsall,WC75-469,31/12/2016,Economy & Environment,BIRMINGHAM WOMENS NHS FOUNDATION TRUST,20/12/2016,970,74000-OTHER AGENCY FEES,CORONERS SERVICE,Third Party Payments,Revenue
Walsall Council,http://opendatacommunities.org/id/metropolitan-district-council/walsall,WC75-470,31/12/2016,Economy & Environment,BIRMINGHAM WOMENS NHS FOUNDATION TRUST,20/12/2016,"1,800.00",74000-OTHER AGENCY FEES,CORONERS SERVICE,Third Party Payments,Revenue
Walsall Council,http://opendatacommunities.org/id/metropolitan-district-council/walsall,WC75-471,31/12/2016,Adult Social Care,BLACK COUNTRY PARTNERSHIP NHS,02/12/2016,364,73375-IN PATIENT BEDS,LD COMMISSIONING,Third Party Payments,Revenue
Walsall Council,http://opendatacommunities.org/id/metropolitan-district-council/walsall,WC75-472,31/12/2016,Adult Social Care,BLACK COUNTRY PARTNERSHIP NHS,02/12/2016,"3,033.00",73375-IN PATIENT BEDS,BCPFT,Third Party Payments,Revenue
Walsall Council,http://opendatacommunities.org/id/metropolitan-district-council/walsall,WC75-473,31/12/2016,Adult Social Care,BLACK COUNTRY PARTNERSHIP NHS,02/12/2016,"5,459.00",73375-IN PATIENT BEDS,BCPFT,Third Party Payments,Revenue
Walsall Council,http://opendatacommunities.org/id/metropolitan-district-council/walsall,WC75-474,31/12/2016,Adult Social Care,BLACK COUNTRY PARTNERSHIP NHS,02/12/2016,"16,120.00",73375-IN PATIENT BEDS,LD COMMISSIONING,Third Party Payments,Revenue
Walsall Council,http://opendatacommunities.org/id/metropolitan-district-council/walsall,WC75-475,31/12/2016,Adult Social Care,BLACK COUNTRY PARTNERSHIP NHS,02/12/2016,"18,805.00",73375-IN PATIENT BEDS,BCPFT,Third Party Payments,Revenue
Walsall Council,http://opendatacommunities.org/id/metropolitan-district-council/walsall,WC75-476,31/12/2016,Adult Social Care,BLACK COUNTRY PARTNERSHIP NHS,20/12/2016,"155,340.62",71007-CONTRIBUTION TO PCT,BCPFT,Third Party Payments,Revenue
Walsall Council,http://opendatacommunities.org/id/metropolitan-district-council/walsall,WC75-477,31/12/2016,Economy & Environment,BLACK COUNTRY TRAINING LTD T/A BRITISH HGV TRAINING GROUP,01/12/2016,220,30030-EXTERNAL TRAINING,RESOURCE MANAGEMENT,Employees,Revenue
Walsall Council,http://opendatacommunities.org/id/metropolitan-district-council/walsall,WC75-478,31/12/2016,Economy & Environment,BLACK COUNTRY TRAINING LTD T/A BRITISH HGV TRAINING GROUP,01/12/2016,235,73025-PROFESSIONAL SERVICES-PRIV CONTRACTOR & OTHER AGENCIES,FLEET,Third Party Payments,Revenue
Walsall Council,http://opendatacommunities.org/id/metropolitan-district-council/walsall,WC75-479,31/12/2016,Economy & Environment,BLACK COUNTRY TRAINING LTD T/A BRITISH HGV TRAINING GROUP,09/12/2016,235,30030-EXTERNAL TRAINING,STREET CLEANSING,Employees,Revenue
Walsall Council,http://opendatacommunities.org/id/metropolitan-district-council/walsall,WC75-480,31/12/2016,Economy & Environment,BLACK COUNTRY TRAINING LTD T/A BRITISH HGV TRAINING GROUP,09/12/2016,295,30030-EXTERNAL TRAINING,FLEET,Employees,Revenue
Walsall Council,http://opendatacommunities.org/id/metropolitan-district-council/walsall,WC75-481,31/12/2016,Economy & Environment,BLACK COUNTRY TRAINING LTD T/A BRITISH HGV TRAINING GROUP,09/12/2016,"1,250.00",30030-EXTERNAL TRAINING,FLEET,Employees,Revenue
Walsall Council,http://opendatacommunities.org/id/metropolitan-district-council/walsall,WC75-482,31/12/2016,Childrens,BLAKENALL HEATH JMI SCHOOL,01/12/2016,"91,561.92",77300-ISB-FORMULA ALLOCATION,BLAKENALL HEATH JUNIOR SCHOOL,Transfer Payments,Revenue
Walsall Council,http://opendatacommunities.org/id/metropolitan-district-council/walsall,WC75-483,31/12/2016,Childrens,BLAKENALL HEATH JMI SCHOOL,21/12/2016,"91,561.92",77300-ISB-FORMULA ALLOCATION,BLAKENALL HEATH JUNIOR SCHOOL,Transfer Payments,Revenue
Walsall Council,http://opendatacommunities.org/id/metropolitan-district-council/walsall,WC75-484,31/12/2016,Childrens,BLOXWICH ACADEMY,21/12/2016,"3,006.92",66502-TOP UP FUNDING -GRANTS TO SCHOOLS,THE MIRUS ACADEMY,Third Party Payments,Revenue
Walsall Council,http://opendatacommunities.org/id/metropolitan-district-council/walsall,WC75-485,31/12/2016,Childrens,BLOXWICH ACADEMY,22/12/2016,"7,341.95",66502-TOP UP FUNDING -GRANTS TO SCHOOLS,THE MIRUS ACADEMY,Third Party Payments,Revenue
Walsall Council,http://opendatacommunities.org/id/metropolitan-district-council/walsall,WC75-486,31/12/2016,Adult Social Care,BLOXWICH COMMUNITY PARTNERSHIP.,12/12/2016,279,73372-DOMICILIARY CARE,OP COMMISSIONING,Third Party Payments,Revenue
Walsall Council,http://opendatacommunities.org/id/metropolitan-district-council/walsall,WC75-487,31/12/2016,Adult Social Care,BLOXWICH COMMUNITY PARTNERSHIP.,12/12/2016,351,73372-DOMICILIARY CARE,MH COMMISSIONING,Third Party Payments,Revenue
Walsall Council,http://opendatacommunities.org/id/metropolitan-district-council/walsall,WC75-488,31/12/2016,Adult Social Care,BLOXWICH COMMUNITY PARTNERSHIP.,12/12/2016,378,73374-SUPPORTED & OTHER ACCOMMODATION,MH COMMISSIONING,Third Party Payments,Revenue
Walsall Council,http://opendatacommunities.org/id/metropolitan-district-council/walsall,WC75-489,31/12/2016,Childrens,BLOXWICH COMMUNITY PARTNERSHIP.,08/12/2016,"4,900.00",60500-GENERAL MATERIALS,PUPIL REFERAL UNIT EXCLUSIONS,Supplies & Services,Revenue
Walsall Council,http://opendatacommunities.org/id/metropolitan-district-council/walsall,WC75-490,31/12/2016,Childrens,BLOXWICH COMMUNITY PARTNERSHIP.,08/12/2016,"7,857.00",60500-GENERAL MATERIALS,PUPIL REFERAL UNIT EXCLUSIONS,Supplies & Services,Revenue
Walsall Council,http://opendatacommunities.org/id/metropolitan-district-council/walsall,WC75-491,31/12/2016,Childrens,BLOXWICH COMMUNITY PARTNERSHIP.,08/12/2016,"8,894.00",60500-GENERAL MATERIALS,PUPIL REFERAL UNIT EXCLUSIONS,Supplies & Services,Revenue
Walsall Council,http://opendatacommunities.org/id/metropolitan-district-council/walsall,WC75-492,31/12/2016,Childrens,BLUE COAT CHURCH OF ENGLAND ACADEMY,21/12/2016,"4,614.25",66502-TOP UP FUNDING -GRANTS TO SCHOOLS,BLUE COAT CofE ACADEMY,Third Party Payments,Revenue
Walsall Council,http://opendatacommunities.org/id/metropolitan-district-council/walsall,WC75-493,31/12/2016,Childrens,BLUE COAT CHURCH OF ENGLAND ACADEMY,21/12/2016,"6,083.09",66502-TOP UP FUNDING -GRANTS TO SCHOOLS,BLUE COAT CofE ACADEMY,Third Party Payments,Revenue
Walsall Council,http://opendatacommunities.org/id/metropolitan-district-council/walsall,WC75-494,31/12/2016,Adult Social Care,BLUEBIRD CARE (MID STAFFS),21/12/2016,540,73372-DOMICILIARY CARE,OP COMMISSIONING,Third Party Payments,Revenue
Walsall Council,http://opendatacommunities.org/id/metropolitan-district-council/walsall,WC75-495,31/12/2016,Adult Social Care,BLUEBIRD CARE (MID STAFFS),21/12/2016,648,73372-DOMICILIARY CARE,OP COMMISSIONING,Third Party Payments,Revenue
Walsall Council,http://opendatacommunities.org/id/metropolitan-district-council/walsall,WC75-496,31/12/2016,Economy & Environment,BME UNITED LTD,01/12/2016,"5,503.00",63000-PROFESSIONAL FEES AND SERVICES,SMOKING CESSATION,Supplies & Services,Revenue
Walsall Council,http://opendatacommunities.org/id/metropolitan-district-council/walsall,WC75-497,31/12/2016,Economy & Environment,BOC LTD,13/12/2016,327.25,73025-PROFESSIONAL SERVICES-PRIV CONTRACTOR & OTHER AGENCIES,FLEET,Third Party Payments,Revenue
Walsall Council,http://opendatacommunities.org/id/metropolitan-district-council/walsall,WC75-498,31/12/2016,Adult Social Care,BOLDMERE COURT CARE HOME,13/12/2016,"7,500.00",73373-RESIDENTIAL & NURSING CARE PLACEMENTS,MH COMMISSIONING,Third Party Payments,Revenue
Walsall Council,http://opendatacommunities.org/id/metropolitan-district-council/walsall,WC75-499,31/12/2016,Economy & Environment,BOLINDA UK LTD,05/12/2016,651,60501-LIBRARY BOOKS,LIBRARY STOCK AND PERFORMANCE,Supplies & Services,Revenue
Walsall Council,http://opendatacommunities.org/id/metropolitan-district-council/walsall,WC75-500,31/12/2016,Economy & Environment,BOOTS UK LIMITED,19/12/2016,74.84,71007-CONTRIBUTION TO PCT,PUBLIC HEALTH BUSINESS SUPPORT,Third Party Payments,Revenue
Walsall Council,http://opendatacommunities.org/id/metropolitan-district-council/walsall,WC75-501,31/12/2016,Economy & Environment,BOOTS UK LIMITED,07/12/2016,76.56,71007-CONTRIBUTION TO PCT,PUBLIC HEALTH BUSINESS SUPPORT,Third Party Payments,Revenue
Walsall Council,http://opendatacommunities.org/id/metropolitan-district-council/walsall,WC75-502,31/12/2016,Economy & Environment,BOOTS UK LIMITED,07/12/2016,380.55,63000-PROFESSIONAL FEES AND SERVICES,SEXUAL HEALTH,Supplies & Services,Revenue
Walsall Council,http://opendatacommunities.org/id/metropolitan-district-council/walsall,WC75-503,31/12/2016,Economy & Environment,BOOTS UK LIMITED,19/12/2016,424.8,63000-PROFESSIONAL FEES AND SERVICES,SEXUAL HEALTH,Supplies & Services,Revenue
Walsall Council,http://opendatacommunities.org/id/metropolitan-district-council/walsall,WC75-504,31/12/2016,Childrens,BOULTON TRAVEL LIMITED,02/12/2016,"2,373.00",52000-WITH DRIVER-HIRE OF VEHICLES,SCHOOL TRANSPORT,Transport,Revenue
Walsall Council,http://opendatacommunities.org/id/metropolitan-district-council/walsall,WC75-505,31/12/2016,Childrens,BOULTON TRAVEL LIMITED,02/12/2016,"2,667.00",52000-WITH DRIVER-HIRE OF VEHICLES,SCHOOL TRANSPORT,Transport,Revenue
Walsall Council,http://opendatacommunities.org/id/metropolitan-district-council/walsall,WC75-506,31/12/2016,Change and Governance,BRADLEY ENVIRONMENTAL,02/12/2016,271.5,01006-SITE WORKS MAIN CONTRACTORS,CFR 801 ASBESTOS REMOVAL EAST,Capital,Capital
Walsall Council,http://opendatacommunities.org/id/metropolitan-district-council/walsall,WC75-507,31/12/2016,Economy & Environment,BRADVALE LTD T/A INSPIRE HEALTHCARE SERVICES,21/12/2016,555.51,60500-GENERAL MATERIALS,ARBORETUM VISITOR CENTRE,Supplies & Services,Revenue
Walsall Council,http://opendatacommunities.org/id/metropolitan-district-council/walsall,WC75-508,31/12/2016,Change and Governance,BRELMAYNE LTD,12/12/2016,366.85,60006-NEW-FURNITURE & EQUIPMENT,CA ST ANNES CATHOLIC PRIMARY SCHOOL,Supplies & Services,Revenue
Walsall Council,http://opendatacommunities.org/id/metropolitan-district-council/walsall,WC75-509,31/12/2016,Change and Governance,BRELMAYNE LTD,12/12/2016,"2,628.01",60006-NEW-FURNITURE & EQUIPMENT,CA ST JOHNS C.E. PRIMARY SCHOOL,Supplies & Services,Revenue
Walsall Council,http://opendatacommunities.org/id/metropolitan-district-council/walsall,WC75-1400,31/12/2016,Childrens,REDACTED,12/12/2016,"2,508.68",76422-DIRECT PAYMENTS TO SOCIAL SERVICES CLIENTS,FAMILY SUPPORT - DIRECT PAYMENTS,Transfer Payments,Revenue
Walsall Council,http://opendatacommunities.org/id/metropolitan-district-council/walsall,WC75-511,31/12/2016,Childrens,REDACTED,05/12/2016,"1,445.32",62515-MISCELLANEOUS SUPPLIES,INTERNAL FOSTER CARE PROVISION,Supplies & Services,Revenue
Walsall Council,http://opendatacommunities.org/id/metropolitan-district-council/walsall,WC75-512,31/12/2016,Childrens,REDACTED,05/12/2016,"2,025.80",74006-HOLIDAY/CHRISTMAS ALLOWANCE-FOSTER CARERS-OTH AGENCY PROVISION,INTERNAL FOSTER CARE PROVISION,Third Party Payments,Revenue
Walsall Council,http://opendatacommunities.org/id/metropolitan-district-council/walsall,WC75-513,31/12/2016,Economy & Environment,BRENNTAG UK LIMITED,15/12/2016,345.35,60503-CHEMICALS & SCIENTIFIC MATS-MATERIALS,BLOXWICH LEISURE CENTRE,Supplies & Services,Revenue
Walsall Council,http://opendatacommunities.org/id/metropolitan-district-council/walsall,WC75-514,31/12/2016,Economy & Environment,BRENNTAG UK LIMITED,07/12/2016,364.5,60503-CHEMICALS & SCIENTIFIC MATS-MATERIALS,BLOXWICH LEISURE CENTRE,Supplies & Services,Revenue
Walsall Council,http://opendatacommunities.org/id/metropolitan-district-council/walsall,WC75-515,31/12/2016,Economy & Environment,BRENNTAG UK LIMITED,08/12/2016,710.84,50301-FUEL-TRANSPORT RUN COSTS,FUEL STOCK ACCOUNT,Transport,Revenue
Walsall Council,http://opendatacommunities.org/id/metropolitan-district-council/walsall,WC75-1594,31/12/2016,Childrens,REDACTED,12/12/2016,323.7,76422-DIRECT PAYMENTS TO SOCIAL SERVICES CLIENTS,FAMILY SUPPORT - DIRECT PAYMENTS,Transfer Payments,Revenue
Walsall Council,http://opendatacommunities.org/id/metropolitan-district-council/walsall,WC75-1610,31/12/2016,Childrens,REDACTED,12/12/2016,647.4,76422-DIRECT PAYMENTS TO SOCIAL SERVICES CLIENTS,FAMILY SUPPORT - DIRECT PAYMENTS,Transfer Payments,Revenue
Walsall Council,http://opendatacommunities.org/id/metropolitan-district-council/walsall,WC75-1686,31/12/2016,Childrens,REDACTED,12/12/2016,485.55,76422-DIRECT PAYMENTS TO SOCIAL SERVICES CLIENTS,FAMILY SUPPORT - DIRECT PAYMENTS,Transfer Payments,Revenue
Walsall Council,http://opendatacommunities.org/id/metropolitan-district-council/walsall,WC75-1757,31/12/2016,Childrens,REDACTED,12/12/2016,863.2,76422-DIRECT PAYMENTS TO SOCIAL SERVICES CLIENTS,FAMILY SUPPORT - DIRECT PAYMENTS,Transfer Payments,Revenue
Walsall Council,http://opendatacommunities.org/id/metropolitan-district-council/walsall,WC75-520,31/12/2016,Adult Social Care,BRIDGEWOOD HEALTH CARE LTD,13/12/2016,"5,513.72",73373-RESIDENTIAL & NURSING CARE PLACEMENTS,PD COMMISSIONING,Third Party Payments,Revenue
Walsall Council,http://opendatacommunities.org/id/metropolitan-district-council/walsall,WC75-521,31/12/2016,Childrens,BRIGHT HORIZONS (WISHING WILLOW),14/12/2016,"1,099.63",63120-CRECHE FACILITIES-SERVICES-FEES,FAMILY PLACEMENTS,Supplies & Services,Revenue
Walsall Council,http://opendatacommunities.org/id/metropolitan-district-council/walsall,WC75-522,31/12/2016,Change and Governance,BRITISH GAS BUSINESS,15/12/2016,"-1,796.96",42000-GAS-ENERGY COSTS,DARLASTON TOWN HALL,Premises,Revenue
Walsall Council,http://opendatacommunities.org/id/metropolitan-district-council/walsall,WC75-523,31/12/2016,Change and Governance,BRITISH GAS BUSINESS,15/12/2016,"-1,788.27",42000-GAS-ENERGY COSTS,DARLASTON TOWN HALL,Premises,Revenue
Walsall Council,http://opendatacommunities.org/id/metropolitan-district-council/walsall,WC75-524,31/12/2016,Change and Governance,BRITISH GAS BUSINESS,15/12/2016,"-1,482.85",42000-GAS-ENERGY COSTS,DARLASTON TOWN HALL,Premises,Revenue
Walsall Council,http://opendatacommunities.org/id/metropolitan-district-council/walsall,WC75-525,31/12/2016,Change and Governance,BRITISH GAS BUSINESS,15/12/2016,"-1,343.63",42000-GAS-ENERGY COSTS,DARLASTON TOWN HALL,Premises,Revenue
Walsall Council,http://opendatacommunities.org/id/metropolitan-district-council/walsall,WC75-526,31/12/2016,Change and Governance,BRITISH GAS BUSINESS,15/12/2016,"-1,244.37",42000-GAS-ENERGY COSTS,DARLASTON TOWN HALL,Premises,Revenue
Walsall Council,http://opendatacommunities.org/id/metropolitan-district-council/walsall,WC75-527,31/12/2016,Change and Governance,BRITISH GAS BUSINESS,15/12/2016,-898.63,42000-GAS-ENERGY COSTS,DARLASTON TOWN HALL,Premises,Revenue
Walsall Council,http://opendatacommunities.org/id/metropolitan-district-council/walsall,WC75-528,31/12/2016,Change and Governance,BRITISH GAS BUSINESS,15/12/2016,-759.93,42000-GAS-ENERGY COSTS,DARLASTON TOWN HALL,Premises,Revenue
Walsall Council,http://opendatacommunities.org/id/metropolitan-district-council/walsall,WC75-529,31/12/2016,Change and Governance,BRITISH GAS BUSINESS,15/12/2016,-740.3,42000-GAS-ENERGY COSTS,DARLASTON TOWN HALL,Premises,Revenue
Walsall Council,http://opendatacommunities.org/id/metropolitan-district-council/walsall,WC75-530,31/12/2016,Change and Governance,BRITISH GAS BUSINESS,15/12/2016,-432.36,42000-GAS-ENERGY COSTS,DARLASTON TOWN HALL,Premises,Revenue
Walsall Council,http://opendatacommunities.org/id/metropolitan-district-council/walsall,WC75-531,31/12/2016,Change and Governance,BRITISH GAS BUSINESS,15/12/2016,209.13,42000-GAS-ENERGY COSTS,CENTRALISED ENERGY,Premises,Revenue
Walsall Council,http://opendatacommunities.org/id/metropolitan-district-council/walsall,WC75-532,31/12/2016,Change and Governance,BRITISH GAS BUSINESS,15/12/2016,210.72,42000-GAS-ENERGY COSTS,CENTRALISED ENERGY,Premises,Revenue
Walsall Council,http://opendatacommunities.org/id/metropolitan-district-council/walsall,WC75-533,31/12/2016,Change and Governance,BRITISH GAS BUSINESS,15/12/2016,215.27,42000-GAS-ENERGY COSTS,CENTRALISED ENERGY,Premises,Revenue
Walsall Council,http://opendatacommunities.org/id/metropolitan-district-council/walsall,WC75-534,31/12/2016,Change and Governance,BRITISH GAS BUSINESS,15/12/2016,220.06,42000-GAS-ENERGY COSTS,CENTRALISED ENERGY,Premises,Revenue
Walsall Council,http://opendatacommunities.org/id/metropolitan-district-council/walsall,WC75-535,31/12/2016,Change and Governance,BRITISH GAS BUSINESS,15/12/2016,221.95,42000-GAS-ENERGY COSTS,CENTRALISED ENERGY,Premises,Revenue
Walsall Council,http://opendatacommunities.org/id/metropolitan-district-council/walsall,WC75-536,31/12/2016,Change and Governance,BRITISH GAS BUSINESS,15/12/2016,233.28,42000-GAS-ENERGY COSTS,CENTRALISED ENERGY,Premises,Revenue
Walsall Council,http://opendatacommunities.org/id/metropolitan-district-council/walsall,WC75-537,31/12/2016,Change and Governance,BRITISH GAS BUSINESS,15/12/2016,257.06,42000-GAS-ENERGY COSTS,CENTRALISED ENERGY,Premises,Revenue
Walsall Council,http://opendatacommunities.org/id/metropolitan-district-council/walsall,WC75-538,31/12/2016,Change and Governance,BRITISH GAS BUSINESS,15/12/2016,260.46,42000-GAS-ENERGY COSTS,CENTRALISED ENERGY,Premises,Revenue
Walsall Council,http://opendatacommunities.org/id/metropolitan-district-council/walsall,WC75-539,31/12/2016,Change and Governance,BRITISH GAS BUSINESS,15/12/2016,264.9,42000-GAS-ENERGY COSTS,DARLASTON TOWN HALL,Premises,Revenue
Walsall Council,http://opendatacommunities.org/id/metropolitan-district-council/walsall,WC75-540,31/12/2016,Change and Governance,BRITISH GAS BUSINESS,15/12/2016,268.48,42000-GAS-ENERGY COSTS,CENTRALISED ENERGY,Premises,Revenue
Walsall Council,http://opendatacommunities.org/id/metropolitan-district-council/walsall,WC75-541,31/12/2016,Change and Governance,BRITISH GAS BUSINESS,15/12/2016,272.28,42000-GAS-ENERGY COSTS,CENTRALISED ENERGY,Premises,Revenue
Walsall Council,http://opendatacommunities.org/id/metropolitan-district-council/walsall,WC75-542,31/12/2016,Change and Governance,BRITISH GAS BUSINESS,15/12/2016,291.28,42000-GAS-ENERGY COSTS,CENTRALISED ENERGY,Premises,Revenue
Walsall Council,http://opendatacommunities.org/id/metropolitan-district-council/walsall,WC75-543,31/12/2016,Childrens,BRITISH GAS BUSINESS,15/12/2016,315.73,42000-GAS-ENERGY COSTS,LOCALITY FAMILY SUPPORT-WEST,Premises,Revenue
Walsall Council,http://opendatacommunities.org/id/metropolitan-district-council/walsall,WC75-544,31/12/2016,Change and Governance,BRITISH GAS BUSINESS,15/12/2016,362.76,42000-GAS-ENERGY COSTS,CENTRAL OFFICE ACCOMMODATION,Premises,Revenue
Walsall Council,http://opendatacommunities.org/id/metropolitan-district-council/walsall,WC75-545,31/12/2016,Change and Governance,BRITISH GAS BUSINESS,15/12/2016,411.77,42000-GAS-ENERGY COSTS,CENTRALISED ENERGY,Premises,Revenue
Walsall Council,http://opendatacommunities.org/id/metropolitan-district-council/walsall,WC75-546,31/12/2016,Change and Governance,BRITISH GAS BUSINESS,15/12/2016,432.36,42000-GAS-ENERGY COSTS,DARLASTON TOWN HALL,Premises,Revenue
Walsall Council,http://opendatacommunities.org/id/metropolitan-district-council/walsall,WC75-547,31/12/2016,Change and Governance,BRITISH GAS BUSINESS,15/12/2016,446.88,42000-GAS-ENERGY COSTS,CENTRALISED ENERGY,Premises,Revenue
Walsall Council,http://opendatacommunities.org/id/metropolitan-district-council/walsall,WC75-548,31/12/2016,Change and Governance,BRITISH GAS BUSINESS,15/12/2016,540.78,42000-GAS-ENERGY COSTS,RECHARGEABLE UTILITIES,Premises,Revenue
Walsall Council,http://opendatacommunities.org/id/metropolitan-district-council/walsall,WC75-549,31/12/2016,Change and Governance,BRITISH GAS BUSINESS,15/12/2016,684.3,42000-GAS-ENERGY COSTS,CENTRALISED ENERGY,Premises,Revenue
Walsall Council,http://opendatacommunities.org/id/metropolitan-district-council/walsall,WC75-550,31/12/2016,Change and Governance,BRITISH GAS BUSINESS,15/12/2016,686.73,42000-GAS-ENERGY COSTS,DARLASTON TOWN HALL,Premises,Revenue
Walsall Council,http://opendatacommunities.org/id/metropolitan-district-council/walsall,WC75-551,31/12/2016,Change and Governance,BRITISH GAS BUSINESS,15/12/2016,710.41,42000-GAS-ENERGY COSTS,RECHARGEABLE UTILITIES,Premises,Revenue
Walsall Council,http://opendatacommunities.org/id/metropolitan-district-council/walsall,WC75-552,31/12/2016,Change and Governance,BRITISH GAS BUSINESS,15/12/2016,732.2,42000-GAS-ENERGY COSTS,REDUNDANT BUILDINGS,Premises,Revenue
Walsall Council,http://opendatacommunities.org/id/metropolitan-district-council/walsall,WC75-553,31/12/2016,Change and Governance,BRITISH GAS BUSINESS,15/12/2016,740.3,42000-GAS-ENERGY COSTS,DARLASTON TOWN HALL,Premises,Revenue
Walsall Council,http://opendatacommunities.org/id/metropolitan-district-council/walsall,WC75-554,31/12/2016,Change and Governance,BRITISH GAS BUSINESS,15/12/2016,759.93,42000-GAS-ENERGY COSTS,DARLASTON TOWN HALL,Premises,Revenue
Walsall Council,http://opendatacommunities.org/id/metropolitan-district-council/walsall,WC75-555,31/12/2016,Change and Governance,BRITISH GAS BUSINESS,15/12/2016,842.86,42000-GAS-ENERGY COSTS,RECHARGEABLE UTILITIES,Premises,Revenue
Walsall Council,http://opendatacommunities.org/id/metropolitan-district-council/walsall,WC75-556,31/12/2016,Change and Governance,BRITISH GAS BUSINESS,15/12/2016,866.33,42000-GAS-ENERGY COSTS,CENTRALISED ENERGY,Premises,Revenue
Walsall Council,http://opendatacommunities.org/id/metropolitan-district-council/walsall,WC75-557,31/12/2016,Change and Governance,BRITISH GAS BUSINESS,15/12/2016,898.63,42000-GAS-ENERGY COSTS,DARLASTON TOWN HALL,Premises,Revenue
Walsall Council,http://opendatacommunities.org/id/metropolitan-district-council/walsall,WC75-558,31/12/2016,Change and Governance,BRITISH GAS BUSINESS,15/12/2016,907.51,42000-GAS-ENERGY COSTS,RECHARGEABLE UTILITIES,Premises,Revenue
Walsall Council,http://opendatacommunities.org/id/metropolitan-district-council/walsall,WC75-559,31/12/2016,Change and Governance,BRITISH GAS BUSINESS,15/12/2016,909.93,42000-GAS-ENERGY COSTS,CENTRALISED ENERGY,Premises,Revenue
Walsall Council,http://opendatacommunities.org/id/metropolitan-district-council/walsall,WC75-560,31/12/2016,Change and Governance,BRITISH GAS BUSINESS,15/12/2016,986.3,42000-GAS-ENERGY COSTS,CENTRALISED ENERGY,Premises,Revenue
Walsall Council,http://opendatacommunities.org/id/metropolitan-district-council/walsall,WC75-561,31/12/2016,Change and Governance,BRITISH GAS BUSINESS,15/12/2016,"1,124.32",42000-GAS-ENERGY COSTS,CENTRALISED ENERGY,Premises,Revenue
Walsall Council,http://opendatacommunities.org/id/metropolitan-district-council/walsall,WC75-562,31/12/2016,Change and Governance,BRITISH GAS BUSINESS,15/12/2016,"1,184.10",42000-GAS-ENERGY COSTS,CHALLENGE BUILDING,Premises,Revenue
Walsall Council,http://opendatacommunities.org/id/metropolitan-district-council/walsall,WC75-563,31/12/2016,Change and Governance,BRITISH GAS BUSINESS,15/12/2016,"1,244.37",42000-GAS-ENERGY COSTS,DARLASTON TOWN HALL,Premises,Revenue
Walsall Council,http://opendatacommunities.org/id/metropolitan-district-council/walsall,WC75-564,31/12/2016,Change and Governance,BRITISH GAS BUSINESS,15/12/2016,"1,343.63",42000-GAS-ENERGY COSTS,DARLASTON TOWN HALL,Premises,Revenue
Walsall Council,http://opendatacommunities.org/id/metropolitan-district-council/walsall,WC75-565,31/12/2016,Change and Governance,BRITISH GAS BUSINESS,15/12/2016,"1,482.85",42000-GAS-ENERGY COSTS,DARLASTON TOWN HALL,Premises,Revenue
Walsall Council,http://opendatacommunities.org/id/metropolitan-district-council/walsall,WC75-566,31/12/2016,Change and Governance,BRITISH GAS BUSINESS,15/12/2016,"1,788.27",42000-GAS-ENERGY COSTS,DARLASTON TOWN HALL,Premises,Revenue
Walsall Council,http://opendatacommunities.org/id/metropolitan-district-council/walsall,WC75-567,31/12/2016,Change and Governance,BRITISH GAS BUSINESS,15/12/2016,"1,796.96",42000-GAS-ENERGY COSTS,DARLASTON TOWN HALL,Premises,Revenue
Walsall Council,http://opendatacommunities.org/id/metropolitan-district-council/walsall,WC75-568,31/12/2016,Change and Governance,BRITISH GAS BUSINESS,15/12/2016,"2,460.72",42000-GAS-ENERGY COSTS,WALSALL TOWN HALL,Premises,Revenue
Walsall Council,http://opendatacommunities.org/id/metropolitan-district-council/walsall,WC75-569,31/12/2016,Change and Governance,BRITISH GAS BUSINESS,15/12/2016,"2,818.52",42000-GAS-ENERGY COSTS,CENTRALISED ENERGY,Premises,Revenue
Walsall Council,http://opendatacommunities.org/id/metropolitan-district-council/walsall,WC75-570,31/12/2016,Change and Governance,BRITISH GAS BUSINESS,15/12/2016,"3,263.37",42000-GAS-ENERGY COSTS,CENTRALISED ENERGY,Premises,Revenue
Walsall Council,http://opendatacommunities.org/id/metropolitan-district-council/walsall,WC75-571,31/12/2016,Change and Governance,BRITISH GAS BUSINESS,15/12/2016,"3,779.56",42000-GAS-ENERGY COSTS,CENTRAL OFFICE ACCOMMODATION,Premises,Revenue
Walsall Council,http://opendatacommunities.org/id/metropolitan-district-council/walsall,WC75-572,31/12/2016,Change and Governance,BRITISH GAS BUSINESS,15/12/2016,"4,503.16",42000-GAS-ENERGY COSTS,CENTRALISED ENERGY,Premises,Revenue
Walsall Council,http://opendatacommunities.org/id/metropolitan-district-council/walsall,WC75-573,31/12/2016,Change and Governance,BRITISH GAS BUSINESS,15/12/2016,"4,872.46",42000-GAS-ENERGY COSTS,RECHARGEABLE UTILITIES,Premises,Revenue
Walsall Council,http://opendatacommunities.org/id/metropolitan-district-council/walsall,WC75-574,31/12/2016,Change and Governance,BRITISH GAS BUSINESS,23/12/2016,"26,310.89",42000-GAS-ENERGY COSTS,REDUNDANT BUILDINGS,Premises,Revenue
Walsall Council,http://opendatacommunities.org/id/metropolitan-district-council/walsall,WC75-575,31/12/2016,Economy & Environment,BROADWAY PHARMACY,07/12/2016,70.8,63000-PROFESSIONAL FEES AND SERVICES,SEXUAL HEALTH,Supplies & Services,Revenue
Walsall Council,http://opendatacommunities.org/id/metropolitan-district-council/walsall,WC75-576,31/12/2016,Economy & Environment,BROADWAY PHARMACY,19/12/2016,106.2,63000-PROFESSIONAL FEES AND SERVICES,SEXUAL HEALTH,Supplies & Services,Revenue
Walsall Council,http://opendatacommunities.org/id/metropolitan-district-council/walsall,WC75-577,31/12/2016,Economy & Environment,BROADWAY PHARMACY,07/12/2016,385.43,71007-CONTRIBUTION TO PCT,PUBLIC HEALTH BUSINESS SUPPORT,Third Party Payments,Revenue
Walsall Council,http://opendatacommunities.org/id/metropolitan-district-council/walsall,WC75-578,31/12/2016,Economy & Environment,BROADWAY PHARMACY,19/12/2016,840.13,71007-CONTRIBUTION TO PCT,PUBLIC HEALTH BUSINESS SUPPORT,Third Party Payments,Revenue
Walsall Council,http://opendatacommunities.org/id/metropolitan-district-council/walsall,WC75-579,31/12/2016,Economy & Environment,BROWNHILLS ASPHALT & TARMAC LIMITED,01/12/2016,968,60500-GENERAL MATERIALS,INFRASTRUCTURE MAINTENANCE,Supplies & Services,Revenue
Walsall Council,http://opendatacommunities.org/id/metropolitan-district-council/walsall,WC75-580,31/12/2016,Childrens,BROWNHILLS COMMUNITY ASSOCIATION,22/12/2016,"1,801.97",66505-OTHER-GRANTS TO OTHER ORGS,INDEPENDENT PROVIDERS - SPECIAL & AP,Third Party Payments,Revenue
Walsall Council,http://opendatacommunities.org/id/metropolitan-district-council/walsall,WC75-581,31/12/2016,Childrens,BROWNHILLS COMMUNITY ASSOCIATION,01/12/2016,"4,386.33",66505-OTHER-GRANTS TO OTHER ORGS,EARLY YEARS - 2 YR OLDS,Third Party Payments,Revenue
Walsall Council,http://opendatacommunities.org/id/metropolitan-district-council/walsall,WC75-582,31/12/2016,Childrens,BROWNHILLS COMMUNITY ASSOCIATION,02/12/2016,"11,159.50",66500-GRANTS TO OTHER ORGS,CENTRAL SUPPORT,Third Party Payments,Revenue
Walsall Council,http://opendatacommunities.org/id/metropolitan-district-council/walsall,WC75-583,31/12/2016,Childrens,BROWNHILLS COMMUNITY ASSOCIATION,07/12/2016,"11,159.50",66500-GRANTS TO OTHER ORGS,CENTRAL SUPPORT,Third Party Payments,Revenue
Walsall Council,http://opendatacommunities.org/id/metropolitan-district-council/walsall,WC75-1787,31/12/2016,Childrens,REDACTED,12/12/2016,450,76422-DIRECT PAYMENTS TO SOCIAL SERVICES CLIENTS,FAMILY SUPPORT - DIRECT PAYMENTS,Transfer Payments,Revenue
Walsall Council,http://opendatacommunities.org/id/metropolitan-district-council/walsall,WC75-1865,31/12/2016,Childrens,REDACTED,12/12/2016,539.5,76422-DIRECT PAYMENTS TO SOCIAL SERVICES CLIENTS,FAMILY SUPPORT - DIRECT PAYMENTS,Transfer Payments,Revenue
Walsall Council,http://opendatacommunities.org/id/metropolitan-district-council/walsall,WC75-1871,31/12/2016,Childrens,REDACTED,12/12/2016,620.43,76422-DIRECT PAYMENTS TO SOCIAL SERVICES CLIENTS,FAMILY SUPPORT - DIRECT PAYMENTS,Transfer Payments,Revenue
Walsall Council,http://opendatacommunities.org/id/metropolitan-district-council/walsall,WC75-2365,31/12/2016,Childrens,REDACTED,12/12/2016,377.65,76422-DIRECT PAYMENTS TO SOCIAL SERVICES CLIENTS,FAMILY SUPPORT - DIRECT PAYMENTS,Transfer Payments,Revenue
Walsall Council,http://opendatacommunities.org/id/metropolitan-district-council/walsall,WC75-588,31/12/2016,Change and Governance,BT,01/12/2016,835,63603-COST OF CALLS-TELEPHONES,PROCESSING,Supplies & Services,Revenue
Walsall Council,http://opendatacommunities.org/id/metropolitan-district-council/walsall,WC75-589,31/12/2016,Change and Governance,BT,12/12/2016,"15,003.64",63601-COSTS (NOT INTERNAL RECHARGES)-TELEPHONES,CENTRAL COMMUNICATIONS RECHARGES,Supplies & Services,Revenue
Walsall Council,http://opendatacommunities.org/id/metropolitan-district-council/walsall,WC75-590,31/12/2016,Change and Governance,BT PLC,01/12/2016,"1,268.35",63601-COSTS (NOT INTERNAL RECHARGES)-TELEPHONES,RECHARGEABLE EQUIPMENT,Supplies & Services,Revenue
Walsall Council,http://opendatacommunities.org/id/metropolitan-district-council/walsall,WC75-591,31/12/2016,Change and Governance,BT PLC,07/12/2016,"4,354.66",63601-COSTS (NOT INTERNAL RECHARGES)-TELEPHONES,CENTRAL COMMUNICATIONS RECHARGES,Supplies & Services,Revenue
Walsall Council,http://opendatacommunities.org/id/metropolitan-district-council/walsall,WC75-592,31/12/2016,Change and Governance,BT PLC,07/12/2016,"18,498.33",63601-COSTS (NOT INTERNAL RECHARGES)-TELEPHONES,CENTRAL COMMUNICATIONS RECHARGES,Supplies & Services,Revenue
Walsall Council,http://opendatacommunities.org/id/metropolitan-district-council/walsall,WC75-593,31/12/2016,Economy & Environment,BUFFET EXPRESS LTD,12/12/2016,250.5,61009-BEVERAGES-PROVISIONS,FOREST ARTS CENTRE,Supplies & Services,Revenue
Walsall Council,http://opendatacommunities.org/id/metropolitan-district-council/walsall,WC75-594,31/12/2016,Adult Social Care,BUPA CARE HOMES (CFHCARE) LTD,13/12/2016,"1,649.80",73373-RESIDENTIAL & NURSING CARE PLACEMENTS,OP COMMISSIONING,Third Party Payments,Revenue
Walsall Council,http://opendatacommunities.org/id/metropolitan-district-council/walsall,WC75-595,31/12/2016,Adult Social Care,BUPA CARE HOMES (CFHCARE) LTD,13/12/2016,"3,380.20",73373-RESIDENTIAL & NURSING CARE PLACEMENTS,OP COMMISSIONING,Third Party Payments,Revenue
Walsall Council,http://opendatacommunities.org/id/metropolitan-district-council/walsall,WC75-596,31/12/2016,Adult Social Care,BUPA CARE HOMES (CFHCARE) LTD,20/12/2016,"3,605.10",73373-RESIDENTIAL & NURSING CARE PLACEMENTS,OP COMMISSIONING,Third Party Payments,Revenue
Walsall Council,http://opendatacommunities.org/id/metropolitan-district-council/walsall,WC75-597,31/12/2016,Adult Social Care,BUPA TRENEWYDD CARE HOME,13/12/2016,"3,342.86",73373-RESIDENTIAL & NURSING CARE PLACEMENTS,OP COMMISSIONING,Third Party Payments,Revenue
Walsall Council,http://opendatacommunities.org/id/metropolitan-district-council/walsall,WC75-598,31/12/2016,Adult Social Care,BUPA TRENEWYDD CARE HOME,13/12/2016,"3,600.00",73373-RESIDENTIAL & NURSING CARE PLACEMENTS,OP COMMISSIONING,Third Party Payments,Revenue
Walsall Council,http://opendatacommunities.org/id/metropolitan-district-council/walsall,WC75-599,31/12/2016,Adult Social Care,BUSH HOME LTD,13/12/2016,"1,620.00",73373-RESIDENTIAL & NURSING CARE PLACEMENTS,OP COMMISSIONING,Third Party Payments,Revenue
Walsall Council,http://opendatacommunities.org/id/metropolitan-district-council/walsall,WC75-600,31/12/2016,Adult Social Care,BUSH HOME LTD,13/12/2016,"1,620.00",73373-RESIDENTIAL & NURSING CARE PLACEMENTS,OP COMMISSIONING,Third Party Payments,Revenue
Walsall Council,http://opendatacommunities.org/id/metropolitan-district-council/walsall,WC75-601,31/12/2016,Adult Social Care,BUSH HOME LTD,13/12/2016,"1,620.00",73373-RESIDENTIAL & NURSING CARE PLACEMENTS,OP COMMISSIONING,Third Party Payments,Revenue
Walsall Council,http://opendatacommunities.org/id/metropolitan-district-council/walsall,WC75-602,31/12/2016,Adult Social Care,BUSH HOME LTD,13/12/2016,"1,620.00",73373-RESIDENTIAL & NURSING CARE PLACEMENTS,OP COMMISSIONING,Third Party Payments,Revenue
Walsall Council,http://opendatacommunities.org/id/metropolitan-district-council/walsall,WC75-603,31/12/2016,Adult Social Care,BUSH HOME LTD,13/12/2016,"1,620.00",73373-RESIDENTIAL & NURSING CARE PLACEMENTS,OP COMMISSIONING,Third Party Payments,Revenue
Walsall Council,http://opendatacommunities.org/id/metropolitan-district-council/walsall,WC75-604,31/12/2016,Adult Social Care,BUSH HOME LTD,13/12/2016,"1,800.00",73373-RESIDENTIAL & NURSING CARE PLACEMENTS,OP COMMISSIONING,Third Party Payments,Revenue
Walsall Council,http://opendatacommunities.org/id/metropolitan-district-council/walsall,WC75-605,31/12/2016,Adult Social Care,BUSH HOME LTD,13/12/2016,"1,800.00",73373-RESIDENTIAL & NURSING CARE PLACEMENTS,OP COMMISSIONING,Third Party Payments,Revenue
Walsall Council,http://opendatacommunities.org/id/metropolitan-district-council/walsall,WC75-606,31/12/2016,Adult Social Care,BUSH HOME LTD,13/12/2016,"1,800.00",73373-RESIDENTIAL & NURSING CARE PLACEMENTS,OP COMMISSIONING,Third Party Payments,Revenue
Walsall Council,http://opendatacommunities.org/id/metropolitan-district-council/walsall,WC75-607,31/12/2016,Adult Social Care,BUSH HOME LTD,13/12/2016,"1,800.00",73373-RESIDENTIAL & NURSING CARE PLACEMENTS,OP COMMISSIONING,Third Party Payments,Revenue
Walsall Council,http://opendatacommunities.org/id/metropolitan-district-council/walsall,WC75-608,31/12/2016,Adult Social Care,BUSH HOME LTD,13/12/2016,"1,800.00",73373-RESIDENTIAL & NURSING CARE PLACEMENTS,OP COMMISSIONING,Third Party Payments,Revenue
Walsall Council,http://opendatacommunities.org/id/metropolitan-district-council/walsall,WC75-609,31/12/2016,Adult Social Care,BUSH HOME LTD,13/12/2016,"1,800.00",73373-RESIDENTIAL & NURSING CARE PLACEMENTS,OP COMMISSIONING,Third Party Payments,Revenue
Walsall Council,http://opendatacommunities.org/id/metropolitan-district-council/walsall,WC75-610,31/12/2016,Adult Social Care,BUSH HOME LTD,13/12/2016,"1,800.00",73373-RESIDENTIAL & NURSING CARE PLACEMENTS,OP COMMISSIONING,Third Party Payments,Revenue
Walsall Council,http://opendatacommunities.org/id/metropolitan-district-council/walsall,WC75-611,31/12/2016,Adult Social Care,BUSH HOME LTD,13/12/2016,"1,800.00",73373-RESIDENTIAL & NURSING CARE PLACEMENTS,OP COMMISSIONING,Third Party Payments,Revenue
Walsall Council,http://opendatacommunities.org/id/metropolitan-district-council/walsall,WC75-612,31/12/2016,Adult Social Care,BUSH HOME LTD,13/12/2016,"1,800.00",73373-RESIDENTIAL & NURSING CARE PLACEMENTS,OP COMMISSIONING,Third Party Payments,Revenue
Walsall Council,http://opendatacommunities.org/id/metropolitan-district-council/walsall,WC75-613,31/12/2016,Adult Social Care,BUSH HOME LTD,13/12/2016,"1,800.00",73373-RESIDENTIAL & NURSING CARE PLACEMENTS,OP COMMISSIONING,Third Party Payments,Revenue
Walsall Council,http://opendatacommunities.org/id/metropolitan-district-council/walsall,WC75-614,31/12/2016,Adult Social Care,BUSH HOME LTD,13/12/2016,"1,800.00",73373-RESIDENTIAL & NURSING CARE PLACEMENTS,OP COMMISSIONING,Third Party Payments,Revenue
Walsall Council,http://opendatacommunities.org/id/metropolitan-district-council/walsall,WC75-615,31/12/2016,Adult Social Care,BUSH HOME LTD,13/12/2016,"1,800.00",73373-RESIDENTIAL & NURSING CARE PLACEMENTS,OP COMMISSIONING,Third Party Payments,Revenue
Walsall Council,http://opendatacommunities.org/id/metropolitan-district-council/walsall,WC75-616,31/12/2016,Adult Social Care,BUSH HOME LTD,13/12/2016,"1,800.00",73373-RESIDENTIAL & NURSING CARE PLACEMENTS,OP COMMISSIONING,Third Party Payments,Revenue
Walsall Council,http://opendatacommunities.org/id/metropolitan-district-council/walsall,WC75-617,31/12/2016,Adult Social Care,BUSH HOME LTD,13/12/2016,"1,992.85",73373-RESIDENTIAL & NURSING CARE PLACEMENTS,MH COMMISSIONING,Third Party Payments,Revenue
Walsall Council,http://opendatacommunities.org/id/metropolitan-district-council/walsall,WC75-618,31/12/2016,Childrens,BUSY BEES CHILDCARE LTD,01/12/2016,381.42,66505-OTHER-GRANTS TO OTHER ORGS,EARLY YEARS - 2 YR OLDS,Third Party Payments,Revenue
Walsall Council,http://opendatacommunities.org/id/metropolitan-district-council/walsall,WC75-619,31/12/2016,Childrens,BUSY BEES CHILDCARE LTD,01/12/2016,"3,646.50",66505-OTHER-GRANTS TO OTHER ORGS,EARLY YEARS - 3 YR OLDS,Third Party Payments,Revenue
Walsall Council,http://opendatacommunities.org/id/metropolitan-district-council/walsall,WC75-620,31/12/2016,Childrens,BY THE BRIDGE,07/12/2016,"3,151.15",74037-INDEPENDENT FOSTER CARE-OTH AGENCY PROVISION,EXTERNAL FOSTER CARE PROVISION,Third Party Payments,Revenue
Walsall Council,http://opendatacommunities.org/id/metropolitan-district-council/walsall,WC75-621,31/12/2016,Childrens,BY THE BRIDGE,07/12/2016,"3,233.30",74037-INDEPENDENT FOSTER CARE-OTH AGENCY PROVISION,EXTERNAL FOSTER CARE PROVISION,Third Party Payments,Revenue
Walsall Council,http://opendatacommunities.org/id/metropolitan-district-council/walsall,WC75-622,31/12/2016,Childrens,BY THE BRIDGE,07/12/2016,"3,361.64",74037-INDEPENDENT FOSTER CARE-OTH AGENCY PROVISION,EXTERNAL FOSTER CARE PROVISION,Third Party Payments,Revenue
Walsall Council,http://opendatacommunities.org/id/metropolitan-district-council/walsall,WC75-623,31/12/2016,Childrens,BY THE BRIDGE,07/12/2016,"3,432.14",74037-INDEPENDENT FOSTER CARE-OTH AGENCY PROVISION,EXTERNAL FOSTER CARE PROVISION,Third Party Payments,Revenue
Walsall Council,http://opendatacommunities.org/id/metropolitan-district-council/walsall,WC75-624,31/12/2016,Childrens,BY THE BRIDGE,07/12/2016,"4,948.93",74037-INDEPENDENT FOSTER CARE-OTH AGENCY PROVISION,EXTERNAL FOSTER CARE PROVISION,Third Party Payments,Revenue
Walsall Council,http://opendatacommunities.org/id/metropolitan-district-council/walsall,WC75-625,31/12/2016,Adult Social Care,C & V ORCHARD MANOR LTD,20/12/2016,694.25,73373-RESIDENTIAL & NURSING CARE PLACEMENTS,OP COMMISSIONING,Third Party Payments,Revenue
Walsall Council,http://opendatacommunities.org/id/metropolitan-district-council/walsall,WC75-626,31/12/2016,Adult Social Care,C & V ORCHARD MANOR LTD,13/12/2016,"1,479.33",73373-RESIDENTIAL & NURSING CARE PLACEMENTS,OP COMMISSIONING,Third Party Payments,Revenue
Walsall Council,http://opendatacommunities.org/id/metropolitan-district-council/walsall,WC75-627,31/12/2016,Adult Social Care,C & V ORCHARD MANOR LTD,13/12/2016,"1,534.12",73373-RESIDENTIAL & NURSING CARE PLACEMENTS,OP COMMISSIONING,Third Party Payments,Revenue
Walsall Council,http://opendatacommunities.org/id/metropolitan-district-council/walsall,WC75-628,31/12/2016,Adult Social Care,C & V ORCHARD MANOR LTD,13/12/2016,"1,534.12",73373-RESIDENTIAL & NURSING CARE PLACEMENTS,OP COMMISSIONING,Third Party Payments,Revenue
Walsall Council,http://opendatacommunities.org/id/metropolitan-district-council/walsall,WC75-629,31/12/2016,Adult Social Care,C & V ORCHARD MANOR LTD,13/12/2016,"1,534.12",73373-RESIDENTIAL & NURSING CARE PLACEMENTS,OP COMMISSIONING,Third Party Payments,Revenue
Walsall Council,http://opendatacommunities.org/id/metropolitan-district-council/walsall,WC75-630,31/12/2016,Adult Social Care,C & V ORCHARD MANOR LTD,13/12/2016,"1,534.12",73373-RESIDENTIAL & NURSING CARE PLACEMENTS,OP COMMISSIONING,Third Party Payments,Revenue
Walsall Council,http://opendatacommunities.org/id/metropolitan-district-council/walsall,WC75-631,31/12/2016,Adult Social Care,C & V ORCHARD MANOR LTD,13/12/2016,"1,568.60",73373-RESIDENTIAL & NURSING CARE PLACEMENTS,OP COMMISSIONING,Third Party Payments,Revenue
Walsall Council,http://opendatacommunities.org/id/metropolitan-district-council/walsall,WC75-632,31/12/2016,Adult Social Care,C & V ORCHARD MANOR LTD,13/12/2016,"1,568.60",73373-RESIDENTIAL & NURSING CARE PLACEMENTS,OP COMMISSIONING,Third Party Payments,Revenue
Walsall Council,http://opendatacommunities.org/id/metropolitan-district-council/walsall,WC75-633,31/12/2016,Adult Social Care,C & V ORCHARD MANOR LTD,13/12/2016,"1,568.60",73373-RESIDENTIAL & NURSING CARE PLACEMENTS,OP COMMISSIONING,Third Party Payments,Revenue
Walsall Council,http://opendatacommunities.org/id/metropolitan-district-council/walsall,WC75-634,31/12/2016,Adult Social Care,C & V ORCHARD MANOR LTD,13/12/2016,"1,568.60",73373-RESIDENTIAL & NURSING CARE PLACEMENTS,OP COMMISSIONING,Third Party Payments,Revenue
Walsall Council,http://opendatacommunities.org/id/metropolitan-district-council/walsall,WC75-635,31/12/2016,Adult Social Care,C & V ORCHARD MANOR LTD,13/12/2016,"1,568.60",73373-RESIDENTIAL & NURSING CARE PLACEMENTS,OP COMMISSIONING,Third Party Payments,Revenue
Walsall Council,http://opendatacommunities.org/id/metropolitan-district-council/walsall,WC75-636,31/12/2016,Adult Social Care,C & V ORCHARD MANOR LTD,20/12/2016,"1,620.00",73373-RESIDENTIAL & NURSING CARE PLACEMENTS,OP COMMISSIONING,Third Party Payments,Revenue
Walsall Council,http://opendatacommunities.org/id/metropolitan-district-council/walsall,WC75-637,31/12/2016,Adult Social Care,C & V ORCHARD MANOR LTD,20/12/2016,"1,620.00",73373-RESIDENTIAL & NURSING CARE PLACEMENTS,LD COMMISSIONING,Third Party Payments,Revenue
Walsall Council,http://opendatacommunities.org/id/metropolitan-district-council/walsall,WC75-638,31/12/2016,Adult Social Care,C & V ORCHARD MANOR LTD,20/12/2016,"1,620.00",73373-RESIDENTIAL & NURSING CARE PLACEMENTS,OP COMMISSIONING,Third Party Payments,Revenue
Walsall Council,http://opendatacommunities.org/id/metropolitan-district-council/walsall,WC75-639,31/12/2016,Adult Social Care,C & V ORCHARD MANOR LTD,20/12/2016,"1,620.00",73373-RESIDENTIAL & NURSING CARE PLACEMENTS,MH COMMISSIONING,Third Party Payments,Revenue
Walsall Council,http://opendatacommunities.org/id/metropolitan-district-council/walsall,WC75-640,31/12/2016,Adult Social Care,C & V ORCHARD MANOR LTD,20/12/2016,"1,620.00",73373-RESIDENTIAL & NURSING CARE PLACEMENTS,MH COMMISSIONING,Third Party Payments,Revenue
Walsall Council,http://opendatacommunities.org/id/metropolitan-district-council/walsall,WC75-641,31/12/2016,Adult Social Care,C & V ORCHARD MANOR LTD,20/12/2016,"1,620.60",73373-RESIDENTIAL & NURSING CARE PLACEMENTS,OP COMMISSIONING,Third Party Payments,Revenue
Walsall Council,http://opendatacommunities.org/id/metropolitan-district-council/walsall,WC75-642,31/12/2016,Adult Social Care,C & V ORCHARD MANOR LTD,20/12/2016,"1,800.00",73373-RESIDENTIAL & NURSING CARE PLACEMENTS,OP COMMISSIONING,Third Party Payments,Revenue
Walsall Council,http://opendatacommunities.org/id/metropolitan-district-council/walsall,WC75-643,31/12/2016,Adult Social Care,C & V ORCHARD MANOR LTD,20/12/2016,"1,800.00",73373-RESIDENTIAL & NURSING CARE PLACEMENTS,OP COMMISSIONING,Third Party Payments,Revenue
Walsall Council,http://opendatacommunities.org/id/metropolitan-district-council/walsall,WC75-644,31/12/2016,Adult Social Care,C & V ORCHARD MANOR LTD,20/12/2016,"1,800.00",73373-RESIDENTIAL & NURSING CARE PLACEMENTS,MH COMMISSIONING,Third Party Payments,Revenue
Walsall Council,http://opendatacommunities.org/id/metropolitan-district-council/walsall,WC75-645,31/12/2016,Adult Social Care,C & V ORCHARD MANOR LTD,20/12/2016,"1,800.00",73373-RESIDENTIAL & NURSING CARE PLACEMENTS,MH COMMISSIONING,Third Party Payments,Revenue
Walsall Council,http://opendatacommunities.org/id/metropolitan-district-council/walsall,WC75-646,31/12/2016,Adult Social Care,C & V ORCHARD MANOR LTD,20/12/2016,"1,800.00",73373-RESIDENTIAL & NURSING CARE PLACEMENTS,OP COMMISSIONING,Third Party Payments,Revenue
Walsall Council,http://opendatacommunities.org/id/metropolitan-district-council/walsall,WC75-647,31/12/2016,Adult Social Care,C & V ORCHARD MANOR LTD,20/12/2016,"2,488.85",73373-RESIDENTIAL & NURSING CARE PLACEMENTS,MH COMMISSIONING,Third Party Payments,Revenue
Walsall Council,http://opendatacommunities.org/id/metropolitan-district-council/walsall,WC75-648,31/12/2016,Adult Social Care,C & V ORCHARD MANOR LTD,13/12/2016,"4,602.36",73373-RESIDENTIAL & NURSING CARE PLACEMENTS,OP COMMISSIONING,Third Party Payments,Revenue
Walsall Council,http://opendatacommunities.org/id/metropolitan-district-council/walsall,WC75-649,31/12/2016,Adult Social Care,C & V ORCHARD RESIDENTIAL LTD,20/12/2016,578.55,73373-RESIDENTIAL & NURSING CARE PLACEMENTS,OP COMMISSIONING,Third Party Payments,Revenue
Walsall Council,http://opendatacommunities.org/id/metropolitan-district-council/walsall,WC75-650,31/12/2016,Adult Social Care,C & V ORCHARD RESIDENTIAL LTD,20/12/2016,"1,620.00",73373-RESIDENTIAL & NURSING CARE PLACEMENTS,OP COMMISSIONING,Third Party Payments,Revenue
Walsall Council,http://opendatacommunities.org/id/metropolitan-district-council/walsall,WC75-651,31/12/2016,Adult Social Care,C & V ORCHARD RESIDENTIAL LTD,20/12/2016,"1,620.00",73373-RESIDENTIAL & NURSING CARE PLACEMENTS,OP COMMISSIONING,Third Party Payments,Revenue
Walsall Council,http://opendatacommunities.org/id/metropolitan-district-council/walsall,WC75-652,31/12/2016,Adult Social Care,C & V ORCHARD RESIDENTIAL LTD,20/12/2016,"1,620.00",73373-RESIDENTIAL & NURSING CARE PLACEMENTS,OP COMMISSIONING,Third Party Payments,Revenue
Walsall Council,http://opendatacommunities.org/id/metropolitan-district-council/walsall,WC75-653,31/12/2016,Adult Social Care,C & V ORCHARD RESIDENTIAL LTD,20/12/2016,"1,620.00",73373-RESIDENTIAL & NURSING CARE PLACEMENTS,OP COMMISSIONING,Third Party Payments,Revenue
Walsall Council,http://opendatacommunities.org/id/metropolitan-district-council/walsall,WC75-654,31/12/2016,Adult Social Care,C & V ORCHARD RESIDENTIAL LTD,20/12/2016,"1,799.96",73373-RESIDENTIAL & NURSING CARE PLACEMENTS,OP COMMISSIONING,Third Party Payments,Revenue
Walsall Council,http://opendatacommunities.org/id/metropolitan-district-council/walsall,WC75-655,31/12/2016,Adult Social Care,C & V ORCHARD RESIDENTIAL LTD,20/12/2016,"1,800.00",73373-RESIDENTIAL & NURSING CARE PLACEMENTS,OP COMMISSIONING,Third Party Payments,Revenue
Walsall Council,http://opendatacommunities.org/id/metropolitan-district-council/walsall,WC75-656,31/12/2016,Adult Social Care,C & V ORCHARD RESIDENTIAL LTD,20/12/2016,"1,800.00",73373-RESIDENTIAL & NURSING CARE PLACEMENTS,OP COMMISSIONING,Third Party Payments,Revenue
Walsall Council,http://opendatacommunities.org/id/metropolitan-district-council/walsall,WC75-657,31/12/2016,Adult Social Care,C & V ORCHARD RESIDENTIAL LTD,20/12/2016,"1,800.00",73373-RESIDENTIAL & NURSING CARE PLACEMENTS,OP COMMISSIONING,Third Party Payments,Revenue
Walsall Council,http://opendatacommunities.org/id/metropolitan-district-council/walsall,WC75-658,31/12/2016,Adult Social Care,C & V ORCHARD RESIDENTIAL LTD,20/12/2016,"1,800.00",73373-RESIDENTIAL & NURSING CARE PLACEMENTS,OP COMMISSIONING,Third Party Payments,Revenue
Walsall Council,http://opendatacommunities.org/id/metropolitan-district-council/walsall,WC75-659,31/12/2016,Adult Social Care,C & V ORCHARD RESIDENTIAL LTD,20/12/2016,"1,800.00",73373-RESIDENTIAL & NURSING CARE PLACEMENTS,OP COMMISSIONING,Third Party Payments,Revenue
Walsall Council,http://opendatacommunities.org/id/metropolitan-district-council/walsall,WC75-660,31/12/2016,Adult Social Care,C & V ORCHARD RESIDENTIAL LTD,20/12/2016,"1,800.00",73373-RESIDENTIAL & NURSING CARE PLACEMENTS,OP COMMISSIONING,Third Party Payments,Revenue
Walsall Council,http://opendatacommunities.org/id/metropolitan-district-council/walsall,WC75-661,31/12/2016,Adult Social Care,C & V ORCHARD RESIDENTIAL LTD,20/12/2016,"1,800.00",73373-RESIDENTIAL & NURSING CARE PLACEMENTS,OP COMMISSIONING,Third Party Payments,Revenue
Walsall Council,http://opendatacommunities.org/id/metropolitan-district-council/walsall,WC75-662,31/12/2016,Adult Social Care,C & V ORCHARD RESIDENTIAL LTD,20/12/2016,"1,864.28",73373-RESIDENTIAL & NURSING CARE PLACEMENTS,OP COMMISSIONING,Third Party Payments,Revenue
Walsall Council,http://opendatacommunities.org/id/metropolitan-district-council/walsall,WC75-663,31/12/2016,Economy & Environment,C ART ART TRANSPORT LTD,16/12/2016,335,73032-TRANSPORTATION-PRIV CONTRACTOR FEES,NAG - TEMPORARY EXHIBITIONS,Third Party Payments,Revenue
Walsall Council,http://opendatacommunities.org/id/metropolitan-district-council/walsall,WC75-664,31/12/2016,Economy & Environment,C ART ART TRANSPORT LTD,05/12/2016,375,73032-TRANSPORTATION-PRIV CONTRACTOR FEES,NAG - TEMPORARY EXHIBITIONS,Third Party Payments,Revenue
Walsall Council,http://opendatacommunities.org/id/metropolitan-district-council/walsall,WC75-665,31/12/2016,Childrens,REDACTED,05/12/2016,"4,317.64",62515-MISCELLANEOUS SUPPLIES,INTERNAL FOSTER CARE PROVISION,Supplies & Services,Revenue
Walsall Council,http://opendatacommunities.org/id/metropolitan-district-council/walsall,WC75-666,31/12/2016,Childrens,REDACTED,05/12/2016,"6,608.93",74006-HOLIDAY/CHRISTMAS ALLOWANCE-FOSTER CARERS-OTH AGENCY PROVISION,INTERNAL FOSTER CARE PROVISION,Third Party Payments,Revenue
Walsall Council,http://opendatacommunities.org/id/metropolitan-district-council/walsall,WC75-667,31/12/2016,Childrens,REDACTED,05/12/2016,"1,445.32",62515-MISCELLANEOUS SUPPLIES,INTERNAL FOSTER CARE PROVISION,Supplies & Services,Revenue
Walsall Council,http://opendatacommunities.org/id/metropolitan-district-council/walsall,WC75-668,31/12/2016,Childrens,REDACTED,05/12/2016,"2,025.80",74006-HOLIDAY/CHRISTMAS ALLOWANCE-FOSTER CARERS-OTH AGENCY PROVISION,INTERNAL FOSTER CARE PROVISION,Third Party Payments,Revenue
Walsall Council,http://opendatacommunities.org/id/metropolitan-district-council/walsall,WC75-669,31/12/2016,Economy & Environment,C P DAVIDSON & SONS LTD,22/12/2016,226.5,60500-GENERAL MATERIALS,FLEET,Supplies & Services,Revenue
Walsall Council,http://opendatacommunities.org/id/metropolitan-district-council/walsall,WC75-670,31/12/2016,Economy & Environment,C P DAVIDSON & SONS LTD,09/12/2016,258.14,60514-MATERIALS TO STORES,FLEET PARTS STOCK ACCOUNT,Supplies & Services,Revenue
Walsall Council,http://opendatacommunities.org/id/metropolitan-district-council/walsall,WC75-671,31/12/2016,Economy & Environment,C P DAVIDSON & SONS LTD,22/12/2016,325,73025-PROFESSIONAL SERVICES-PRIV CONTRACTOR & OTHER AGENCIES,FLEET,Third Party Payments,Revenue
Walsall Council,http://opendatacommunities.org/id/metropolitan-district-council/walsall,WC75-672,31/12/2016,Economy & Environment,C P DAVIDSON & SONS LTD,22/12/2016,477.43,60500-GENERAL MATERIALS,FLEET,Supplies & Services,Revenue
Walsall Council,http://opendatacommunities.org/id/metropolitan-district-council/walsall,WC75-673,31/12/2016,Childrens,REDACTED,19/12/2016,"1,222.36",74006-HOLIDAY/CHRISTMAS ALLOWANCE-FOSTER CARERS-OTH AGENCY PROVISION,INTERNAL FOSTER CARE PROVISION,Third Party Payments,Revenue
Walsall Council,http://opendatacommunities.org/id/metropolitan-district-council/walsall,WC75-674,31/12/2016,Economy & Environment,CALDERDALE AND HUDDERSFIELD NHS FOUNDATION TRUST,16/12/2016,374.87,63000-PROFESSIONAL FEES AND SERVICES,SEXUAL HEALTH,Supplies & Services,Revenue
Walsall Council,http://opendatacommunities.org/id/metropolitan-district-council/walsall,WC75-675,31/12/2016,Adult Social Care,CALDMORE AREA HOUSING ASS LTD,09/12/2016,394.63,73372-DOMICILIARY CARE,MH COMMISSIONING,Third Party Payments,Revenue
Walsall Council,http://opendatacommunities.org/id/metropolitan-district-council/walsall,WC75-676,31/12/2016,Adult Social Care,CALDMORE AREA HOUSING ASS LTD,21/12/2016,412.3,73372-DOMICILIARY CARE,MH COMMISSIONING,Third Party Payments,Revenue
Walsall Council,http://opendatacommunities.org/id/metropolitan-district-council/walsall,WC75-677,31/12/2016,Adult Social Care,CALDMORE AREA HOUSING ASS LTD,21/12/2016,434.47,73374-SUPPORTED & OTHER ACCOMMODATION,MH COMMISSIONING,Third Party Payments,Revenue
Walsall Council,http://opendatacommunities.org/id/metropolitan-district-council/walsall,WC75-678,31/12/2016,Adult Social Care,CALDMORE AREA HOUSING ASS LTD,01/12/2016,576.8,73374-SUPPORTED & OTHER ACCOMMODATION,LD COMMISSIONING,Third Party Payments,Revenue
Walsall Council,http://opendatacommunities.org/id/metropolitan-district-council/walsall,WC75-679,31/12/2016,Adult Social Care,CALDMORE AREA HOUSING ASS LTD,09/12/2016,576.8,73374-SUPPORTED & OTHER ACCOMMODATION,MH COMMISSIONING,Third Party Payments,Revenue
Walsall Council,http://opendatacommunities.org/id/metropolitan-district-council/walsall,WC75-680,31/12/2016,Adult Social Care,CALDMORE AREA HOUSING ASS LTD,09/12/2016,576.8,73374-SUPPORTED & OTHER ACCOMMODATION,LD COMMISSIONING,Third Party Payments,Revenue
Walsall Council,http://opendatacommunities.org/id/metropolitan-district-council/walsall,WC75-681,31/12/2016,Adult Social Care,CALDMORE AREA HOUSING ASS LTD,09/12/2016,576.8,73374-SUPPORTED & OTHER ACCOMMODATION,MH COMMISSIONING,Third Party Payments,Revenue
Walsall Council,http://opendatacommunities.org/id/metropolitan-district-council/walsall,WC75-682,31/12/2016,Adult Social Care,CALDMORE AREA HOUSING ASS LTD,01/12/2016,598.2,73374-SUPPORTED & OTHER ACCOMMODATION,MH COMMISSIONING,Third Party Payments,Revenue
Walsall Council,http://opendatacommunities.org/id/metropolitan-district-council/walsall,WC75-683,31/12/2016,Adult Social Care,CALDMORE AREA HOUSING ASS LTD,09/12/2016,598.2,73374-SUPPORTED & OTHER ACCOMMODATION,MH COMMISSIONING,Third Party Payments,Revenue
Walsall Council,http://opendatacommunities.org/id/metropolitan-district-council/walsall,WC75-684,31/12/2016,Adult Social Care,CALDMORE AREA HOUSING ASS LTD,21/12/2016,747.75,73374-SUPPORTED & OTHER ACCOMMODATION,MH COMMISSIONING,Third Party Payments,Revenue
Walsall Council,http://opendatacommunities.org/id/metropolitan-district-council/walsall,WC75-685,31/12/2016,Adult Social Care,CALDMORE AREA HOUSING ASS LTD,21/12/2016,755.6,73374-SUPPORTED & OTHER ACCOMMODATION,MH COMMISSIONING,Third Party Payments,Revenue
Walsall Council,http://opendatacommunities.org/id/metropolitan-district-council/walsall,WC75-686,31/12/2016,Adult Social Care,CALDMORE AREA HOUSING ASS LTD,21/12/2016,868.94,73374-SUPPORTED & OTHER ACCOMMODATION,MH COMMISSIONING,Third Party Payments,Revenue
Walsall Council,http://opendatacommunities.org/id/metropolitan-district-council/walsall,WC75-687,31/12/2016,Adult Social Care,CALDMORE AREA HOUSING ASS LTD,21/12/2016,868.94,73374-SUPPORTED & OTHER ACCOMMODATION,MH COMMISSIONING,Third Party Payments,Revenue
Walsall Council,http://opendatacommunities.org/id/metropolitan-district-council/walsall,WC75-688,31/12/2016,Adult Social Care,CALDMORE AREA HOUSING ASS LTD,22/12/2016,868.96,73374-SUPPORTED & OTHER ACCOMMODATION,MH COMMISSIONING,Third Party Payments,Revenue
Walsall Council,http://opendatacommunities.org/id/metropolitan-district-council/walsall,WC75-689,31/12/2016,Adult Social Care,CALDMORE AREA HOUSING ASS LTD,22/12/2016,868.96,73374-SUPPORTED & OTHER ACCOMMODATION,MH COMMISSIONING,Third Party Payments,Revenue
Walsall Council,http://opendatacommunities.org/id/metropolitan-district-council/walsall,WC75-690,31/12/2016,Adult Social Care,CALDMORE AREA HOUSING ASS LTD,13/12/2016,904.66,73373-RESIDENTIAL & NURSING CARE PLACEMENTS,MH COMMISSIONING,Third Party Payments,Revenue
Walsall Council,http://opendatacommunities.org/id/metropolitan-district-council/walsall,WC75-691,31/12/2016,Adult Social Care,CALDMORE AREA HOUSING ASS LTD,01/12/2016,906.72,73374-SUPPORTED & OTHER ACCOMMODATION,MH COMMISSIONING,Third Party Payments,Revenue
Walsall Council,http://opendatacommunities.org/id/metropolitan-district-council/walsall,WC75-692,31/12/2016,Adult Social Care,CALDMORE AREA HOUSING ASS LTD,09/12/2016,906.72,73374-SUPPORTED & OTHER ACCOMMODATION,MH COMMISSIONING,Third Party Payments,Revenue
Walsall Council,http://opendatacommunities.org/id/metropolitan-district-council/walsall,WC75-693,31/12/2016,Adult Social Care,CALDMORE AREA HOUSING ASS LTD,21/12/2016,977.57,73374-SUPPORTED & OTHER ACCOMMODATION,MH COMMISSIONING,Third Party Payments,Revenue
Walsall Council,http://opendatacommunities.org/id/metropolitan-district-council/walsall,WC75-694,31/12/2016,Adult Social Care,CALDMORE AREA HOUSING ASS LTD,21/12/2016,"1,001.17",73374-SUPPORTED & OTHER ACCOMMODATION,MH COMMISSIONING,Third Party Payments,Revenue
Walsall Council,http://opendatacommunities.org/id/metropolitan-district-council/walsall,WC75-695,31/12/2016,Adult Social Care,CALDMORE AREA HOUSING ASS LTD,01/12/2016,"1,038.92",73374-SUPPORTED & OTHER ACCOMMODATION,MH COMMISSIONING,Third Party Payments,Revenue
Walsall Council,http://opendatacommunities.org/id/metropolitan-district-council/walsall,WC75-696,31/12/2016,Adult Social Care,CALDMORE AREA HOUSING ASS LTD,09/12/2016,"1,038.92",73374-SUPPORTED & OTHER ACCOMMODATION,MH COMMISSIONING,Third Party Payments,Revenue
Walsall Council,http://opendatacommunities.org/id/metropolitan-district-council/walsall,WC75-697,31/12/2016,Adult Social Care,CALDMORE AREA HOUSING ASS LTD,01/12/2016,"1,057.82",73374-SUPPORTED & OTHER ACCOMMODATION,MH COMMISSIONING,Third Party Payments,Revenue
Walsall Council,http://opendatacommunities.org/id/metropolitan-district-council/walsall,WC75-698,31/12/2016,Adult Social Care,CALDMORE AREA HOUSING ASS LTD,21/12/2016,"1,086.18",73374-SUPPORTED & OTHER ACCOMMODATION,MH COMMISSIONING,Third Party Payments,Revenue
Walsall Council,http://opendatacommunities.org/id/metropolitan-district-council/walsall,WC75-699,31/12/2016,Adult Social Care,CALDMORE AREA HOUSING ASS LTD,22/12/2016,"1,086.20",73374-SUPPORTED & OTHER ACCOMMODATION,MH COMMISSIONING,Third Party Payments,Revenue
Walsall Council,http://opendatacommunities.org/id/metropolitan-district-council/walsall,WC75-700,31/12/2016,Adult Social Care,CALDMORE AREA HOUSING ASS LTD,22/12/2016,"1,086.20",73374-SUPPORTED & OTHER ACCOMMODATION,MH COMMISSIONING,Third Party Payments,Revenue
Walsall Council,http://opendatacommunities.org/id/metropolitan-district-council/walsall,WC75-701,31/12/2016,Adult Social Care,CALDMORE AREA HOUSING ASS LTD,01/12/2016,"1,133.40",73374-SUPPORTED & OTHER ACCOMMODATION,MH COMMISSIONING,Third Party Payments,Revenue
Walsall Council,http://opendatacommunities.org/id/metropolitan-district-council/walsall,WC75-702,31/12/2016,Adult Social Care,CALDMORE AREA HOUSING ASS LTD,09/12/2016,"1,133.40",73374-SUPPORTED & OTHER ACCOMMODATION,MH COMMISSIONING,Third Party Payments,Revenue
Walsall Council,http://opendatacommunities.org/id/metropolitan-district-council/walsall,WC75-703,31/12/2016,Adult Social Care,CALDMORE AREA HOUSING ASS LTD,21/12/2016,"1,133.40",73374-SUPPORTED & OTHER ACCOMMODATION,MH COMMISSIONING,Third Party Payments,Revenue
Walsall Council,http://opendatacommunities.org/id/metropolitan-district-council/walsall,WC75-704,31/12/2016,Adult Social Care,CALDMORE AREA HOUSING ASS LTD,21/12/2016,"1,133.40",73374-SUPPORTED & OTHER ACCOMMODATION,MH COMMISSIONING,Third Party Payments,Revenue
Walsall Council,http://opendatacommunities.org/id/metropolitan-district-council/walsall,WC75-705,31/12/2016,Adult Social Care,CALDMORE AREA HOUSING ASS LTD,22/12/2016,"1,133.40",73374-SUPPORTED & OTHER ACCOMMODATION,MH COMMISSIONING,Third Party Payments,Revenue
Walsall Council,http://opendatacommunities.org/id/metropolitan-district-council/walsall,WC75-706,31/12/2016,Adult Social Care,CALDMORE AREA HOUSING ASS LTD,22/12/2016,"1,133.40",73374-SUPPORTED & OTHER ACCOMMODATION,MH COMMISSIONING,Third Party Payments,Revenue
Walsall Council,http://opendatacommunities.org/id/metropolitan-district-council/walsall,WC75-707,31/12/2016,Adult Social Care,CALDMORE AREA HOUSING ASS LTD,22/12/2016,"1,133.40",73374-SUPPORTED & OTHER ACCOMMODATION,MH COMMISSIONING,Third Party Payments,Revenue
Walsall Council,http://opendatacommunities.org/id/metropolitan-district-council/walsall,WC75-708,31/12/2016,Adult Social Care,CALDMORE AREA HOUSING ASS LTD,22/12/2016,"1,133.40",73374-SUPPORTED & OTHER ACCOMMODATION,MH COMMISSIONING,Third Party Payments,Revenue
Walsall Council,http://opendatacommunities.org/id/metropolitan-district-council/walsall,WC75-709,31/12/2016,Adult Social Care,CALDMORE AREA HOUSING ASS LTD,21/12/2016,"1,237.30",73374-SUPPORTED & OTHER ACCOMMODATION,MH COMMISSIONING,Third Party Payments,Revenue
Walsall Council,http://opendatacommunities.org/id/metropolitan-district-council/walsall,WC75-710,31/12/2016,Adult Social Care,CALDMORE AREA HOUSING ASS LTD,22/12/2016,"1,277.63",73374-SUPPORTED & OTHER ACCOMMODATION,MH COMMISSIONING,Third Party Payments,Revenue
Walsall Council,http://opendatacommunities.org/id/metropolitan-district-council/walsall,WC75-711,31/12/2016,Adult Social Care,CALDMORE AREA HOUSING ASS LTD,21/12/2016,"1,298.65",73374-SUPPORTED & OTHER ACCOMMODATION,MH COMMISSIONING,Third Party Payments,Revenue
Walsall Council,http://opendatacommunities.org/id/metropolitan-district-council/walsall,WC75-712,31/12/2016,Adult Social Care,CALDMORE AREA HOUSING ASS LTD,01/12/2016,"1,322.28",73374-SUPPORTED & OTHER ACCOMMODATION,MH COMMISSIONING,Third Party Payments,Revenue
Walsall Council,http://opendatacommunities.org/id/metropolitan-district-council/walsall,WC75-713,31/12/2016,Adult Social Care,CALDMORE AREA HOUSING ASS LTD,09/12/2016,"1,322.28",73374-SUPPORTED & OTHER ACCOMMODATION,MH COMMISSIONING,Third Party Payments,Revenue
Walsall Council,http://opendatacommunities.org/id/metropolitan-district-council/walsall,WC75-714,31/12/2016,Adult Social Care,CALDMORE AREA HOUSING ASS LTD,01/12/2016,"1,341.16",73374-SUPPORTED & OTHER ACCOMMODATION,MH COMMISSIONING,Third Party Payments,Revenue
Walsall Council,http://opendatacommunities.org/id/metropolitan-district-council/walsall,WC75-715,31/12/2016,Adult Social Care,CALDMORE AREA HOUSING ASS LTD,09/12/2016,"1,341.16",73374-SUPPORTED & OTHER ACCOMMODATION,MH COMMISSIONING,Third Party Payments,Revenue
Walsall Council,http://opendatacommunities.org/id/metropolitan-district-council/walsall,WC75-716,31/12/2016,Adult Social Care,CALDMORE AREA HOUSING ASS LTD,21/12/2016,"1,416.75",73374-SUPPORTED & OTHER ACCOMMODATION,MH COMMISSIONING,Third Party Payments,Revenue
Walsall Council,http://opendatacommunities.org/id/metropolitan-district-council/walsall,WC75-717,31/12/2016,Adult Social Care,CALDMORE AREA HOUSING ASS LTD,22/12/2016,"1,416.75",73374-SUPPORTED & OTHER ACCOMMODATION,MH COMMISSIONING,Third Party Payments,Revenue
Walsall Council,http://opendatacommunities.org/id/metropolitan-district-council/walsall,WC75-718,31/12/2016,Adult Social Care,CALDMORE AREA HOUSING ASS LTD,01/12/2016,"1,473.40",73374-SUPPORTED & OTHER ACCOMMODATION,MH COMMISSIONING,Third Party Payments,Revenue
Walsall Council,http://opendatacommunities.org/id/metropolitan-district-council/walsall,WC75-719,31/12/2016,Adult Social Care,CALDMORE AREA HOUSING ASS LTD,09/12/2016,"1,473.40",73374-SUPPORTED & OTHER ACCOMMODATION,MH COMMISSIONING,Third Party Payments,Revenue
Walsall Council,http://opendatacommunities.org/id/metropolitan-district-council/walsall,WC75-720,31/12/2016,Childrens,CALDMORE AREA HOUSING ASS LTD,01/12/2016,"1,592.00",43000-RENTS,SAFEGUARDING & FAMILY SUPPORT,Premises,Revenue
Walsall Council,http://opendatacommunities.org/id/metropolitan-district-council/walsall,WC75-721,31/12/2016,Adult Social Care,CALDMORE AREA HOUSING ASS LTD,21/12/2016,"1,676.45",73374-SUPPORTED & OTHER ACCOMMODATION,MH COMMISSIONING,Third Party Payments,Revenue
Walsall Council,http://opendatacommunities.org/id/metropolitan-district-council/walsall,WC75-722,31/12/2016,Adult Social Care,CALDMORE AREA HOUSING ASS LTD,21/12/2016,"1,841.75",73374-SUPPORTED & OTHER ACCOMMODATION,MH COMMISSIONING,Third Party Payments,Revenue
Walsall Council,http://opendatacommunities.org/id/metropolitan-district-council/walsall,WC75-723,31/12/2016,Adult Social Care,CALDMORE AREA HOUSING ASS LTD,06/12/2016,"1,899.78",73373-RESIDENTIAL & NURSING CARE PLACEMENTS,MH COMMISSIONING,Third Party Payments,Revenue
Walsall Council,http://opendatacommunities.org/id/metropolitan-district-council/walsall,WC75-724,31/12/2016,Adult Social Care,CALDMORE AREA HOUSING ASS LTD,06/12/2016,"2,533.04",73373-RESIDENTIAL & NURSING CARE PLACEMENTS,OP COMMISSIONING,Third Party Payments,Revenue
Walsall Council,http://opendatacommunities.org/id/metropolitan-district-council/walsall,WC75-725,31/12/2016,Adult Social Care,CALDMORE AREA HOUSING ASS LTD,06/12/2016,"2,533.04",73373-RESIDENTIAL & NURSING CARE PLACEMENTS,MH COMMISSIONING,Third Party Payments,Revenue
Walsall Council,http://opendatacommunities.org/id/metropolitan-district-council/walsall,WC75-726,31/12/2016,Adult Social Care,CALDMORE AREA HOUSING ASS LTD,06/12/2016,"2,533.04",73373-RESIDENTIAL & NURSING CARE PLACEMENTS,MH COMMISSIONING,Third Party Payments,Revenue
Walsall Council,http://opendatacommunities.org/id/metropolitan-district-council/walsall,WC75-727,31/12/2016,Adult Social Care,CALDMORE AREA HOUSING ASS LTD,06/12/2016,"2,533.04",73373-RESIDENTIAL & NURSING CARE PLACEMENTS,MH COMMISSIONING,Third Party Payments,Revenue
Walsall Council,http://opendatacommunities.org/id/metropolitan-district-council/walsall,WC75-728,31/12/2016,Adult Social Care,CALDMORE AREA HOUSING ASS LTD,06/12/2016,"2,533.04",73373-RESIDENTIAL & NURSING CARE PLACEMENTS,MH COMMISSIONING,Third Party Payments,Revenue
Walsall Council,http://opendatacommunities.org/id/metropolitan-district-council/walsall,WC75-729,31/12/2016,Adult Social Care,CALDMORE AREA HOUSING ASS LTD,06/12/2016,"2,533.04",73373-RESIDENTIAL & NURSING CARE PLACEMENTS,MH COMMISSIONING,Third Party Payments,Revenue
Walsall Council,http://opendatacommunities.org/id/metropolitan-district-council/walsall,WC75-730,31/12/2016,Adult Social Care,CALDMORE AREA HOUSING ASS LTD,06/12/2016,"2,533.04",73373-RESIDENTIAL & NURSING CARE PLACEMENTS,MH COMMISSIONING,Third Party Payments,Revenue
Walsall Council,http://opendatacommunities.org/id/metropolitan-district-council/walsall,WC75-731,31/12/2016,Adult Social Care,CALDMORE AREA HOUSING ASS LTD,06/12/2016,"2,533.04",73373-RESIDENTIAL & NURSING CARE PLACEMENTS,MH COMMISSIONING,Third Party Payments,Revenue
Walsall Council,http://opendatacommunities.org/id/metropolitan-district-council/walsall,WC75-732,31/12/2016,Adult Social Care,CALDMORE AREA HOUSING ASS LTD,06/12/2016,"2,533.04",73373-RESIDENTIAL & NURSING CARE PLACEMENTS,MH COMMISSIONING,Third Party Payments,Revenue
Walsall Council,http://opendatacommunities.org/id/metropolitan-district-council/walsall,WC75-733,31/12/2016,Adult Social Care,CALDMORE AREA HOUSING ASS LTD,06/12/2016,"2,533.04",73373-RESIDENTIAL & NURSING CARE PLACEMENTS,MH COMMISSIONING,Third Party Payments,Revenue
Walsall Council,http://opendatacommunities.org/id/metropolitan-district-council/walsall,WC75-734,31/12/2016,Adult Social Care,CALDMORE AREA HOUSING ASS LTD,13/12/2016,"2,533.04",73373-RESIDENTIAL & NURSING CARE PLACEMENTS,MH COMMISSIONING,Third Party Payments,Revenue
Walsall Council,http://opendatacommunities.org/id/metropolitan-district-council/walsall,WC75-735,31/12/2016,Adult Social Care,CALDMORE AREA HOUSING ASS LTD,13/12/2016,"3,166.30",73373-RESIDENTIAL & NURSING CARE PLACEMENTS,MH COMMISSIONING,Third Party Payments,Revenue
Walsall Council,http://opendatacommunities.org/id/metropolitan-district-council/walsall,WC75-736,31/12/2016,Change and Governance,CALDMORE VILLAGE FESTIVAL GROUP,12/12/2016,962,62515-MISCELLANEOUS SUPPLIES,COHESION,Supplies & Services,Revenue
Walsall Council,http://opendatacommunities.org/id/metropolitan-district-council/walsall,WC75-737,31/12/2016,Change and Governance,CALDMORE VILLAGE FESTIVAL GROUP,01/12/2016,"2,625.00",62515-MISCELLANEOUS SUPPLIES,AREA 4 - WALSALL SOUTH,Supplies & Services,Revenue
Walsall Council,http://opendatacommunities.org/id/metropolitan-district-council/walsall,WC75-738,31/12/2016,Childrens,REDACTED,19/12/2016,372.84,74006-HOLIDAY/CHRISTMAS ALLOWANCE-FOSTER CARERS-OTH AGENCY PROVISION,INTERNAL FOSTER CARE PROVISION,Third Party Payments,Revenue
Walsall Council,http://opendatacommunities.org/id/metropolitan-district-council/walsall,WC75-2366,31/12/2016,Childrens,REDACTED,12/12/2016,450,76422-DIRECT PAYMENTS TO SOCIAL SERVICES CLIENTS,FAMILY SUPPORT - DIRECT PAYMENTS,Transfer Payments,Revenue
Walsall Council,http://opendatacommunities.org/id/metropolitan-district-council/walsall,WC75-740,31/12/2016,Childrens,CAMBIAN WHINFELL SCHOOLS LTD,21/12/2016,"13,807.73",66502-TOP UP FUNDING -GRANTS TO SCHOOLS,INDEPENDENT PROVIDERS - SPECIAL & AP,Third Party Payments,Revenue
Walsall Council,http://opendatacommunities.org/id/metropolitan-district-council/walsall,WC75-741,31/12/2016,Childrens,CAMBIAN WHINFELL SCHOOLS LTD,21/12/2016,"13,807.73",66502-TOP UP FUNDING -GRANTS TO SCHOOLS,INDEPENDENT PROVIDERS - SPECIAL & AP,Third Party Payments,Revenue
Walsall Council,http://opendatacommunities.org/id/metropolitan-district-council/walsall,WC75-742,31/12/2016,Childrens,CAMBIAN WHINFELL SCHOOLS LTD,19/12/2016,"22,666.67",66502-TOP UP FUNDING -GRANTS TO SCHOOLS,INDEPENDENT PROVIDERS - SPECIAL & AP,Third Party Payments,Revenue
Walsall Council,http://opendatacommunities.org/id/metropolitan-district-council/walsall,WC75-743,31/12/2016,Childrens,CAMBIAN WHINFELL SCHOOLS LTD,19/12/2016,"26,508.77",66502-TOP UP FUNDING -GRANTS TO SCHOOLS,INDEPENDENT PROVIDERS - SPECIAL & AP,Third Party Payments,Revenue
Walsall Council,http://opendatacommunities.org/id/metropolitan-district-council/walsall,WC75-744,31/12/2016,Economy & Environment,CANAL & RIVER TRUST,01/12/2016,249.42,43000-RENTS,ENVIRONMENTAL IMPROVEMENT SERVICE,Premises,Revenue
Walsall Council,http://opendatacommunities.org/id/metropolitan-district-council/walsall,WC75-745,31/12/2016,Childrens,CAPITA BUSINESS SERVICES LTD 001,01/12/2016,92.95,63000-PROFESSIONAL FEES AND SERVICES,SEN ASSESSMENT,Supplies & Services,Revenue
Walsall Council,http://opendatacommunities.org/id/metropolitan-district-council/walsall,WC75-746,31/12/2016,Childrens,CAPITA BUSINESS SERVICES LTD 001,01/12/2016,92.96,63000-PROFESSIONAL FEES AND SERVICES,SCHOOL IMPROVEMENT-VIRTUAL SCHOOL,Supplies & Services,Revenue
Walsall Council,http://opendatacommunities.org/id/metropolitan-district-council/walsall,WC75-747,31/12/2016,Childrens,CAPITA BUSINESS SERVICES LTD 001,01/12/2016,92.96,63000-PROFESSIONAL FEES AND SERVICES,WEST LOCALITY - SCHOOL READY,Supplies & Services,Revenue
Walsall Council,http://opendatacommunities.org/id/metropolitan-district-council/walsall,WC75-748,31/12/2016,Economy & Environment,CAPITA BUSINESS SERVICES LTD 001,01/12/2016,185.91,63000-PROFESSIONAL FEES AND SERVICES,FOREST ARTS CENTRE,Supplies & Services,Revenue
Walsall Council,http://opendatacommunities.org/id/metropolitan-district-council/walsall,WC75-749,31/12/2016,Change and Governance,CAPITA IT SERVICES (BSF) LIMITED,09/12/2016,"11,999.88",63800-COMPUTER EQUIPMENT AND SUPPLIES,SIT-INFRASTRUCTURE,Supplies & Services,Revenue
Walsall Council,http://opendatacommunities.org/id/metropolitan-district-council/walsall,WC75-750,31/12/2016,Childrens,CAPSTONE FOSTER CARE (SOUTH EAST) LIMITED,07/12/2016,"3,059.57",74037-INDEPENDENT FOSTER CARE-OTH AGENCY PROVISION,EXTERNAL FOSTER CARE PROVISION,Third Party Payments,Revenue
Walsall Council,http://opendatacommunities.org/id/metropolitan-district-council/walsall,WC75-751,31/12/2016,Childrens,CAPSTONE FOSTER CARE (SOUTH EAST) LIMITED,07/12/2016,"3,187.84",74037-INDEPENDENT FOSTER CARE-OTH AGENCY PROVISION,EXTERNAL FOSTER CARE PROVISION,Third Party Payments,Revenue
Walsall Council,http://opendatacommunities.org/id/metropolitan-district-council/walsall,WC75-752,31/12/2016,Childrens,CAPSTONE FOSTER CARE (SOUTH EAST) LIMITED,07/12/2016,"3,422.10",74037-INDEPENDENT FOSTER CARE-OTH AGENCY PROVISION,EXTERNAL FOSTER CARE PROVISION,Third Party Payments,Revenue
Walsall Council,http://opendatacommunities.org/id/metropolitan-district-council/walsall,WC75-753,31/12/2016,Childrens,CAPSTONE FOSTER CARE (SOUTH EAST) LIMITED,07/12/2016,"3,422.10",74037-INDEPENDENT FOSTER CARE-OTH AGENCY PROVISION,EXTERNAL FOSTER CARE PROVISION,Third Party Payments,Revenue
Walsall Council,http://opendatacommunities.org/id/metropolitan-district-council/walsall,WC75-754,31/12/2016,Childrens,CAPSTONE FOSTER CARE (SOUTH EAST) LIMITED,07/12/2016,"3,492.90",74037-INDEPENDENT FOSTER CARE-OTH AGENCY PROVISION,EXTERNAL FOSTER CARE PROVISION,Third Party Payments,Revenue
Walsall Council,http://opendatacommunities.org/id/metropolitan-district-council/walsall,WC75-755,31/12/2016,Adult Social Care,CARE 2 U LIMITED,05/12/2016,"38,307.58",73372-DOMICILIARY CARE,OP COMMISSIONING,Third Party Payments,Revenue
Walsall Council,http://opendatacommunities.org/id/metropolitan-district-council/walsall,WC75-756,31/12/2016,Childrens,CARE 4 CHILDREN RESIDENTIAL SERVICES LTD,20/12/2016,"17,050.00",74036-EXTERNAL RESIDENTIAL CARE-OTH AGENCY PROVISION,INDEPENDENT RESIDENTIAL HOMES,Third Party Payments,Revenue
Walsall Council,http://opendatacommunities.org/id/metropolitan-district-council/walsall,WC75-757,31/12/2016,Adult Social Care,CARE AVENUES LTD,16/12/2016,819,73372-DOMICILIARY CARE,OP COMMISSIONING,Third Party Payments,Revenue
Walsall Council,http://opendatacommunities.org/id/metropolitan-district-council/walsall,WC75-758,31/12/2016,Adult Social Care,CARE AVENUES LTD,05/12/2016,"10,786.75",73372-DOMICILIARY CARE,OP COMMISSIONING,Third Party Payments,Revenue
Walsall Council,http://opendatacommunities.org/id/metropolitan-district-council/walsall,WC75-759,31/12/2016,Adult Social Care,CARE FIRST MANAGEMENT SERVICES LTD,02/12/2016,780,73372-DOMICILIARY CARE,PD COMMISSIONING,Third Party Payments,Revenue
Walsall Council,http://opendatacommunities.org/id/metropolitan-district-council/walsall,WC75-760,31/12/2016,Adult Social Care,CARE FIRST MANAGEMENT SERVICES LTD,13/12/2016,780,73372-DOMICILIARY CARE,PD COMMISSIONING,Third Party Payments,Revenue
Walsall Council,http://opendatacommunities.org/id/metropolitan-district-council/walsall,WC75-761,31/12/2016,Childrens,CARE LEAVERS,09/12/2016,271.73,63114-OTHER FEES & LICENCES-SERVICES-FEES,TRANSITION AND LEAVING CARE,Supplies & Services,Revenue
Walsall Council,http://opendatacommunities.org/id/metropolitan-district-council/walsall,WC75-762,31/12/2016,Childrens,CARE LEAVERS,09/12/2016,"2,750.70",76400-RESIDENTS PERSONAL EXPENSES-ALLOWANCES TO S/S CLIENTS,TRANSITION AND LEAVING CARE,Transfer Payments,Revenue
Walsall Council,http://opendatacommunities.org/id/metropolitan-district-council/walsall,WC75-763,31/12/2016,Childrens,CARE LEAVERS,09/12/2016,"5,859.50",74500-CARE LEAVERS MTCE PAYMENTS,TRANSITION AND LEAVING CARE,Third Party Payments,Revenue
Walsall Council,http://opendatacommunities.org/id/metropolitan-district-council/walsall,WC75-764,31/12/2016,Childrens,CARE LEAVERS,09/12/2016,"6,984.15",64002-OTHER EXPENSES-EXPENSES,TRANSITION AND LEAVING CARE,Supplies & Services,Revenue
Walsall Council,http://opendatacommunities.org/id/metropolitan-district-council/walsall,WC75-765,31/12/2016,Adult Social Care,CARE MONITORING 2000 LTD,01/12/2016,"10,865.75",63800-COMPUTER EQUIPMENT AND SUPPLIES,PERFORMANCE & SYSTEMS,Supplies & Services,Revenue
Walsall Council,http://opendatacommunities.org/id/metropolitan-district-council/walsall,WC75-766,31/12/2016,Childrens,CARE TODAY CHILDRENS SERVICES,14/12/2016,"11,121.30",74036-EXTERNAL RESIDENTIAL CARE-OTH AGENCY PROVISION,INDEPENDENT RESIDENTIAL HOMES,Third Party Payments,Revenue
Walsall Council,http://opendatacommunities.org/id/metropolitan-district-council/walsall,WC75-767,31/12/2016,Childrens,CARE TODAY CHILDRENS SERVICES,14/12/2016,"13,641.30",74036-EXTERNAL RESIDENTIAL CARE-OTH AGENCY PROVISION,INDEPENDENT RESIDENTIAL HOMES,Third Party Payments,Revenue
Walsall Council,http://opendatacommunities.org/id/metropolitan-district-council/walsall,WC75-768,31/12/2016,Childrens,CAREFIRST SERVICES LIMITED,06/12/2016,"1,457.07",43000-RENTS,TRANSITION AND LEAVING CARE,Premises,Revenue
Walsall Council,http://opendatacommunities.org/id/metropolitan-district-council/walsall,WC75-769,31/12/2016,Adult Social Care,CAREVIEW SERVICES LTD,13/12/2016,"6,802.80",73373-RESIDENTIAL & NURSING CARE PLACEMENTS,LD COMMISSIONING,Third Party Payments,Revenue
Walsall Council,http://opendatacommunities.org/id/metropolitan-district-council/walsall,WC75-770,31/12/2016,Adult Social Care,CARING CARE LIMITED,05/12/2016,"67,068.72",73372-DOMICILIARY CARE,OP COMMISSIONING,Third Party Payments,Revenue
Walsall Council,http://opendatacommunities.org/id/metropolitan-district-council/walsall,WC75-771,31/12/2016,Adult Social Care,CARING HANDS LIMITED,12/12/2016,"43,880.57",73372-DOMICILIARY CARE,OP COMMISSIONING,Third Party Payments,Revenue
Walsall Council,http://opendatacommunities.org/id/metropolitan-district-council/walsall,WC75-2402,31/12/2016,Childrens,REDACTED,12/12/2016,418.25,76422-DIRECT PAYMENTS TO SOCIAL SERVICES CLIENTS,FAMILY SUPPORT - DIRECT PAYMENTS,Transfer Payments,Revenue
Walsall Council,http://opendatacommunities.org/id/metropolitan-district-council/walsall,WC75-2426,31/12/2016,Childrens,REDACTED,12/12/2016,"1,186.90",76422-DIRECT PAYMENTS TO SOCIAL SERVICES CLIENTS,FAMILY SUPPORT - DIRECT PAYMENTS,Transfer Payments,Revenue
Walsall Council,http://opendatacommunities.org/id/metropolitan-district-council/walsall,WC75-2639,31/12/2016,Childrens,REDACTED,12/12/2016,944.13,76422-DIRECT PAYMENTS TO SOCIAL SERVICES CLIENTS,FAMILY SUPPORT - DIRECT PAYMENTS,Transfer Payments,Revenue
Walsall Council,http://opendatacommunities.org/id/metropolitan-district-council/walsall,WC75-2776,31/12/2016,Childrens,REDACTED,12/12/2016,539.5,76422-DIRECT PAYMENTS TO SOCIAL SERVICES CLIENTS,FAMILY SUPPORT - DIRECT PAYMENTS,Transfer Payments,Revenue
